Workbook

Sheet 1. Information Sheet
U1: a
M12: Version | N12: 1.02
E14: Utility Name | F14: Renfrew Hydro Inc.
E16: Service Territory
E18: Assigned EB Number | F18: EB-2016-0166
E20: Name of Contact and Title | F20: Cindy Marshall
E22: Phone Number | F22: 613-432-4884 ext 226
E24: Email Address | F24: cmarshall@renfrewhydro.com
E26: We are applying for rates effective | F26: 2017-01-01
E28: Rate-Setting Method | F28: Cost of Service
A30: Please indicate in which Rate Year the Group 1 accounts were last cleared1 | F30: 2015
A32: Please indicate the last Cost of Service Re-Basing Year | F32: 2010
B35: Notes
C37: Pale green cells represent input cells.
C39: Pale blue cells represent drop-down lists. The applicant should select the appropriate item from the drop-down list.
C41: White cells contain fixed values, automatically generated values or formulae.
A44: Note: 1. Rate year of application

Sheet Sheet1 (hidden)
A1: 1. Information Sheet
A2: Sheet1 | B2: X
A3: 2.2-TSC Current Tariff Schedule | B3: X | C3: X
A4: 2016 List | B4: X
A5: 3. Regulatory Charges | B5: X | C5: X
A6: 4.2-TS Tariff Schedule | B6: X
A7: 4.2-TS Tariff Schedule | B7: X | C7: X
A8: 5. 2-W Bill Impacts | B8: X | C8: X
A9: 20. HIDDEN | B9: X
A10: 20. Bill Impacts hidden | B10: X
A11: 2.1.7 Filing | B11: X
A12: 2 1 5 TotalConsumptionData_Dist | B12: X
A13: 212_Total_Connection_RollUp | B13: X
A14: 2016 Database | B14: X
A15: lists | B15: X
A16: Sheet2 | B16: X

Sheet 2.2-TSC Current Tariff Schedule
AZ1: TRUE
B3: Macro has been activated
B12: Renfrew Hydro Inc. | F12: X | G12: Renfrew Hydro Inc._Start | H12: Renfrew Hydro Inc. | J12: 7
B13: TARIFF OF RATES AND CHARGES
B14: Effective and Implementation Date May 1, 2015 | P14: 2015-05-01
B15: This schedule supersedes and replaces all previously
B16: approved schedules of Rates, Charges and Loss Factors
B17: EB-2014-0110 | H17: EB-2014-0110 | AS17: X
B18: RESIDENTIAL SERVICE CLASSIFICATION | H18: 1_RESIDENTIAL SERVICE CLASSIFICATION | AA18: RESIDENTIAL SERVICE CLASSIFICATION
B19: This classification applies to an account taking electricity at 750 volts or less where the electricity is used exclusively in a separate metered living accommodation. Customers shall be residing in single-dwelling units that consist of a detached house or one unit of a semi-detached, duplex, triplex or quadruplex house, with a residential zoning. Separately metered dwellings within a town house complex or apartment building also qualify as residential customers. Further servicing details are available in the distributor's Conditions of Service. | H19: 1_RESIDENTIAL SERVICE CLASSIFICATION | AA19: This classification applies to an account taking electricity at 750 volts or less where the electricity is used exclusively in a separate metered living accommodation. Customers shall be residing in single-dwelling units that consist of a detached house or one unit of a semi-detached, duplex, triplex or quadruplex house, with a residential zoning. Separately metered dwellings within a town house complex or apartment building also qualify as residential customers. Further servicing details are available in the distributor's Conditions of Service.
B21: APPLICATION | H21: 1_APPLICATION | AA21: APPLICATION
B23: The application of these rates and charges shall be in accordance with the Licence of the Distributor and any Code or Order of the Board, and amendments thereto as approved by the Board, which may be applicable to the administration of this schedule. | H23: 1_RESIDENTIAL SERVICE CLASSIFICATION | AA23: The application of these rates and charges shall be in accordance with the Licence of the Distributor and any Code or Order of the Board, and amendments thereto as approved by the Board, which may be applicable to the administration of this schedule.
B25: No rates and charges for the distribution of electricity and charges to meet the costs of any work or service done or furnished for the purpose of the distribution of electricity shall be made except as permitted by this schedule, unless required by the Distributor's Licence or a Code or Order of the Board, and amendments thereto as approved by the Board, or as specified herein. | H25: 1_RESIDENTIAL SERVICE CLASSIFICATION | AA25: No rates and charges for the distribution of electricity and charges to meet the costs of any work or service done or furnished for the purpose of the distribution of electricity shall be made except as permitted by this schedule, unless required by the Distributor's Licence or a Code or Order of the Board, and amendments thereto as approved by the Board, or as specified herein.
B27: Unless specifically noted, this schedule does not contain any charges for the electricity commodity, be it under the Regulated Price Plan, a contract with a retailer or the wholesale market price, as applicable. In addition, the charges in the MONTHLY RATES AND CHARGES – Regulatory Component of this schedule do not apply to a customer that is an embedded wholesale market participant. | H27: 1_RESIDENTIAL SERVICE CLASSIFICATION | AA27: Unless specifically noted, this schedule does not contain any charges for the electricity commodity, be it under the Regulated Price Plan, a contract with a retailer or the wholesale market price, as applicable. In addition, the charges in the MONTHLY RATES AND CHARGES – Regulatory Component of this schedule do not apply to a customer that is an embedded wholesale market participant.
B29: It should be noted that this schedule does not list any charges, assessments or credits that are required by law to be invoiced by a distributor and that are not subject to Board approval, such as the Debt Retirement Charge, the Global Adjustment, the Ontario Clean Energy Benefit and the HST. | H29: 1_RESIDENTIAL SERVICE CLASSIFICATION | AA29: It should be noted that this schedule does not list any charges, assessments or credits that are required by law to be invoiced by a distributor and that are not subject to Board approval, such as the Debt Retirement Charge, the Global Adjustment, the Ontario Clean Energy Benefit and the HST.
B31: MONTHLY RATES AND CHARGES - Delivery Component | H31: 1_MRC_Del | AA31: MONTHLY RATES AND CHARGES - Delivery Component
B33: Service Charge | D33: $ | E33: 13.97 | H33: 1_RESIDENTIAL SERVICE CLASSIFICATION | I33: A | M33: 1_RESIDENTIAL SERVICE CLASSIFICATION_MSC | Z33: Service Charge
B34: Rate Rider for Smart Metering Entity Charge - effective until October 31, 2018 | D34: $ | E34: 0.79 | H34: 1_RESIDENTIAL SERVICE CLASSIFICATION | I34: B | M34: 1_RESIDENTIAL SERVICE CLASSIFICATION_SME | Q34: 2018-10-31 | Z34: Rate Rider for Smart Metering Entity Charge - effective until October 31, 2018
B35: Distribution Volumetric Rate | D35: $/kWh | E35: 0.0145 | H35: 1_RESIDENTIAL SERVICE CLASSIFICATION | I35: A | M35: 1_RESIDENTIAL SERVICE CLASSIFICATION_DVC | Z35: Distribution Volumetric Rate
B36: Low Voltage Service Rate | D36: $/kWh | E36: 0.0011 | H36: 1_RESIDENTIAL SERVICE CLASSIFICATION | I36: B | M36: 1_RESIDENTIAL SERVICE CLASSIFICATION_LV | Z36: Low Voltage Service Rate
B37: Rate Rider for Disposition of Deferral/Variance Accounts (2015) - effective until April 30, 2016 | D37: $/kWh | E37: -0.0026 | H37: 1_RESIDENTIAL SERVICE CLASSIFICATION | I37: B | M37: 1_RESIDENTIAL SERVICE CLASSIFICATION_DEFVAR_ALL | Q37: 2016-04-30 | R37: X | Z37: Rate Rider for Disposition of Deferral/Variance Accounts (2015) - effective until April 30, 2016
B38: Rate Rider for Disposition of Global Adjustment Account (2015) - effective until April 30, 2016 Applicable only for Non RPP Customers | D38: $/kWh | E38: 0.0028 | H38: 1_RESIDENTIAL SERVICE CLASSIFICATION | I38: B | M38: 1_RESIDENTIAL SERVICE CLASSIFICATION_GA_kwh | Q38: 2016-04-30 | R38: X | Z38: Rate Rider for Disposition of Global Adjustment Account (2015) - effective until April 30, 2016 Applicable only for Non RPP Customers
B39: Retail Transmission Rate - Network Service Rate | D39: $/kWh | E39: 0.006386334776 | H39: 1_RESIDENTIAL SERVICE CLASSIFICATION | I39: C | M39: 1_RESIDENTIAL SERVICE CLASSIFICATION_Retail Transmission Rate - Network Service Rate | Z39: Retail Transmission Rate - Network Service Rate
B40: Retail Transmission Rate - Line and Transformation Connection Service Rate | D40: $/kWh | E40: 0.003255939452 | H40: 1_RESIDENTIAL SERVICE CLASSIFICATION | I40: C | M40: 1_RESIDENTIAL SERVICE CLASSIFICATION_Retail Transmission Rate - Line and Transformation Connection Service Rate | Z40: Retail Transmission Rate - Line and Transformation Connection Service Rate
B42: MONTHLY RATES AND CHARGES - Regulatory Component | H42: 1_MRC_Reg | Z42: MONTHLY RATES AND CHARGES - Regulatory Component
B44: Wholesale Market Service Rate | D44: $/kWh | E44: 0.0044 | H44: 1_RESIDENTIAL SERVICE CLASSIFICATION | I44: T | M44: 1_RESIDENTIAL SERVICE CLASSIFICATION_WMSR | Z44: Wholesale Market Service Rate
B45: Rural or Remote Electricity Rate Protection Charge (RRRP) | D45: $/kWh | E45: 0.0013 | H45: 1_RESIDENTIAL SERVICE CLASSIFICATION | I45: T | M45: 1_RESIDENTIAL SERVICE CLASSIFICATION_RRRP | Z45: Rural or Remote Electricity Rate Protection Charge (RRRP)
B46: Standard Supply Service - Administrative Charge (if applicable) | D46: $ | E46: 0.25 | H46: 1_RESIDENTIAL SERVICE CLASSIFICATION | I46: T | M46: 1_RESIDENTIAL SERVICE CLASSIFICATION_SSS | Z46: Standard Supply Service - Administrative Charge (if applicable) | AS46: X
B47: ONTARIO ELECTRICITY SUPPORT PROGRAM RECIPIENTS | H47: 2_ONTARIO ELECTRICITY SUPPORT PROGRAM RECIPIENTS | AA47: ONTARIO ELECTRICITY SUPPORT PROGRAM RECIPIENTS
B48: In addition to the charges specified on page 1 of this tariff of rates and charges, the following credits are to be applied to eligible residential customers. | H48: 2_ONTARIO ELECTRICITY SUPPORT PROGRAM RECIPIENTS | AA48: In addition to the charges specified on page 1 of this tariff of rates and charges, the following credits are to be applied to eligible residential customers.
B50: APPLICATION | H50: 2_APPLICATION | AA50: APPLICATION
B52: The application of the charges are in accordance with the Distribution System Code (Section 9) and subsection 79.2(4) of the Ontario Energy Board Act, 1998. | H52: 2_ONTARIO ELECTRICITY SUPPORT PROGRAM RECIPIENTS | AA52: The application of the charges are in accordance with the Distribution System Code (Section 9) and subsection 79.2(4) of the Ontario Energy Board Act, 1998.
B53: The application of these charges shall be in accordance with the Licence of the Distributor and any Code or Order of the Ontario Energy Board, and amendments thereto as approved by the Ontario Energy Board, which may be applicable to the administration of this schedule. | H53: 2_ONTARIO ELECTRICITY SUPPORT PROGRAM RECIPIENTS | AA53: The application of these charges shall be in accordance with the Licence of the Distributor and any Code or Order of the Ontario Energy Board, and amendments thereto as approved by the Ontario Energy Board, which may be applicable to the administration of this schedule.
B54: In this class: “Aboriginal person” includes a person who is a First Nations person, a Métis person or an Inuit person; “account-holder” means a consumer who has an account with a distributor that falls within a residential-rate classification as specified in a rate order made by the Ontario Energy Board under section 78 of the Act, and who lives at the service address to which the account relates for at least six months in a year; “electricity-intensive medical device” means an oxygen concentrator, a mechanical ventilator, or such other device as may be specified by the Ontario Energy Board; “household” means the account-holder and any other people living at the accountholder’s service address for at least six months in a year, including people other than the account-holder’s spouse, children or other relatives; “household income” means the combined annual after-tax income of all members of a household aged 16 or over; | H54: 2_ONTARIO ELECTRICITY SUPPORT PROGRAM RECIPIENTS | AA54: In this class: “Aboriginal person” includes a person who is a First Nations person, a Métis person or an Inuit person; “account-holder” means a consumer who has an account with a distributor that falls within a residential-rate classification as specified in a rate order made by the Ontario Energy Board under section 78 of the Act, and who lives at the service address to which the account relates for at least six months in a year; “electricity-intensive medical device” means an oxygen concentrator, a mechanical ventilator, or such other device as may be specified by the Ontario Energy Board; “household” means the account-holder and any other people living at the accountholder’s service address for at least six months in a year, including people other than the account-holder’s spouse, children or other relatives; “household income” means the combined annual after-tax income of all members of a household aged 16 or over;
B56: MONTHLY RATES AND CHARGES | H56: 2_MRC | AA56: MONTHLY RATES AND CHARGES
B59: Class A | H59: 2_ONTARIO ELECTRICITY SUPPORT PROGRAM RECIPIENTS | Z59: Class A
B60: (a) account-holders with a household income of $28,000 or less living in a household of one or two persons; (b) account-holders with a household income of between $28,001 and $39,000 living in a household of three persons; (c) account-holders with a household income of between $39,001 and $48,000 living in a household of five persons; and (d) account-holders with a household income of between $48,001 and $52,000 living in a household of seven or more persons; but does not include account-holders in Class E. | H60: 2_ONTARIO ELECTRICITY SUPPORT PROGRAM RECIPIENTS | AA60: (a) account-holders with a household income of $28,000 or less living in a household of one or two persons; (b) account-holders with a household income of between $28,001 and $39,000 living in a household of three persons; (c) account-holders with a household income of between $39,001 and $48,000 living in a household of five persons; and (d) account-holders with a household income of between $48,001 and $52,000 living in a household of seven or more persons; but does not include account-holders in Class E.
B61: OESP Credit | D61: $ | E61: -30 | H61: 2_ONTARIO ELECTRICITY SUPPORT PROGRAM RECIPIENTS | I61: T | M61: 2_ONTARIO ELECTRICITY SUPPORT PROGRAM RECIPIENTS_OESP CREDIT_CLASS A | Z61: OESP Credit
B63: Class B | H63: 2_ONTARIO ELECTRICITY SUPPORT PROGRAM RECIPIENTS | Z63: Class B
B64: (a) account-holders with a household income of $28,000 or less living in a household of three persons; (b) account-holders with a household income of between $28,001 and $39,000 living in a household of four persons; (c) account-holders with a household income of between $39,001 and $48,000 living in a household of six persons; but does not include account-holders in Class F. | H64: 2_ONTARIO ELECTRICITY SUPPORT PROGRAM RECIPIENTS | AA64: (a) account-holders with a household income of $28,000 or less living in a household of three persons; (b) account-holders with a household income of between $28,001 and $39,000 living in a household of four persons; (c) account-holders with a household income of between $39,001 and $48,000 living in a household of six persons; but does not include account-holders in Class F.
B65: OESP Credit | D65: $ | E65: -34 | H65: 2_ONTARIO ELECTRICITY SUPPORT PROGRAM RECIPIENTS | I65: T | M65: 2_ONTARIO ELECTRICITY SUPPORT PROGRAM RECIPIENTS_OESP CREDIT_CLASS B | Z65: OESP Credit
B67: Class C | H67: 2_ONTARIO ELECTRICITY SUPPORT PROGRAM RECIPIENTS | Z67: Class C
B68: (a) account-holders with a household income of $28,000 or less living in a household of four persons; (b) account-holders with a household income of between $28,001 and $39,000 living in a household of five persons; (c) account-holders with a household income of between $39,001 and $48,000 living in a household of seven or more persons; but does not include account-holders in Class G. | H68: 2_ONTARIO ELECTRICITY SUPPORT PROGRAM RECIPIENTS | AA68: (a) account-holders with a household income of $28,000 or less living in a household of four persons; (b) account-holders with a household income of between $28,001 and $39,000 living in a household of five persons; (c) account-holders with a household income of between $39,001 and $48,000 living in a household of seven or more persons; but does not include account-holders in Class G.
B69: OESP Credit | D69: $ | E69: -38 | H69: 2_ONTARIO ELECTRICITY SUPPORT PROGRAM RECIPIENTS | I69: T | M69: 2_ONTARIO ELECTRICITY SUPPORT PROGRAM RECIPIENTS_OESP CREDIT_CLASS C | Z69: OESP Credit
B71: Class D | H71: 2_ONTARIO ELECTRICITY SUPPORT PROGRAM RECIPIENTS | Z71: Class D
B72: (a) account-holders with a household income of $28,000 or less living in a household of five persons; and (b) account-holders with a household income of between $28,001 and $39,000 living in a household of six persons; but does not include account-holders in Class H. | H72: 2_ONTARIO ELECTRICITY SUPPORT PROGRAM RECIPIENTS | AA72: (a) account-holders with a household income of $28,000 or less living in a household of five persons; and (b) account-holders with a household income of between $28,001 and $39,000 living in a household of six persons; but does not include account-holders in Class H.
B73: OESP Credit | D73: $ | E73: -42 | H73: 2_ONTARIO ELECTRICITY SUPPORT PROGRAM RECIPIENTS | I73: T | M73: 2_ONTARIO ELECTRICITY SUPPORT PROGRAM RECIPIENTS_OESP CREDIT_CLASS D | Z73: OESP Credit
B75: Class E | H75: 2_ONTARIO ELECTRICITY SUPPORT PROGRAM RECIPIENTS | Z75: Class E
B76: Class E comprises account-holders with a household income and household size described under Class A who also meet any of the following conditions: (a) the dwelling to which the account relates is heated primarily by electricity; (b) the account-holder or any member of the account-holder’s household is an Aboriginal person; or (c) the account-holder or any member of the account-holder’s household regularly uses, for medical purposes, an electricity-intensive medical device at the dwelling to which the account relates. | H76: 2_ONTARIO ELECTRICITY SUPPORT PROGRAM RECIPIENTS | AA76: Class E comprises account-holders with a household income and household size described under Class A who also meet any of the following conditions: (a) the dwelling to which the account relates is heated primarily by electricity; (b) the account-holder or any member of the account-holder’s household is an Aboriginal person; or (c) the account-holder or any member of the account-holder’s household regularly uses, for medical purposes, an electricity-intensive medical device at the dwelling to which the account relates.
B77: OESP Credit | D77: $ | E77: -45 | H77: 2_ONTARIO ELECTRICITY SUPPORT PROGRAM RECIPIENTS | I77: T | M77: 2_ONTARIO ELECTRICITY SUPPORT PROGRAM RECIPIENTS_OESP CREDIT_CLASS E | Z77: OESP Credit
B79: Class F | H79: 2_ONTARIO ELECTRICITY SUPPORT PROGRAM RECIPIENTS | Z79: Class F
B80: (a) account-holders with a household income of $28,000 or less living in a household of six or more persons; (b) account-holders with a household income of between $28,001 and $39,000 living in a household of seven or more persons; or (c) account-holders with a household income and household size described under Class B who also meet any of the following conditions: | H80: 2_ONTARIO ELECTRICITY SUPPORT PROGRAM RECIPIENTS | AA80: (a) account-holders with a household income of $28,000 or less living in a household of six or more persons; (b) account-holders with a household income of between $28,001 and $39,000 living in a household of seven or more persons; or (c) account-holders with a household income and household size described under Class B who also meet any of the following conditions:
B81: i. the dwelling to which the account relates is heated primarily by electricity; ii. the account-holder or any member of the account-holder’s household is an Aboriginal person; or iii. the account-holder or any member of the account-holder’s household regularly uses, for medical purposes, an electricity-intensive medical device at the dwelling to which the account relates | H81: 2_ONTARIO ELECTRICITY SUPPORT PROGRAM RECIPIENTS | AA81: i. the dwelling to which the account relates is heated primarily by electricity; ii. the account-holder or any member of the account-holder’s household is an Aboriginal person; or iii. the account-holder or any member of the account-holder’s household regularly uses, for medical purposes, an electricity-intensive medical device at the dwelling to which the account relates
B82: OESP Credit | D82: $ | E82: -50 | H82: 2_ONTARIO ELECTRICITY SUPPORT PROGRAM RECIPIENTS | I82: T | M82: 2_ONTARIO ELECTRICITY SUPPORT PROGRAM RECIPIENTS_OESP CREDIT_CLASS F | Z82: OESP Credit
B84: Class G | H84: 2_ONTARIO ELECTRICITY SUPPORT PROGRAM RECIPIENTS | Z84: Class G
B85: Class G comprises account-holders with a household income and household size described under Class C who also meet any of the following conditions: (a) the dwelling to which the account relates is heated primarily by electricity; (b) the account-holder or any member of the account-holder’s household is an Aboriginal person; or (c) the account-holder or any member of the account-holder’s household regularly uses, for medical purposes, an electricity-intensive medical device at the dwelling to which the account relates. | H85: 2_ONTARIO ELECTRICITY SUPPORT PROGRAM RECIPIENTS | AA85: Class G comprises account-holders with a household income and household size described under Class C who also meet any of the following conditions: (a) the dwelling to which the account relates is heated primarily by electricity; (b) the account-holder or any member of the account-holder’s household is an Aboriginal person; or (c) the account-holder or any member of the account-holder’s household regularly uses, for medical purposes, an electricity-intensive medical device at the dwelling to which the account relates.
B86: OESP Credit | D86: $ | E86: -55 | H86: 2_ONTARIO ELECTRICITY SUPPORT PROGRAM RECIPIENTS | I86: T | M86: 2_ONTARIO ELECTRICITY SUPPORT PROGRAM RECIPIENTS_OESP CREDIT_CLASS G | Z86: OESP Credit
B88: Class H | H88: 2_ONTARIO ELECTRICITY SUPPORT PROGRAM RECIPIENTS | Z88: Class H
B89: Class H comprises account-holders with a household income and household size described under Class D who also meet any of the following conditions: (a) the dwelling to which the account relates is heated primarily by electricity; (b) the account-holder or any member of the account-holder’s household is an Aboriginal person ; or (c) the account-holder or any member of the account-holder’s household regularly uses, for medical purposes, an electricity-intensive medical device at the dwelling to which the account relates. | H89: 2_ONTARIO ELECTRICITY SUPPORT PROGRAM RECIPIENTS | AA89: Class H comprises account-holders with a household income and household size described under Class D who also meet any of the following conditions: (a) the dwelling to which the account relates is heated primarily by electricity; (b) the account-holder or any member of the account-holder’s household is an Aboriginal person ; or (c) the account-holder or any member of the account-holder’s household regularly uses, for medical purposes, an electricity-intensive medical device at the dwelling to which the account relates.
B90: OESP Credit | D90: $ | E90: -60 | H90: 2_ONTARIO ELECTRICITY SUPPORT PROGRAM RECIPIENTS | I90: T | M90: 2_ONTARIO ELECTRICITY SUPPORT PROGRAM RECIPIENTS_OESP CREDIT_CLASS H | Z90: OESP Credit
B92: Class I | H92: 2_ONTARIO ELECTRICITY SUPPORT PROGRAM RECIPIENTS | Z92: Class I
B93: Class I comprises account-holders with a household income and household size described under paragraphs (a) or (b) of Class F who also meet any of the following conditions: (a) the dwelling to which the account relates is heated primarily by electricity; (b) the account-holder or any member of the account-holder’s household is an Aboriginal person; or (c) the account-holder or any member of the account-holder’s household regularly uses, for medical purposes, an electricity-intensive medical device at the dwelling to which the account relates. | H93: 2_ONTARIO ELECTRICITY SUPPORT PROGRAM RECIPIENTS | AA93: Class I comprises account-holders with a household income and household size described under paragraphs (a) or (b) of Class F who also meet any of the following conditions: (a) the dwelling to which the account relates is heated primarily by electricity; (b) the account-holder or any member of the account-holder’s household is an Aboriginal person; or (c) the account-holder or any member of the account-holder’s household regularly uses, for medical purposes, an electricity-intensive medical device at the dwelling to which the account relates.
B94: OESP Credit | D94: $ | E94: -75 | H94: 2_ONTARIO ELECTRICITY SUPPORT PROGRAM RECIPIENTS | I94: T | M94: 2_ONTARIO ELECTRICITY SUPPORT PROGRAM RECIPIENTS_OESP CREDIT_CLASS I | Z94: OESP Credit | AS94: X
B95: GENERAL SERVICE LESS THAN 50 KW SERVICE CLASSIFICATION | H95: 3_GENERAL SERVICE LESS THAN 50 kW SERVICE CLASSIFICATION | AA95: GENERAL SERVICE LESS THAN 50 KW SERVICE CLASSIFICATION
B96: This classification applies to a non residential account taking electricity at 750 volts or less whose average monthly maximum demand is less than, or is forecast to be less than, 50 kW. Further servicing details are available in the distributor’s Conditions of Service. | H96: 3_GENERAL SERVICE LESS THAN 50 kW SERVICE CLASSIFICATION | AA96: This classification applies to a non residential account taking electricity at 750 volts or less whose average monthly maximum demand is less than, or is forecast to be less than, 50 kW. Further servicing details are available in the distributor’s Conditions of Service.
B98: APPLICATION | H98: 3_APPLICATION | AA98: APPLICATION
B100: The application of these rates and charges shall be in accordance with the Licence of the Distributor and any Code or Order of the Board, and amendments thereto as approved by the Board, which may be applicable to the administration of this schedule. | H100: 3_GENERAL SERVICE LESS THAN 50 kW SERVICE CLASSIFICATION | AA100: The application of these rates and charges shall be in accordance with the Licence of the Distributor and any Code or Order of the Board, and amendments thereto as approved by the Board, which may be applicable to the administration of this schedule.
B102: No rates and charges for the distribution of electricity and charges to meet the costs of any work or service done or furnished for the purpose of the distribution of electricity shall be made except as permitted by this schedule, unless required by the Distributor’s Licence or a Code or Order of the Board, and amendments thereto as approved by the Board, or as specified herein. | H102: 3_GENERAL SERVICE LESS THAN 50 kW SERVICE CLASSIFICATION | AA102: No rates and charges for the distribution of electricity and charges to meet the costs of any work or service done or furnished for the purpose of the distribution of electricity shall be made except as permitted by this schedule, unless required by the Distributor’s Licence or a Code or Order of the Board, and amendments thereto as approved by the Board, or as specified herein.
B104: Unless specifically noted, this schedule does not contain any charges for the electricity commodity, be it under the Regulated Price Plan, a contract with a retailer or the wholesale market price, as applicable. In addition, the charges in the MONTHLY RATES AND CHARGES – Regulatory Component of this schedule do not apply to a customer that is an embedded wholesale market participant. | H104: 3_GENERAL SERVICE LESS THAN 50 kW SERVICE CLASSIFICATION | AA104: Unless specifically noted, this schedule does not contain any charges for the electricity commodity, be it under the Regulated Price Plan, a contract with a retailer or the wholesale market price, as applicable. In addition, the charges in the MONTHLY RATES AND CHARGES – Regulatory Component of this schedule do not apply to a customer that is an embedded wholesale market participant.
B106: It should be noted that this schedule does not list any charges, assessments or credits that are required by law to be invoiced by a distributor and that are not subject to Board approval, such as the Debt Retirement Charge, the Global Adjustment, the Ontario Clean Energy Benefit and the HST. | H106: 3_GENERAL SERVICE LESS THAN 50 kW SERVICE CLASSIFICATION | AA106: It should be noted that this schedule does not list any charges, assessments or credits that are required by law to be invoiced by a distributor and that are not subject to Board approval, such as the Debt Retirement Charge, the Global Adjustment, the Ontario Clean Energy Benefit and the HST.
B108: MONTHLY RATES AND CHARGES - Delivery Component | H108: 3_MRC_Del | AA108: MONTHLY RATES AND CHARGES - Delivery Component
B110: Service Charge | D110: $ | E110: 31.25 | H110: 3_GENERAL SERVICE LESS THAN 50 kW SERVICE CLASSIFICATION | I110: A | M110: 3_GENERAL SERVICE LESS THAN 50 kW SERVICE CLASSIFICATION_MSC | Z110: Service Charge
B111: Rate Rider for Smart Metering Entity Charge - effective until October 31, 2018 | D111: $ | E111: 0.79 | H111: 3_GENERAL SERVICE LESS THAN 50 kW SERVICE CLASSIFICATION | I111: B | M111: 3_GENERAL SERVICE LESS THAN 50 kW SERVICE CLASSIFICATION_SME | Q111: 2018-10-31 | Z111: Rate Rider for Smart Metering Entity Charge - effective until October 31, 2018
B112: Distribution Volumetric Rate | D112: $/kWh | E112: 0.0137 | H112: 3_GENERAL SERVICE LESS THAN 50 kW SERVICE CLASSIFICATION | I112: A | M112: 3_GENERAL SERVICE LESS THAN 50 kW SERVICE CLASSIFICATION_DVC | Z112: Distribution Volumetric Rate
B113: Low Voltage Service Rate | D113: $/kWh | E113: 0.001 | H113: 3_GENERAL SERVICE LESS THAN 50 kW SERVICE CLASSIFICATION | I113: B | M113: 3_GENERAL SERVICE LESS THAN 50 kW SERVICE CLASSIFICATION_LV | Z113: Low Voltage Service Rate
B114: Rate Rider for Disposition of Deferral/Variance Accounts (2015) - effective until April 30, 2016 | D114: $/kWh | E114: -0.0028 | H114: 3_GENERAL SERVICE LESS THAN 50 kW SERVICE CLASSIFICATION | I114: B | M114: 3_GENERAL SERVICE LESS THAN 50 kW SERVICE CLASSIFICATION_DEFVAR_ALL | Q114: 2016-04-30 | R114: X | Z114: Rate Rider for Disposition of Deferral/Variance Accounts (2015) - effective until April 30, 2016
B115: Rate Rider for Disposition of Global Adjustment Account (2015) - effective until April 30, 2016 Applicable only for Non RPP Customers | D115: $/kWh | E115: 0.0028 | H115: 3_GENERAL SERVICE LESS THAN 50 kW SERVICE CLASSIFICATION | I115: B | M115: 3_GENERAL SERVICE LESS THAN 50 kW SERVICE CLASSIFICATION_GA_kwh | Q115: 2016-04-30 | R115: X | Z115: Rate Rider for Disposition of Global Adjustment Account (2015) - effective until April 30, 2016 Applicable only for Non RPP Customers
B116: Retail Transmission Rate - Network Service Rate | D116: $/kWh | E116: 0.005814424199 | H116: 3_GENERAL SERVICE LESS THAN 50 kW SERVICE CLASSIFICATION | I116: C | M116: 3_GENERAL SERVICE LESS THAN 50 kW SERVICE CLASSIFICATION_Retail Transmission Rate - Network Service Rate | Z116: Retail Transmission Rate - Network Service Rate
B117: Retail Transmission Rate - Line and Transformation Connection Service Rate | D117: $/kWh | E117: 0.003064413602 | H117: 3_GENERAL SERVICE LESS THAN 50 kW SERVICE CLASSIFICATION | I117: C | M117: 3_GENERAL SERVICE LESS THAN 50 kW SERVICE CLASSIFICATION_Retail Transmission Rate - Line and Transformation Connection Service Rate | Z117: Retail Transmission Rate - Line and Transformation Connection Service Rate
B119: MONTHLY RATES AND CHARGES - Regulatory Component | H119: 3_MRC_Reg | Z119: MONTHLY RATES AND CHARGES - Regulatory Component
B121: Wholesale Market Service Rate | D121: $/kWh | E121: 0.0044 | H121: 3_GENERAL SERVICE LESS THAN 50 kW SERVICE CLASSIFICATION | I121: T | M121: 3_GENERAL SERVICE LESS THAN 50 kW SERVICE CLASSIFICATION_WMSR | Z121: Wholesale Market Service Rate
B122: Rural or Remote Electricity Rate Protection Charge (RRRP) | D122: $/kWh | E122: 0.0013 | H122: 3_GENERAL SERVICE LESS THAN 50 kW SERVICE CLASSIFICATION | I122: T | M122: 3_GENERAL SERVICE LESS THAN 50 kW SERVICE CLASSIFICATION_RRRP | Z122: Rural or Remote Electricity Rate Protection Charge (RRRP)
B123: Standard Supply Service - Administrative Charge (if applicable) | D123: $ | E123: 0.25 | H123: 3_GENERAL SERVICE LESS THAN 50 kW SERVICE CLASSIFICATION | I123: T | M123: 3_GENERAL SERVICE LESS THAN 50 kW SERVICE CLASSIFICATION_SSS | Z123: Standard Supply Service - Administrative Charge (if applicable) | AS123: X
B124: GENERAL SERVICE 50 TO 4,999 KW SERVICE CLASSIFICATION | H124: 4_GENERAL SERVICE 50 TO 4,999 KW SERVICE CLASSIFICATION | AA124: GENERAL SERVICE 50 TO 4,999 KW SERVICE CLASSIFICATION
B125: This classification applies to a non residential account whose average monthly maximum demand used for billing purposes is equal to or greater than, or is forecast to be equal to or greater than, 50 kW but less than 5,000 kW. Further servicing details are available in the distributor’s Conditions of Service. | H125: 4_GENERAL SERVICE 50 TO 4,999 KW SERVICE CLASSIFICATION | AA125: This classification applies to a non residential account whose average monthly maximum demand used for billing purposes is equal to or greater than, or is forecast to be equal to or greater than, 50 kW but less than 5,000 kW. Further servicing details are available in the distributor’s Conditions of Service.
B127: APPLICATION | H127: 4_APPLICATION | AA127: APPLICATION
B129: The application of these rates and charges shall be in accordance with the Licence of the Distributor and any Code or Order of the Board, and amendments thereto as approved by the Board, which may be applicable to the administration of this schedule. | H129: 4_GENERAL SERVICE 50 TO 4,999 KW SERVICE CLASSIFICATION | AA129: The application of these rates and charges shall be in accordance with the Licence of the Distributor and any Code or Order of the Board, and amendments thereto as approved by the Board, which may be applicable to the administration of this schedule.
B131: No rates and charges for the distribution of electricity and charges to meet the costs of any work or service done or furnished for the purpose of the distribution of electricity shall be made except as permitted by this schedule, unless required by the Distributor’s Licence or a Code or Order of the Board, and amendments thereto as approved by the Board, or as specified herein. | H131: 4_GENERAL SERVICE 50 TO 4,999 KW SERVICE CLASSIFICATION | AA131: No rates and charges for the distribution of electricity and charges to meet the costs of any work or service done or furnished for the purpose of the distribution of electricity shall be made except as permitted by this schedule, unless required by the Distributor’s Licence or a Code or Order of the Board, and amendments thereto as approved by the Board, or as specified herein.
B133: Unless specifically noted, this schedule does not contain any charges for the electricity commodity, be it under the Regulated Price Plan, a contract with a retailer or the wholesale market price, as applicable. In addition, the charges in the MONTHLY RATES AND CHARGES – Regulatory Component of this schedule do not apply to a customer that is an embedded wholesale market participant. | H133: 4_GENERAL SERVICE 50 TO 4,999 KW SERVICE CLASSIFICATION | AA133: Unless specifically noted, this schedule does not contain any charges for the electricity commodity, be it under the Regulated Price Plan, a contract with a retailer or the wholesale market price, as applicable. In addition, the charges in the MONTHLY RATES AND CHARGES – Regulatory Component of this schedule do not apply to a customer that is an embedded wholesale market participant.
B135: It should be noted that this schedule does not list any charges, assessments or credits that are required by law to be invoiced by a distributor and that are not subject to Board approval, such as the Debt Retirement Charge, the Global Adjustment, the Ontario Clean Energy Benefit and the HST. | H135: 4_GENERAL SERVICE 50 TO 4,999 KW SERVICE CLASSIFICATION | AA135: It should be noted that this schedule does not list any charges, assessments or credits that are required by law to be invoiced by a distributor and that are not subject to Board approval, such as the Debt Retirement Charge, the Global Adjustment, the Ontario Clean Energy Benefit and the HST.
B137: MONTHLY RATES AND CHARGES - Delivery Component | H137: 4_MRC_Del | AA137: MONTHLY RATES AND CHARGES - Delivery Component
B139: Service Charge | D139: $ | E139: 189.27 | H139: 4_GENERAL SERVICE 50 TO 4,999 KW SERVICE CLASSIFICATION | I139: A | M139: 4_GENERAL SERVICE 50 TO 4,999 KW SERVICE CLASSIFICATION_MSC | Z139: Service Charge
B140: Distribution Volumetric Rate | D140: $/kW | E140: 2.5331 | H140: 4_GENERAL SERVICE 50 TO 4,999 KW SERVICE CLASSIFICATION | I140: A | M140: 4_GENERAL SERVICE 50 TO 4,999 KW SERVICE CLASSIFICATION_DVC | Z140: Distribution Volumetric Rate
B141: Low Voltage Service Rate | D141: $/kW | E141: 0.3564 | H141: 4_GENERAL SERVICE 50 TO 4,999 KW SERVICE CLASSIFICATION | I141: B | M141: 4_GENERAL SERVICE 50 TO 4,999 KW SERVICE CLASSIFICATION_LV | Z141: Low Voltage Service Rate
B142: Rate Rider for Disposition of Deferral/Variance Accounts (2015) - effective until April 30, 2016 | D142: $/kW | E142: -1.0933 | H142: 4_GENERAL SERVICE 50 TO 4,999 KW SERVICE CLASSIFICATION | I142: B | M142: 4_GENERAL SERVICE 50 TO 4,999 KW SERVICE CLASSIFICATION_DEFVAR_ALL | Q142: 2016-04-30 | R142: X | Z142: Rate Rider for Disposition of Deferral/Variance Accounts (2015) - effective until April 30, 2016
B143: Rate Rider for Disposition of Global Adjustment Account (2015) - effective until April 30, 2016 Applicable only for Non RPP Customers | D143: $/kW | E143: 1.0496 | H143: 4_GENERAL SERVICE 50 TO 4,999 KW SERVICE CLASSIFICATION | I143: B | M143: 4_GENERAL SERVICE 50 TO 4,999 KW SERVICE CLASSIFICATION_GA_kw | Q143: 2016-04-30 | R143: X | Z143: Rate Rider for Disposition of Global Adjustment Account (2015) - effective until April 30, 2016 Applicable only for Non RPP Customers
B144: Retail Transmission Rate - Network Service Rate | D144: $/kW | E144: 2.366756604 | H144: 4_GENERAL SERVICE 50 TO 4,999 KW SERVICE CLASSIFICATION | I144: C | M144: 4_GENERAL SERVICE 50 TO 4,999 KW SERVICE CLASSIFICATION_Retail Transmission Rate - Network Service Rate | Z144: Retail Transmission Rate - Network Service Rate
B145: Retail Transmission Rate - Line and Transformation Connection Service Rate | D145: $/kW | E145: 1.156624609 | H145: 4_GENERAL SERVICE 50 TO 4,999 KW SERVICE CLASSIFICATION | I145: C | M145: 4_GENERAL SERVICE 50 TO 4,999 KW SERVICE CLASSIFICATION_Retail Transmission Rate - Line and Transformation Connection Service Rate | Z145: Retail Transmission Rate - Line and Transformation Connection Service Rate
B147: MONTHLY RATES AND CHARGES - Regulatory Component | H147: 4_MRC_Reg | Z147: MONTHLY RATES AND CHARGES - Regulatory Component
B149: Wholesale Market Service Rate | D149: $/kWh | E149: 0.0044 | H149: 4_GENERAL SERVICE 50 TO 4,999 KW SERVICE CLASSIFICATION | I149: T | M149: 4_GENERAL SERVICE 50 TO 4,999 KW SERVICE CLASSIFICATION_WMSR | Z149: Wholesale Market Service Rate
B150: Rural or Remote Electricity Rate Protection Charge (RRRP) | D150: $/kWh | E150: 0.0013 | H150: 4_GENERAL SERVICE 50 TO 4,999 KW SERVICE CLASSIFICATION | I150: T | M150: 4_GENERAL SERVICE 50 TO 4,999 KW SERVICE CLASSIFICATION_RRRP | Z150: Rural or Remote Electricity Rate Protection Charge (RRRP)
B151: Standard Supply Service - Administrative Charge (if applicable) | D151: $ | E151: 0.25 | H151: 4_GENERAL SERVICE 50 TO 4,999 KW SERVICE CLASSIFICATION | I151: T | M151: 4_GENERAL SERVICE 50 TO 4,999 KW SERVICE CLASSIFICATION_SSS | Z151: Standard Supply Service - Administrative Charge (if applicable) | AS151: X
B152: UNMETERED SCATTERED LOAD SERVICE CLASSIFICATION | H152: 5_UNMETERED SCATTERED LOAD SERVICE CLASSIFICATION | AA152: UNMETERED SCATTERED LOAD SERVICE CLASSIFICATION
B153: This classification applies to an account taking electricity at 750 volts or less whose average monthly maximum demand is less than, or is forecast to be less than, 50 kW and the consumption is unmetered. Such connections include cable TV power packs, bus shelters, telephone booths, traffic lights, railway crossings, etc. The customer will provide detailed manufacturer information/documentation with regard to electrical consumption of the unmetered load. Further servicing details are available in the distributor’s Conditions of Service. | H153: 5_UNMETERED SCATTERED LOAD SERVICE CLASSIFICATION | AA153: This classification applies to an account taking electricity at 750 volts or less whose average monthly maximum demand is less than, or is forecast to be less than, 50 kW and the consumption is unmetered. Such connections include cable TV power packs, bus shelters, telephone booths, traffic lights, railway crossings, etc. The customer will provide detailed manufacturer information/documentation with regard to electrical consumption of the unmetered load. Further servicing details are available in the distributor’s Conditions of Service.
B155: APPLICATION | H155: 5_APPLICATION | AA155: APPLICATION
B157: The application of these rates and charges shall be in accordance with the Licence of the Distributor and any Code or Order of the Board, and amendments thereto as approved by the Board, which may be applicable to the administration of this schedule. | H157: 5_UNMETERED SCATTERED LOAD SERVICE CLASSIFICATION | AA157: The application of these rates and charges shall be in accordance with the Licence of the Distributor and any Code or Order of the Board, and amendments thereto as approved by the Board, which may be applicable to the administration of this schedule.
B159: No rates and charges for the distribution of electricity and charges to meet the costs of any work or service done or furnished for the purpose of the distribution of electricity shall be made except as permitted by this schedule, unless required by the Distributor’s Licence or a Code or Order of the Board, and amendments thereto as approved by the Board, or as specified herein. | H159: 5_UNMETERED SCATTERED LOAD SERVICE CLASSIFICATION | AA159: No rates and charges for the distribution of electricity and charges to meet the costs of any work or service done or furnished for the purpose of the distribution of electricity shall be made except as permitted by this schedule, unless required by the Distributor’s Licence or a Code or Order of the Board, and amendments thereto as approved by the Board, or as specified herein.
B161: Unless specifically noted, this schedule does not contain any charges for the electricity commodity, be it under the Regulated Price Plan, a contract with a retailer or the wholesale market price, as applicable. In addition, the charges in the MONTHLY RATES AND CHARGES – Regulatory Component of this schedule do not apply to a customer that is an embedded wholesale market participant. | H161: 5_UNMETERED SCATTERED LOAD SERVICE CLASSIFICATION | AA161: Unless specifically noted, this schedule does not contain any charges for the electricity commodity, be it under the Regulated Price Plan, a contract with a retailer or the wholesale market price, as applicable. In addition, the charges in the MONTHLY RATES AND CHARGES – Regulatory Component of this schedule do not apply to a customer that is an embedded wholesale market participant.
B163: It should be noted that this schedule does not list any charges, assessments or credits that are required by law to be invoiced by a distributor and that are not subject to Board approval, such as the Debt Retirement Charge, the Global Adjustment, the Ontario Clean Energy Benefit and the HST | H163: 5_UNMETERED SCATTERED LOAD SERVICE CLASSIFICATION | AA163: It should be noted that this schedule does not list any charges, assessments or credits that are required by law to be invoiced by a distributor and that are not subject to Board approval, such as the Debt Retirement Charge, the Global Adjustment, the Ontario Clean Energy Benefit and the HST
B165: MONTHLY RATES AND CHARGES - Delivery Component | H165: 5_MRC_Del | AA165: MONTHLY RATES AND CHARGES - Delivery Component
B167: Service Charge (per customer) | D167: $ | E167: 43.63 | H167: 5_UNMETERED SCATTERED LOAD SERVICE CLASSIFICATION | I167: A | M167: 5_UNMETERED SCATTERED LOAD SERVICE CLASSIFICATION_MSC | Z167: Service Charge (per customer)
B168: Distribution Volumetric Rate | D168: $/kWh | E168: 0.0099 | H168: 5_UNMETERED SCATTERED LOAD SERVICE CLASSIFICATION | I168: A | M168: 5_UNMETERED SCATTERED LOAD SERVICE CLASSIFICATION_DVC | Z168: Distribution Volumetric Rate
B169: Low Voltage Service Rate | D169: $/kWh | E169: 0.001 | H169: 5_UNMETERED SCATTERED LOAD SERVICE CLASSIFICATION | I169: B | M169: 5_UNMETERED SCATTERED LOAD SERVICE CLASSIFICATION_LV | Z169: Low Voltage Service Rate
B170: Rate Rider for Disposition of Deferral/Variance Accounts (2015) - effective until April 30, 2016 | D170: $/kWh | E170: -0.0024 | H170: 5_UNMETERED SCATTERED LOAD SERVICE CLASSIFICATION | I170: B | M170: 5_UNMETERED SCATTERED LOAD SERVICE CLASSIFICATION_DEFVAR_ALL | Q170: 2016-04-30 | R170: X | Z170: Rate Rider for Disposition of Deferral/Variance Accounts (2015) - effective until April 30, 2016
B171: Rate Rider for Disposition of Global Adjustment Account (2015) - effective until April 30, 2016 Applicable only for Non RPP Customers | D171: $/kWh | E171: 0.0028 | H171: 5_UNMETERED SCATTERED LOAD SERVICE CLASSIFICATION | I171: B | M171: 5_UNMETERED SCATTERED LOAD SERVICE CLASSIFICATION_GA_kwh | Q171: 2016-04-30 | R171: X | Z171: Rate Rider for Disposition of Global Adjustment Account (2015) - effective until April 30, 2016 Applicable only for Non RPP Customers
B172: Retail Transmission Rate - Network Service Rate | D172: $/kWh | E172: 0.005814424199 | H172: 5_UNMETERED SCATTERED LOAD SERVICE CLASSIFICATION | I172: C | M172: 5_UNMETERED SCATTERED LOAD SERVICE CLASSIFICATION_Retail Transmission Rate - Network Service Rate | Z172: Retail Transmission Rate - Network Service Rate
B173: Retail Transmission Rate - Line and Transformation Connection Service Rate | D173: $/kWh | E173: 0.003064413602 | H173: 5_UNMETERED SCATTERED LOAD SERVICE CLASSIFICATION | I173: C | M173: 5_UNMETERED SCATTERED LOAD SERVICE CLASSIFICATION_Retail Transmission Rate - Line and Transformation Connection Service Rate | Z173: Retail Transmission Rate - Line and Transformation Connection Service Rate
B175: MONTHLY RATES AND CHARGES - Regulatory Component | H175: 5_MRC_Reg | Z175: MONTHLY RATES AND CHARGES - Regulatory Component
B177: Wholesale Market Service Rate | D177: $/kWh | E177: 0.0044 | H177: 5_UNMETERED SCATTERED LOAD SERVICE CLASSIFICATION | I177: T | M177: 5_UNMETERED SCATTERED LOAD SERVICE CLASSIFICATION_WMSR | Z177: Wholesale Market Service Rate
B178: Rural or Remote Electricity Rate Protection Charge (RRRP) | D178: $/kWh | E178: 0.0013 | H178: 5_UNMETERED SCATTERED LOAD SERVICE CLASSIFICATION | I178: T | M178: 5_UNMETERED SCATTERED LOAD SERVICE CLASSIFICATION_RRRP | Z178: Rural or Remote Electricity Rate Protection Charge (RRRP)
B179: Standard Supply Service - Administrative Charge (if applicable) | D179: $ | E179: 0.25 | H179: 5_UNMETERED SCATTERED LOAD SERVICE CLASSIFICATION | I179: T | M179: 5_UNMETERED SCATTERED LOAD SERVICE CLASSIFICATION_SSS | Z179: Standard Supply Service - Administrative Charge (if applicable) | AS179: X
B180: STREET LIGHTING SERVICE CLASSIFICATION | H180: 6_STREET LIGHTING SERVICE CLASSIFICATION | AA180: STREET LIGHTING SERVICE CLASSIFICATION
B181: This classification applies to an account for roadway lighting with a Municipality, Regional Municipality, Ministry of Transportation and private roadway lighting, controlled by photo cells. The consumption for these customers will be based on the calculated connected load times the required lighting times established in the approved OEB street lighting load shape template. Further servicing details are available in the distributor’s Conditions of Service. | H181: 6_STREET LIGHTING SERVICE CLASSIFICATION | AA181: This classification applies to an account for roadway lighting with a Municipality, Regional Municipality, Ministry of Transportation and private roadway lighting, controlled by photo cells. The consumption for these customers will be based on the calculated connected load times the required lighting times established in the approved OEB street lighting load shape template. Further servicing details are available in the distributor’s Conditions of Service.
B183: APPLICATION | H183: 6_APPLICATION | AA183: APPLICATION
B185: The application of these rates and charges shall be in accordance with the Licence of the Distributor and any Code or Order of the Board, and amendments thereto as approved by the Board, which may be applicable to the administration of this schedule. | H185: 6_STREET LIGHTING SERVICE CLASSIFICATION | AA185: The application of these rates and charges shall be in accordance with the Licence of the Distributor and any Code or Order of the Board, and amendments thereto as approved by the Board, which may be applicable to the administration of this schedule.
B187: No rates and charges for the distribution of electricity and charges to meet the costs of any work or service done or furnished for the purpose of the distribution of electricity shall be made except as permitted by this schedule, unless required by the Distributor’s Licence or a Code or Order of the Board, and amendments thereto as approved by the Board, or as specified herein. | H187: 6_STREET LIGHTING SERVICE CLASSIFICATION | AA187: No rates and charges for the distribution of electricity and charges to meet the costs of any work or service done or furnished for the purpose of the distribution of electricity shall be made except as permitted by this schedule, unless required by the Distributor’s Licence or a Code or Order of the Board, and amendments thereto as approved by the Board, or as specified herein.
B189: Unless specifically noted, this schedule does not contain any charges for the electricity commodity, be it under the Regulated Price Plan, a contract with a retailer or the wholesale market price, as applicable. In addition, the charges in the MONTHLY RATES AND CHARGES – Regulatory Component of this schedule do not apply to a customer that is an embedded wholesale market participant. | H189: 6_STREET LIGHTING SERVICE CLASSIFICATION | AA189: Unless specifically noted, this schedule does not contain any charges for the electricity commodity, be it under the Regulated Price Plan, a contract with a retailer or the wholesale market price, as applicable. In addition, the charges in the MONTHLY RATES AND CHARGES – Regulatory Component of this schedule do not apply to a customer that is an embedded wholesale market participant.
B191: It should be noted that this schedule does not list any charges, assessments or credits that are required by law to be invoiced by a distributor and that are not subject to Board approval, such as the Debt Retirement Charge, the Global Adjustment, the Ontario Clean Energy Benefit and the HST. | H191: 6_STREET LIGHTING SERVICE CLASSIFICATION | AA191: It should be noted that this schedule does not list any charges, assessments or credits that are required by law to be invoiced by a distributor and that are not subject to Board approval, such as the Debt Retirement Charge, the Global Adjustment, the Ontario Clean Energy Benefit and the HST.
B193: MONTHLY RATES AND CHARGES - Delivery Component | H193: 6_MRC_Del | AA193: MONTHLY RATES AND CHARGES - Delivery Component
B195: Service Charge (per connection) | D195: $ | E195: 2.95 | H195: 6_STREET LIGHTING SERVICE CLASSIFICATION | I195: A | M195: 6_STREET LIGHTING SERVICE CLASSIFICATION_MSC | Z195: Service Charge (per connection)
B196: Distribution Volumetric Rate | D196: $/kW | E196: 7.2483 | H196: 6_STREET LIGHTING SERVICE CLASSIFICATION | I196: A | M196: 6_STREET LIGHTING SERVICE CLASSIFICATION_DVC | Z196: Distribution Volumetric Rate
B197: Low Voltage Service Rate | D197: $/kW | E197: 0.2754 | H197: 6_STREET LIGHTING SERVICE CLASSIFICATION | I197: B | M197: 6_STREET LIGHTING SERVICE CLASSIFICATION_LV | Z197: Low Voltage Service Rate
B198: Rate Rider for Disposition of Deferral/Variance Accounts (2015) - effective until April 30, 2016 | D198: $/kW | E198: -0.9231 | H198: 6_STREET LIGHTING SERVICE CLASSIFICATION | I198: B | M198: 6_STREET LIGHTING SERVICE CLASSIFICATION_DEFVAR_ALL | Q198: 2016-04-30 | R198: X | Z198: Rate Rider for Disposition of Deferral/Variance Accounts (2015) - effective until April 30, 2016
B199: Rate Rider for Disposition of Global Adjustment Account (2015) - effective until April 30, 2016 Applicable only for Non RPP Customers | D199: $/kW | E199: 0.993 | H199: 6_STREET LIGHTING SERVICE CLASSIFICATION | I199: B | M199: 6_STREET LIGHTING SERVICE CLASSIFICATION_GA_kw | Q199: 2016-04-30 | R199: X | Z199: Rate Rider for Disposition of Global Adjustment Account (2015) - effective until April 30, 2016 Applicable only for Non RPP Customers
B200: Retail Transmission Rate - Network Service Rate | D200: $/kW | E200: 1.784932911 | H200: 6_STREET LIGHTING SERVICE CLASSIFICATION | I200: C | M200: 6_STREET LIGHTING SERVICE CLASSIFICATION_Retail Transmission Rate - Network Service Rate | Z200: Retail Transmission Rate - Network Service Rate
B201: Retail Transmission Rate - Line and Transformation Connection Service Rate | D201: $/kW | E201: 0.8941384314 | H201: 6_STREET LIGHTING SERVICE CLASSIFICATION | I201: C | M201: 6_STREET LIGHTING SERVICE CLASSIFICATION_Retail Transmission Rate - Line and Transformation Connection Service Rate | Z201: Retail Transmission Rate - Line and Transformation Connection Service Rate
B203: MONTHLY RATES AND CHARGES - Regulatory Component | H203: 6_MRC_Reg | Z203: MONTHLY RATES AND CHARGES - Regulatory Component
B205: Wholesale Market Service Rate | D205: $/kWh | E205: 0.0044 | H205: 6_STREET LIGHTING SERVICE CLASSIFICATION | I205: T | M205: 6_STREET LIGHTING SERVICE CLASSIFICATION_WMSR | Z205: Wholesale Market Service Rate
B206: Rural or Remote Electricity Rate Protection Charge (RRRP) | D206: $/kWh | E206: 0.0013 | H206: 6_STREET LIGHTING SERVICE CLASSIFICATION | I206: T | M206: 6_STREET LIGHTING SERVICE CLASSIFICATION_RRRP | Z206: Rural or Remote Electricity Rate Protection Charge (RRRP)
B207: Standard Supply Service - Administrative Charge (if applicable) | D207: $ | E207: 0.25 | H207: 6_STREET LIGHTING SERVICE CLASSIFICATION | I207: T | M207: 6_STREET LIGHTING SERVICE CLASSIFICATION_SSS | Z207: Standard Supply Service - Administrative Charge (if applicable) | AS207: X
B208: microFIT SERVICE CLASSIFICATION | H208: 7_microFIT SERVICE CLASSIFICATION | AA208: microFIT SERVICE CLASSIFICATION
B209: This classification applies to an electricity generation facility contracted under the Ontario Power Authority’s microFIT program and connected to the distributor’s distribution system. Further servicing details are available in the distributor’s Conditions of Service. | H209: 7_microFIT SERVICE CLASSIFICATION | AA209: This classification applies to an electricity generation facility contracted under the Ontario Power Authority’s microFIT program and connected to the distributor’s distribution system. Further servicing details are available in the distributor’s Conditions of Service.
B211: APPLICATION | H211: 7_APPLICATION | AA211: APPLICATION
B213: The application of these rates and charges shall be in accordance with the Licence of the Distributor and any Code or Order of the Board, and amendments thereto as approved by the Board, which may be applicable to the administration of this schedule. | H213: 7_microFIT SERVICE CLASSIFICATION | AA213: The application of these rates and charges shall be in accordance with the Licence of the Distributor and any Code or Order of the Board, and amendments thereto as approved by the Board, which may be applicable to the administration of this schedule.
B215: No rates and charges for the distribution of electricity and charges to meet the costs of any work or service done or furnished for the purpose of the distribution of electricity shall be made except as permitted by this schedule, unless required by the Distributor’s Licence or a Code or Order of the Board, and amendments thereto as approved by the Board, or as specified herein. | H215: 7_microFIT SERVICE CLASSIFICATION | AA215: No rates and charges for the distribution of electricity and charges to meet the costs of any work or service done or furnished for the purpose of the distribution of electricity shall be made except as permitted by this schedule, unless required by the Distributor’s Licence or a Code or Order of the Board, and amendments thereto as approved by the Board, or as specified herein.
B217: Unless specifically noted, this schedule does not contain any charges for the electricity commodity, be it under the Regulated Price Plan, a contract with a retailer or the wholesale market price, as applicable. | H217: 7_microFIT SERVICE CLASSIFICATION | AA217: Unless specifically noted, this schedule does not contain any charges for the electricity commodity, be it under the Regulated Price Plan, a contract with a retailer or the wholesale market price, as applicable.
B219: It should be noted that this schedule does not list any charges, assessments or credits that are required by law to be invoiced by a distributor and that are not subject to Board approval, such as the Debt Retirement Charge, the Global Adjustment, the Ontario Clean Energy Benefit and the HST. | H219: 7_microFIT SERVICE CLASSIFICATION | AA219: It should be noted that this schedule does not list any charges, assessments or credits that are required by law to be invoiced by a distributor and that are not subject to Board approval, such as the Debt Retirement Charge, the Global Adjustment, the Ontario Clean Energy Benefit and the HST.
B221: MONTHLY RATES AND CHARGES - Delivery Component | H221: 7_MRC_Del | AA221: MONTHLY RATES AND CHARGES - Delivery Component
B223: Service Charge | D223: $ | E223: 5.4 | H223: 7_microFIT SERVICE CLASSIFICATION | I223: A | M223: 7_microFIT SERVICE CLASSIFICATION_MSC | Z223: Service Charge
AS224: X
B225: ALLOWANCES | H225: Renfrew Hydro Inc._ALLOWANCES
B226: Transformer Allowance for Ownership - per kW of billing demand/month | D226: $/kW | E226: -0.6 | Z226: Transformer Allowance for Ownership - per kW of billing demand/month
B227: Primary Metering Allowance for transformer losses – applied to measured demand and energy | D227: % | E227: -1 | I227: T | Z227: Primary Metering Allowance for transformer losses – applied to measured demand and energy | AS227: X
B228: SPECIFIC SERVICE CHARGES | H228: Renfrew Hydro Inc._SSC
B229: The application of these rates and charges shall be in accordance with the Licence of the Distributor and any Code or Order of the Board, and amendments thereto as approved by the Board, which may be applicable to the administration of this schedule. | AA229: The application of these rates and charges shall be in accordance with the Licence of the Distributor and any Code or Order of the Board, and amendments thereto as approved by the Board, which may be applicable to the administration of this schedule.
B231: No charges to meet the costs of any work or service done or furnished for the purpose of the distribution of electricity shall be made except as permitted by this schedule, unless required by the Distributor’s Licence or a Code or Order of the Board, and amendments thereto as approved by the Board, or as specified herein. | AA231: No charges to meet the costs of any work or service done or furnished for the purpose of the distribution of electricity shall be made except as permitted by this schedule, unless required by the Distributor’s Licence or a Code or Order of the Board, and amendments thereto as approved by the Board, or as specified herein.
B233: It should be noted that this schedule does not list any charges, assessments, or credits that are required by law to be invoiced by a distributor and that are not subject to Board approval, such as the Debt Retirement Charge, the Global Adjustment, the Ontario Clean Energy Benefit and the HST. | AA233: It should be noted that this schedule does not list any charges, assessments, or credits that are required by law to be invoiced by a distributor and that are not subject to Board approval, such as the Debt Retirement Charge, the Global Adjustment, the Ontario Clean Energy Benefit and the HST.
B235: Customer Administration | H235: Renfrew Hydro Inc._CA
B236: Easement Letter | D236: $ | E236: 15 | Z236: Easement Letter
B237: Account History | D237: $ | E237: 15 | Z237: Account History
B238: Arrears Certificate | D238: $ | E238: 15 | Z238: Arrears Certificate
B239: Account Set Up Charge/Change of Occupancy Charge (plus credit agency costs if applicable) | D239: $ | E239: 30 | Z239: Account Set Up Charge/Change of Occupancy Charge (plus credit agency costs if applicable)
B240: Returned Cheque Charge (plus bank charges) | D240: $ | E240: 15 | Z240: Returned Cheque Charge (plus bank charges)
B242: Non-Payment of Account | H242: Renfrew Hydro Inc._NPoA
B243: Late Payment Charge – per month | D243: % | E243: 1.5 | Z243: Late Payment Charge – per month
B244: Late Payment Charge – per annum | D244: % | E244: 19.56 | Z244: Late Payment Charge – per annum
B245: Collection of Account Charge – no disconnection | D245: $ | E245: 30 | Z245: Collection of Account Charge – no disconnection
B246: Disconnect/Reconnect at meter – during regular hours | D246: $ | E246: 65 | Z246: Disconnect/Reconnect at meter – during regular hours
B248: Other
B249: Specific Charge for Access to the Power Poles - per pole/year | D249: $ | E249: 22.35 | Z249: Specific Charge for Access to the Power Poles - per pole/year | AS249: X
B250: RETAIL SERVICE CHARGES (if applicable) | H250: Renfrew Hydro Inc._RSC
B252: The application of these rates and charges shall be in accordance with the Licence of the Distributor and any Code or Order of the Board, and amendments thereto as approved by the Board, which may be applicable to the administration of this schedule. | AA252: The application of these rates and charges shall be in accordance with the Licence of the Distributor and any Code or Order of the Board, and amendments thereto as approved by the Board, which may be applicable to the administration of this schedule.
B254: No rates and charges for the distribution of electricity and charges to meet the costs of any work or service done or furnished for the purpose of the distribution of electricity shall be made except as permitted by this schedule, unless required by the Distributor’s Licence or a Code or Order of the Board, and amendments thereto as approved by the Board, or as specified herein. | AA254: No rates and charges for the distribution of electricity and charges to meet the costs of any work or service done or furnished for the purpose of the distribution of electricity shall be made except as permitted by this schedule, unless required by the Distributor’s Licence or a Code or Order of the Board, and amendments thereto as approved by the Board, or as specified herein.
B256: Unless specifically noted, this schedule does not contain any charges for the electricity commodity, be it under the Regulated Price Plan, a contract with a retailer or the wholesale market price, as applicable. | AA256: Unless specifically noted, this schedule does not contain any charges for the electricity commodity, be it under the Regulated Price Plan, a contract with a retailer or the wholesale market price, as applicable.
B258: It should be noted that this schedule does not list any charges, assessments, or credits that are required by law to be invoiced by a distributor and that are not subject to Board approval, such as the Debt Retirement Charge, the Global Adjustment, the Ontario Clean Energy Benefit and the HST. | AA258: It should be noted that this schedule does not list any charges, assessments, or credits that are required by law to be invoiced by a distributor and that are not subject to Board approval, such as the Debt Retirement Charge, the Global Adjustment, the Ontario Clean Energy Benefit and the HST.
B260: Retail Service Charges refer to services provided by a distributor to retailers or customers related to the supply of competitive electricity. | AA260: Retail Service Charges refer to services provided by a distributor to retailers or customers related to the supply of competitive electricity.
B261: One-time charge, per retailer, to establish the service agreement between the distributor and the retailer | D261: $ | E261: 100 | Z261: One-time charge, per retailer, to establish the service agreement between the distributor and the retailer
B262: Monthly Fixed Charge, per retailer | D262: $ | E262: 20 | Z262: Monthly Fixed Charge, per retailer
B263: Monthly Variable Charge, per customer, per retailer | D263: $/cust. | E263: 0.5 | Z263: Monthly Variable Charge, per customer, per retailer
B264: Distributor-consolidated billing monthly charge, per customer, per retailer | D264: $/cust. | E264: 0.3 | Z264: Distributor-consolidated billing monthly charge, per customer, per retailer
B265: Retailer-consolidated billing monthly credit, per customer, per retailer | D265: $/cust. | E265: -0.3 | Z265: Retailer-consolidated billing monthly credit, per customer, per retailer
B266: Service Transaction Requests (STR) | Z266: Service Transaction Requests (STR)
B267: Request fee, per request, applied to the requesting party | D267: $ | E267: 0.25 | Z267: Request fee, per request, applied to the requesting party
B268: Processing fee, per request, applied to the requesting party | D268: $ | E268: 0.5 | Z268: Processing fee, per request, applied to the requesting party
B269: Request for customer information as outlined in Section 10.6.3 and Chapter 11 of the Retail | Z269: Request for customer information as outlined in Section 10.6.3 and Chapter 11 of the Retail
B270: Settlement Code directly to retailers and customers, if not delivered electronically through the | Z270: Settlement Code directly to retailers and customers, if not delivered electronically through the
B271: Electronic Business Transaction (EBT) system, applied to the requesting party | Z271: Electronic Business Transaction (EBT) system, applied to the requesting party
B272: Up to twice a year | D272: $ | E272: no charge | Z272: Up to twice a year
B273: More than twice a year, per request (plus incremental delivery costs) | D273: $ | E273: 2 | Z273: More than twice a year, per request (plus incremental delivery costs)
AS274: X
B275: LOSS FACTORS | H275: Renfrew Hydro Inc._LFs
B277: If the distributor is not capable of prorating changed loss factors jointly with distribution rates, the revised loss factors will be implemented upon the first subsequent billing for each billing cycle. | AA277: If the distributor is not capable of prorating changed loss factors jointly with distribution rates, the revised loss factors will be implemented upon the first subsequent billing for each billing cycle.
B278: Total Loss Factor – Secondary Metered Customer < 5,000 kW | E278: 1.081 | Z278: Total Loss Factor – Secondary Metered Customer < 5,000 kW
B279: Total Loss Factor – Primary Metered Customer < 5,000 kW | E279: 1.0702 | G279: Renfrew Hydro Inc._End | Z279: Total Loss Factor – Primary Metered Customer < 5,000 kW

Sheet 2016 List (hidden)
A1: Algoma Power Inc. | B1: HHPNS717 | C1: Fort Erie Service Area | D1: X | I1: RESIDENTIAL SERVICE CLASSIFICATION | Q1: RESIDENTIAL SERVICE CLASSIFICATION | X1: 7 | Y1: 0
A2: Atikokan Hydro Inc. | B2: WKBSV849 | C2: Eastern Ontario Power Service Area | D2: X | I2: GENERAL SERVICE LESS THAN 50 kW SERVICE CLASSIFICATION | Q2: GENERAL SERVICE LESS THAN 50 kW SERVICE CLASSIFICATION | AA2: Retail Transmission Rate - Line and Transformation Connection Service Rate
A3: Bluewater Power Distribution Corporation | B3: NJYBW716 | C3: Port Colborne Service Area | I3: GENERAL SERVICE 50 TO 4,999 KW SERVICE CLASSIFICATION | Q3: GENERAL SERVICE 50 TO 4,999 KW SERVICE CLASSIFICATION | AA3: Retail Transmission Rate - Line and Transformation Connection Service Rate - < 1,000 kW
A4: Brant County Power Inc. | B4: GQQHM388 | D4: X | I4: UNMETERED SCATTERED LOAD SERVICE CLASSIFICATION | Q4: UNMETERED SCATTERED LOAD SERVICE CLASSIFICATION | AA4: Retail Transmission Rate - Line and Transformation Connection Service Rate - Interval Metered
A5: Brantford Power Inc. | B5: SFXZP935 | C5: Former Chatham-Kent Hydro Service Area | D5: X | I5: STREET LIGHTING SERVICE CLASSIFICATION | Q5: STREET LIGHTING SERVICE CLASSIFICATION | AA5: Retail Transmission Rate - Line and Transformation Connection Service Rate - Interval Metered (1,000 to 4,999 kW)
A6: Burlington Hydro Inc. | B6: OARZC118 | C6: Strathroy, Mount Brydges & Parkhill Service Area | I6: microFIT SERVICE CLASSIFICATION | AA6: Retail Transmission Rate - Line and Transformation Connection Service Rate - Interval Metered < 1,000 kW
A7: Cambridge and North Dumfries Hydro Inc. | B7: HJHBH994 | C7: Dutton Service Area | AA7: Retail Transmission Rate - Line and Transformation Connection Service Rate - Interval Metered > 1,000 kW
A8: Canadian Niagara Power Inc. | B8: KQEEH473 | C8: Newbury Service Area | D8: X | AA8: Retail Transmission Rate - Line Connection Service Rate
A9: Centre Wellington Hydro Ltd. | B9: CPEFQ593 | AA9: Retail Transmission Rate - Transformation Connection Service Rate
A10: Chapleau Public Utilities Corporation | B10: QXHJU641 | C10: Former Lakeland Power Service Area
A11: Collus PowerStream Corp. | B11: AVXSO594 | C11: Former Parry Sound Service Area
A12: Cooperative Hydro Embrun Inc. | B12: JMNNR431
A13: E.L.K. Energy Inc. | B13: JKBZG525
A14: Enersource Hydro Mississauga Inc. | B14: YEOQG654
A15: Entegrus Powerlines Inc. | B15: PTLUC812
A16: EnWin Utilities Ltd. | B16: ADICB565
A17: Erie Thames Powerlines Corporation | B17: LRECV427
A18: Espanola Regional Hydro Distribution Corporation | B18: KTCNY552
A19: Essex Powerlines Corporation | B19: YEPCI143 | D19: X
A20: Festival Hydro Inc. | B20: GRHTW113 | D20: X | AA20: Retail Transmission Rate - Network Service Rate
A21: Fort Frances Power Corporation | B21: GMGHU415 | AA21: Retail Transmission Rate - Network Service Rate - < 1,000 kW
A22: Greater Sudbury Hydro Inc. | B22: YTPWF351 | AA22: Retail Transmission Rate - Network Service Rate - Interval Metered
A23: Grimsby Power Incorporated | B23: YCYKQ642 | AA23: Retail Transmission Rate - Network Service Rate - Interval Metered (1,000 to 4,999 kW)
A24: Guelph Hydro Electric Systems Inc. | B24: ADZFM459 | AA24: Retail Transmission Rate - Network Service Rate - Interval Metered < 1,000 kW
A25: Haldimand County Hydro Inc. | B25: RVWKN794 | AA25: Retail Transmission Rate - Network Service Rate - Interval Metered > 1,000 kW
A26: Halton Hills Hydro Inc. | B26: KESKM585
A27: Hearst Power Distribution Company Ltd. | B27: MQFNL784
A28: Horizon Utilities Corporation | B28: FNDHH648
A29: Hydro 2000 Inc. | B29: PTREM828
A30: Hydro Hawkesbury Inc. | B30: UBBYF452
A31: Hydro One Brampton Networks Inc. | B31: NSBED625
A32: Hydro One Networks Inc. (Norfolk Power Distribution Inc.) | B32: TXKTT167
A33: Hydro One Remote Communities Inc. | B33: ZHKLA874
A34: Hydro Ottawa Limited | B34: YLJHT264
A35: InnPower Corporation | B35: YLCEC559
A36: Kenora Hydro Electric Corporation Ltd. | B36: NHKJF259
A37: Kingston Hydro Corporation | B37: SLRXO177
A38: Kitchener-Wilmot Hydro Inc. | B38: UIFEM157 | D38: X
A39: Lakefront Utilities Inc. | B39: RUZIU984 | D39: X
A40: Lakeland Power Distribution Ltd. | B40: KSUYD122 | D40: X
A41: London Hydro Inc. | B41: QHCKN852 | D41: X
A42: Midland Power Utility Corporation | B42: FUIJX538
A43: Milton Hydro Distribution Inc. | B43: PWKJP953
A44: Newmarket - Tay Power Distribution Ltd. | B44: JEGGW178
A45: Niagara Peninsula Energy Inc. | B45: TVKSH414
A46: Niagara-on-the-Lake Hydro Inc. | B46: DUISI693 | D46: X
A47: North Bay Hydro Distribution Limited | B47: PQZCY963 | D47: X
A48: Northern Ontario Wires Inc. | B48: GTLBW445
A49: Oakville Hydro Electricity Distribution Inc. | B49: XCFPH269
A50: Orangeville Hydro Limited | B50: MLWYG784
A51: Orillia Power Distribution Corporation | B51: QDKIF127
A52: Oshawa PUC Networks Inc. | B52: AMZEN437 | D52: X
A53: Ottawa River Power Corporation | B53: ACEVX242
A54: Peterborough Distribution Incorporated | B54: DSPWZ318
A55: PowerStream Inc. | B55: OLIUU862
A56: PUC Distribution Inc. | B56: NIOJF461 | D56: X
A57: Renfrew Hydro Inc. | B57: ZYZFO848 | D57: X
A58: Rideau St. Lawrence Distribution Inc. | B58: ASEGZ471
A59: Sioux Lookout Hydro Inc. | B59: IOKHC383
A60: St. Thomas Energy Inc. | B60: SKVKJ649
A61: Thunder Bay Hydro Electricity Distribution Inc. | B61: TPFNQ593
A62: Tillsonburg Hydro Inc. | B62: AJHXR397
A63: Toronto Hydro-Electric System Limited | B63: UNGPP815
A64: Veridian Connections Inc. | B64: MSLBK499 | D64: X
A65: Wasaga Distribution Inc. | B65: ECPNP312
A66: Waterloo North Hydro Inc. | B66: BUOOK413
A67: Welland Hydro-Electric System Corp. | B67: XIPNP764 | D67: X
A68: Wellington North Power Inc. | B68: TGBET947
A69: West Coast Huron Energy Inc. | B69: FMUAU699
A70: Westario Power Inc. | B70: AZRAQ913
A71: Whitby Hydro Electric Corporation | B71: OBBVP345
A72: Woodstock Hydro Services Inc. | B72: KBILT676

Sheet 3. Regulatory Charges
B12: Update the following rates if an OEB Decision has been issued at the time of completing this application
D13: Proposed
B14: Wholesale Market Service Rate | C14: $/kWh | D14: 0.0036
B15: Rural or Remote Electricity Rate Protection Charge (RRRP) | C15: $/kWh | D15: 0.0013
B16: Standard Supply Service - Administrative Charge (if applicable) | C16: $ | D16: 0.25
B17: Ontario Electricity Support Program (OESP) | C17: $/kWh | D17: 0.0011

Sheet 4.2-TS Tariff Schedule
CP1: File Number: | CQ1: ='1. Information Sheet'!F18 -> EB-2016-0166 | DA1: TRUE
CP2: Exhibit:
B3: Macro has been activated
B9: For each class, Applicants are required to copy and paste the class descriptions (located directly under the class name) and the description of the applicability of those rates (description is found under the class name and directly under the word "APPLICATION"). By using the drop-down lists located under the column labeled "Rate Description", please select the descriptions of the rates and charges that BEST MATCHES the descriptions on your most recent OEB-Approved Tariff of Rates and Charges. If the description is not found in the drop-down list, please enter the description in the green shaded cells under the correct class exactly as it appears on the tariff. Please do not enter more than one "Service Charge" for each class for which a base monthly fixed charge applies. All rate rider descriptions should begin with "Rate Rider for...". A value must be entered in Column I for every tariff item. Available values are “A”, “B”, “C” and “T”. These correspond with sub-totals A, B, C and the total bill, and determine where specific rates and rate rider charges appear on the bill impacts page. Please see General Tip #8 starting on Page 5 of the instructions document for a brief explanation of the different sub-totals categories.
B10: Select the appropriate rate classes as they appear on your most recent OEB-Approved Tariff of Rates and Charges, including the microFIT Class. | CD10: Click this check box if all input is correct
B11: How many classes are listed on your most recent OEB-Approved Tariff of Rates and Charges? | E11: 6
F12: X | G12: Atikokan Hydro Inc._Start | H12: Atikokan Hydro Inc. | J12: 6
B14: Identify Your Rate Classes in the Blue Cells below. Rate class names can be selected from the pull-dwon menu. Please ensure that a rate class is assigned to each shaded cell.
B15: List of Rate Classes | CD15: Linked to: | CG15: Add before:
B16: RESIDENTIAL SERVICE CLASSIFICATION
B17: GENERAL SERVICE LESS THAN 50 kW SERVICE CLASSIFICATION | AS17: X
B18: GENERAL SERVICE 50 TO 4,999 KW SERVICE CLASSIFICATION | AA18: GENERAL SERVICE 50 TO 4,999 KW SERVICE CLASSIFICATION | AS18: X
B19: UNMETERED SCATTERED LOAD SERVICE CLASSIFICATION | AA19: UNMETERED SCATTERED LOAD SERVICE CLASSIFICATION | AS19: X
B20: STREET LIGHTING SERVICE CLASSIFICATION | AA20: STREET LIGHTING SERVICE CLASSIFICATION | AS20: X
B21: microFIT SERVICE CLASSIFICATION | AA21: microFIT SERVICE CLASSIFICATION
B30: Renfrew Hydro Inc. | F30: X | G30: Renfrew Hydro Inc._Start | H30: RENFREW HYDRO INC. | J30: 7 | V30: 18 | AA30: Renfrew Hydro Inc.
B31: TARIFF OF RATES AND CHARGES | V31: 27 | AA31: TARIFF OF RATES AND CHARGES
B32: Effective and Implementation Date January 1, 2017 | P32: 2015-05-01 | V32: 49 | AA32: Effective and Implementation Date January 1, 2017
B33: This schedule supersedes and replaces all previously | V33: 52 | AA33: This schedule supersedes and replaces all previously
B34: approved schedules of Rates, Charges and Loss Factors | V34: 53 | AA34: approved schedules of Rates, Charges and Loss Factors
B35: ='1. Information Sheet'!F18 -> EB-2016-0166 | H35: EB-2016-0166 | V35: 12 | AA35: EB-2016-0166 | AS35: X
AS36: X
B37: RESIDENTIAL SERVICE CLASSIFICATION | H37: 1_RESIDENTIAL SERVICE CLASSIFICATION | V37: 34 | AA37: RESIDENTIAL SERVICE CLASSIFICATION
B38: This classification applies to an account taking electricity at 750 volts or less where the electricity is used exclusively in a separate metered living accommodation. Customers shall be residing in single-dwelling units that consist of a detached house or one unit of a semi-detached, duplex, triplex or quadruplex house, with a residential zoning. Separately metered dwellings within a town house complex or apartment building also qualify as residential customers. Further servicing details are available in the distributor's Conditions of Service. | H38: 1_RESIDENTIAL SERVICE CLASSIFICATION | V38: 551 | AA38: This classification applies to an account taking electricity at 750 volts or less where the electricity is used exclusively in a separate metered living accommodation. Customers shall be residing in single-dwelling units that consist of a detached house or one unit of a semi-detached, duplex, triplex or quadruplex house, with a residential zoning. Separately metered dwellings within a town house complex or apartment building also qualify as residential customers. Further servicing details are available in the distributor's Conditions of Service.
B40: APPLICATION | H40: 1_APPLICATION | V40: 11 | AA40: APPLICATION
B42: The application of these rates and charges shall be in accordance with the Licence of the Distributor and any Code or Order of the Board, and amendments thereto as approved by the Board, which may be applicable to the administration of this schedule. | H42: 1_RESIDENTIAL SERVICE CLASSIFICATION | V42: 250 | AA42: The application of these rates and charges shall be in accordance with the Licence of the Distributor and any Code or Order of the Board, and amendments thereto as approved by the Board, which may be applicable to the administration of this schedule.
B44: No rates and charges for the distribution of electricity and charges to meet the costs of any work or service done or furnished for the purpose of the distribution of electricity shall be made except as permitted by this schedule, unless required by the Distributor's Licence or a Code or Order of the Board, and amendments thereto as approved by the Board, or as specified herein. | H44: 1_RESIDENTIAL SERVICE CLASSIFICATION | V44: 381 | AA44: No rates and charges for the distribution of electricity and charges to meet the costs of any work or service done or furnished for the purpose of the distribution of electricity shall be made except as permitted by this schedule, unless required by the Distributor's Licence or a Code or Order of the Board, and amendments thereto as approved by the Board, or as specified herein.
B46: Unless specifically noted, this schedule does not contain any charges for the electricity commodity, be it under the Regulated Price Plan, a contract with a retailer or the wholesale market price, as applicable. In addition, the charges in the MONTHLY RATES AND CHARGES – Regulatory Component of this schedule do not apply to a customer that is an embedded wholesale market participant. | H46: 1_RESIDENTIAL SERVICE CLASSIFICATION | V46: 390 | AA46: Unless specifically noted, this schedule does not contain any charges for the electricity commodity, be it under the Regulated Price Plan, a contract with a retailer or the wholesale market price, as applicable. In addition, the charges in the MONTHLY RATES AND CHARGES – Regulatory Component of this schedule do not apply to a customer that is an embedded wholesale market participant.
B48: It should be noted that this schedule does not list any charges, assessments or credits that are required by law to be invoiced by a distributor and that are not subject to Board approval, such as the Debt Retirement Charge, the Global Adjustment, the Ontario Clean Energy Benefit and the HST. | H48: 1_RESIDENTIAL SERVICE CLASSIFICATION | V48: 293 | AA48: It should be noted that this schedule does not list any charges, assessments or credits that are required by law to be invoiced by a distributor and that are not subject to Board approval, such as the Debt Retirement Charge, the Global Adjustment, the Ontario Clean Energy Benefit and the HST.
B50: MONTHLY RATES AND CHARGES - Delivery Component | H50: 1_MRC_DEL | V50: 46 | AA50: MONTHLY RATES AND CHARGES - Delivery Component
B52: Service Charge | D52: $ | E52: 18.32 | H52: 1_RESIDENTIAL SERVICE CLASSIFICATION | I52: A | M52: 1_RESIDENTIAL SERVICE CLASSIFICATION_MSC | V52: 5 | Z52: Service Charge
B53: Rate Rider for Smart Metering Entity Charge - effective until October 31, 2018 | D53: $ | E53: 0.79 | H53: 1_RESIDENTIAL SERVICE CLASSIFICATION | I53: B | M53: 1_RESIDENTIAL SERVICE CLASSIFICATION_SME | Q53: 2018-10-31 | V53: 4 | Z53: Rate Rider for Smart Metering Entity Charge - effective until October 31, 2018
B54: Distribution Volumetric Rate | D54: $/kWh | E54: 0.0123 | H54: 1_RESIDENTIAL SERVICE CLASSIFICATION | I54: A | M54: 1_RESIDENTIAL SERVICE CLASSIFICATION_DVC | V54: 6 | Z54: Distribution Volumetric Rate
B55: Rate Rider for Stranded Meter (2017) - effective until December 31, 2021 | D55: $ | E55: 0.14 | H55: 1_RESIDENTIAL SERVICE CLASSIFICATION | I55: A | M55: 1_RESIDENTIAL SERVICE CLASSIFICATION_SMA | V55: 4 | Z55: Rate Rider for Stranded Meter (2017) - effective until December 31, 2021
B56: Rate Rider for Smart Meter Disposition (2017) - effective until December 31, 2020 | D56: $ | E56: 1.42 | H56: 1_RESIDENTIAL SERVICE CLASSIFICATION | I56: A | M56: 1_RESIDENTIAL SERVICE CLASSIFICATION_FX_RR_3 | V56: 4 | Z56: Rate Rider for Smart Meter Disposition (2017) - effective until December 31, 2020
B57: Rate Rider for Disposition of Deferral/Variance Accounts (2017) - effective until December 31, 2020 | D57: $/kWh | E57: 0.0014 | H57: 1_RESIDENTIAL SERVICE CLASSIFICATION | I57: B | M57: 1_RESIDENTIAL SERVICE CLASSIFICATION_DEFVAR_ALL | V57: 6 | Z57: Rate Rider for Disposition of Deferral/Variance Accounts (2017) - effective until December 31, 2020
B58: Rate Rider for Disposition of Deferral/Variance Accounts - NON_WMP (2017) - effective until December 31, 2020 | D58: $/kWh | E58: -0.0006 | H58: 1_RESIDENTIAL SERVICE CLASSIFICATION | I58: B | M58: 1_RESIDENTIAL SERVICE CLASSIFICATION_DEFVAR_ALL | V58: 7 | Z58: Rate Rider for Disposition of Deferral/Variance Accounts - NON_WMP (2017) - effective until December 31, 2020
B59: Rate Rider for Disposition of Global Adjustment Account (2017) - effective until December 31, 2020 Applicable only for Non-RPP Customers | D59: $/kWh | E59: 0.0038 | H59: 1_RESIDENTIAL SERVICE CLASSIFICATION | I59: B | M59: 1_RESIDENTIAL SERVICE CLASSIFICATION_GA_kwh | V59: 6 | Z59: Rate Rider for Disposition of Global Adjustment Account (2017) - effective until December 31, 2020 Applicable only for Non-RPP Customers
B60: Rate Rider for Disposition of Gr 2 Deferral/Variance Accounts (2017) - effective until December 31, 2020 | D60: $ | E60: 0.41 | H60: 1_RESIDENTIAL SERVICE CLASSIFICATION | I60: A | M60: 1_RESIDENTIAL SERVICE CLASSIFICATION_DEFVAR_ALL | V60: 4 | Z60: Rate Rider for Disposition of Gr 2 Deferral/Variance Accounts (2017) - effective until December 31, 2020
B61: Rate Rider for Accounting Changes in CGAAP (2017) - effective until December 31, 2020 | D61: $ | E61: -1.5452 | H61: 1_RESIDENTIAL SERVICE CLASSIFICATION | I61: A | M61: 1_RESIDENTIAL SERVICE CLASSIFICATION_FX_RR_5 | V61: 7 | Z61: Rate Rider for Accounting Changes in CGAAP (2017) - effective until December 31, 2020
B62: Rate Rider for Disposition of Lost Revenue Adjustment Mechanism Variance Account (2017) - effective until December 31, 2020 | D62: $/kWh | E62: 0.0002 | H62: 1_RESIDENTIAL SERVICE CLASSIFICATION | I62: A | M62: 1_RESIDENTIAL SERVICE CLASSIFICATION_LRAM | V62: 6 | Z62: Rate Rider for Disposition of Lost Revenue Adjustment Mechanism Variance Account (2017) - effective until December 31, 2020
B63: Low Voltage Service Rate | D63: $/kWh | E63: 0.0011 | H63: 1_RESIDENTIAL SERVICE CLASSIFICATION | I63: B | M63: 1_RESIDENTIAL SERVICE CLASSIFICATION_LV | V63: 6 | Z63: Low Voltage Service Rate
B64: Retail Transmission Rate - Network Service Rate | D64: $/kWh | E64: 0.006386334776 | H64: 1_RESIDENTIAL SERVICE CLASSIFICATION | I64: C | M64: 1_RESIDENTIAL SERVICE CLASSIFICATION_Retail Transmission Rate - Network Service Rate | V64: 20 | Z64: Retail Transmission Rate - Network Service Rate
B65: Retail Transmission Rate - Line and Transformation Connection Service Rate | D65: $/kWh | E65: 0.0035 | H65: 1_RESIDENTIAL SERVICE CLASSIFICATION | I65: C | M65: 1_RESIDENTIAL SERVICE CLASSIFICATION_Retail Transmission Rate - Line and Transformation Connection Service Rate | V65: 6 | Z65: Retail Transmission Rate - Line and Transformation Connection Service Rate
B67: MONTHLY RATES AND CHARGES - Regulatory Component | H67: 1_MRC_REG | V67: 48 | Z67: MONTHLY RATES AND CHARGES - Regulatory Component
B69: Wholesale Market Service Rate | D69: $/kWh | E69: 0.0036 | H69: 1_RESIDENTIAL SERVICE CLASSIFICATION | I69: T | M69: 1_RESIDENTIAL SERVICE CLASSIFICATION_WMSR | V69: 6 | Z69: Wholesale Market Service Rate
B70: Rural or Remote Electricity Rate Protection Charge (RRRP) | D70: $/kWh | E70: 0.0013 | H70: 1_RESIDENTIAL SERVICE CLASSIFICATION | I70: T | M70: 1_RESIDENTIAL SERVICE CLASSIFICATION_RRRP | V70: 6 | Z70: Rural or Remote Electricity Rate Protection Charge (RRRP)
B71: Ontario Electricity Support Program Charge (OESP) | D71: $/kWh | E71: 0.0011 | H71: 1_RESIDENTIAL SERVICE CLASSIFICATION | I71: T | M71: 1_RESIDENTIAL SERVICE CLASSIFICATION_OESPR | V71: 6 | Z71: Ontario Electricity Support Program Charge (OESP)
B72: Standard Supply Service - Administrative Charge (if applicable) | D72: $ | E72: 0.25 | H72: 1_RESIDENTIAL SERVICE CLASSIFICATION | I72: T | M72: 1_RESIDENTIAL SERVICE CLASSIFICATION_SSS | V72: 4 | Z72: Standard Supply Service - Administrative Charge (if applicable) | AS72: X
B73: ONTARIO ELECTRICITY SUPPORT PROGRAM RECIPIENTS | H73: 2_ONTARIO ELECTRICITY SUPPORT PROGRAM RECIPIENTS | V73: 46 | AA73: ONTARIO ELECTRICITY SUPPORT PROGRAM RECIPIENTS
B74: In addition to the charges specified on page 1 of this tariff of rates and charges, the following credits are to be applied to eligible residential customers. | H74: 2_ONTARIO ELECTRICITY SUPPORT PROGRAM RECIPIENTS | V74: 158 | AA74: In addition to the charges specified on page 1 of this tariff of rates and charges, the following credits are to be applied to eligible residential customers.
B76: APPLICATION | H76: 2_APPLICATION | V76: 11 | AA76: APPLICATION
B78: The application of the charges are in accordance with the Distribution System Code (Section 9) and subsection 79.2(4) of the Ontario Energy Board Act, 1998. | H78: 2_ONTARIO ELECTRICITY SUPPORT PROGRAM RECIPIENTS | V78: 156 | AA78: The application of the charges are in accordance with the Distribution System Code (Section 9) and subsection 79.2(4) of the Ontario Energy Board Act, 1998.
B79: The application of these charges shall be in accordance with the Licence of the Distributor and any Code or Order of the Ontario Energy Board, and amendments thereto as approved by the Ontario Energy Board, which may be applicable to the administration of this schedule. | H79: 2_ONTARIO ELECTRICITY SUPPORT PROGRAM RECIPIENTS | V79: 270 | AA79: The application of these charges shall be in accordance with the Licence of the Distributor and any Code or Order of the Ontario Energy Board, and amendments thereto as approved by the Ontario Energy Board, which may be applicable to the administration of this schedule.
B80: In this class: “Aboriginal person” includes a person who is a First Nations person, a Métis person or an Inuit person; “account-holder” means a consumer who has an account with a distributor that falls within a residential-rate classification as specified in a rate order made by the Ontario Energy Board under section 78 of the Act, and who lives at the service address to which the account relates for at least six months in a year; “electricity-intensive medical device” means an oxygen concentrator, a mechanical ventilator, or such other device as may be specified by the Ontario Energy Board; “household” means the account-holder and any other people living at the accountholder’s service address for at least six months in a year, including people other than the account-holder’s spouse, children or other relatives; “household income” means the combined annual after-tax income of all members of a household aged 16 or over; | H80: 2_ONTARIO ELECTRICITY SUPPORT PROGRAM RECIPIENTS | V80: 933 | AA80: In this class: “Aboriginal person” includes a person who is a First Nations person, a Métis person or an Inuit person; “account-holder” means a consumer who has an account with a distributor that falls within a residential-rate classification as specified in a rate order made by the Ontario Energy Board under section 78 of the Act, and who lives at the service address to which the account relates for at least six months in a year; “electricity-intensive medical device” means an oxygen concentrator, a mechanical ventilator, or such other device as may be specified by the Ontario Energy Board; “household” means the account-holder and any other people living at the accountholder’s service address for at least six months in a year, including people other than the account-holder’s spouse, children or other relatives; “household income” means the combined annual after-tax income of all members of a household aged 16 or over;
B82: MONTHLY RATES AND CHARGES | H82: 2_MRC | V82: 25 | AA82: MONTHLY RATES AND CHARGES
B85: Class A | H85: 2_ONTARIO ELECTRICITY SUPPORT PROGRAM RECIPIENTS | V85: 7 | Z85: Class A
B86: (a) account-holders with a household income of $28,000 or less living in a household of one or two persons; (b) account-holders with a household income of between $28,001 and $39,000 living in a household of three persons; (c) account-holders with a household income of between $39,001 and $48,000 living in a household of five persons; and (d) account-holders with a household income of between $48,001 and $52,000 living in a household of seven or more persons; but does not include account-holders in Class E. | H86: 2_ONTARIO ELECTRICITY SUPPORT PROGRAM RECIPIENTS | V86: 512 | AA86: (a) account-holders with a household income of $28,000 or less living in a household of one or two persons; (b) account-holders with a household income of between $28,001 and $39,000 living in a household of three persons; (c) account-holders with a household income of between $39,001 and $48,000 living in a household of five persons; and (d) account-holders with a household income of between $48,001 and $52,000 living in a household of seven or more persons; but does not include account-holders in Class E.
B87: OESP Credit | D87: $ | E87: -30 | H87: 2_ONTARIO ELECTRICITY SUPPORT PROGRAM RECIPIENTS | I87: T | M87: 2_ONTARIO ELECTRICITY SUPPORT PROGRAM RECIPIENTS_OESP CREDIT_CLASS A | V87: 3 | Z87: OESP Credit
B89: Class B | H89: 2_ONTARIO ELECTRICITY SUPPORT PROGRAM RECIPIENTS | V89: 7 | Z89: Class B
B90: (a) account-holders with a household income of $28,000 or less living in a household of three persons; (b) account-holders with a household income of between $28,001 and $39,000 living in a household of four persons; (c) account-holders with a household income of between $39,001 and $48,000 living in a household of six persons; but does not include account-holders in Class F. | H90: 2_ONTARIO ELECTRICITY SUPPORT PROGRAM RECIPIENTS | V90: 378 | AA90: (a) account-holders with a household income of $28,000 or less living in a household of three persons; (b) account-holders with a household income of between $28,001 and $39,000 living in a household of four persons; (c) account-holders with a household income of between $39,001 and $48,000 living in a household of six persons; but does not include account-holders in Class F.
B91: OESP Credit | D91: $ | E91: -34 | H91: 2_ONTARIO ELECTRICITY SUPPORT PROGRAM RECIPIENTS | I91: T | M91: 2_ONTARIO ELECTRICITY SUPPORT PROGRAM RECIPIENTS_OESP CREDIT_CLASS B | V91: 3 | Z91: OESP Credit
B93: Class C | H93: 2_ONTARIO ELECTRICITY SUPPORT PROGRAM RECIPIENTS | V93: 7 | Z93: Class C
B94: (a) account-holders with a household income of $28,000 or less living in a household of four persons; (b) account-holders with a household income of between $28,001 and $39,000 living in a household of five persons; (c) account-holders with a household income of between $39,001 and $48,000 living in a household of seven or more persons; but does not include account-holders in Class G. | H94: 2_ONTARIO ELECTRICITY SUPPORT PROGRAM RECIPIENTS | V94: 387 | AA94: (a) account-holders with a household income of $28,000 or less living in a household of four persons; (b) account-holders with a household income of between $28,001 and $39,000 living in a household of five persons; (c) account-holders with a household income of between $39,001 and $48,000 living in a household of seven or more persons; but does not include account-holders in Class G.
B95: OESP Credit | D95: $ | E95: -38 | H95: 2_ONTARIO ELECTRICITY SUPPORT PROGRAM RECIPIENTS | I95: T | M95: 2_ONTARIO ELECTRICITY SUPPORT PROGRAM RECIPIENTS_OESP CREDIT_CLASS C | V95: 3 | Z95: OESP Credit
B97: Class D | H97: 2_ONTARIO ELECTRICITY SUPPORT PROGRAM RECIPIENTS | V97: 7 | Z97: Class D
B98: (a) account-holders with a household income of $28,000 or less living in a household of five persons; and (b) account-holders with a household income of between $28,001 and $39,000 living in a household of six persons; but does not include account-holders in Class H. | H98: 2_ONTARIO ELECTRICITY SUPPORT PROGRAM RECIPIENTS | V98: 267 | AA98: (a) account-holders with a household income of $28,000 or less living in a household of five persons; and (b) account-holders with a household income of between $28,001 and $39,000 living in a household of six persons; but does not include account-holders in Class H.
B99: OESP Credit | D99: $ | E99: -42 | H99: 2_ONTARIO ELECTRICITY SUPPORT PROGRAM RECIPIENTS | I99: T | M99: 2_ONTARIO ELECTRICITY SUPPORT PROGRAM RECIPIENTS_OESP CREDIT_CLASS D | V99: 3 | Z99: OESP Credit
B101: Class E | H101: 2_ONTARIO ELECTRICITY SUPPORT PROGRAM RECIPIENTS | V101: 7 | Z101: Class E
B102: Class E comprises account-holders with a household income and household size described under Class A who also meet any of the following conditions: (a) the dwelling to which the account relates is heated primarily by electricity; (b) the account-holder or any member of the account-holder’s household is an Aboriginal person; or (c) the account-holder or any member of the account-holder’s household regularly uses, for medical purposes, an electricity-intensive medical device at the dwelling to which the account relates. | H102: 2_ONTARIO ELECTRICITY SUPPORT PROGRAM RECIPIENTS | V102: 523 | AA102: Class E comprises account-holders with a household income and household size described under Class A who also meet any of the following conditions: (a) the dwelling to which the account relates is heated primarily by electricity; (b) the account-holder or any member of the account-holder’s household is an Aboriginal person; or (c) the account-holder or any member of the account-holder’s household regularly uses, for medical purposes, an electricity-intensive medical device at the dwelling to which the account relates.
B103: OESP Credit | D103: $ | E103: -45 | H103: 2_ONTARIO ELECTRICITY SUPPORT PROGRAM RECIPIENTS | I103: T | M103: 2_ONTARIO ELECTRICITY SUPPORT PROGRAM RECIPIENTS_OESP CREDIT_CLASS E | V103: 3 | Z103: OESP Credit
B105: Class F | H105: 2_ONTARIO ELECTRICITY SUPPORT PROGRAM RECIPIENTS | V105: 7 | Z105: Class F
B106: (a) account-holders with a household income of $28,000 or less living in a household of six or more persons; (b) account-holders with a household income of between $28,001 and $39,000 living in a household of seven or more persons; or (c) account-holders with a household income and household size described under Class B who also meet any of the following conditions: | H106: 2_ONTARIO ELECTRICITY SUPPORT PROGRAM RECIPIENTS | V106: 368 | AA106: (a) account-holders with a household income of $28,000 or less living in a household of six or more persons; (b) account-holders with a household income of between $28,001 and $39,000 living in a household of seven or more persons; or (c) account-holders with a household income and household size described under Class B who also meet any of the following conditions:
B107: i. the dwelling to which the account relates is heated primarily by electricity; ii. the account-holder or any member of the account-holder’s household is an Aboriginal person; or iii. the account-holder or any member of the account-holder’s household regularly uses, for medical purposes, an electricity-intensive medical device at the dwelling to which the account relates | H107: 2_ONTARIO ELECTRICITY SUPPORT PROGRAM RECIPIENTS | V107: 374 | AA107: i. the dwelling to which the account relates is heated primarily by electricity; ii. the account-holder or any member of the account-holder’s household is an Aboriginal person; or iii. the account-holder or any member of the account-holder’s household regularly uses, for medical purposes, an electricity-intensive medical device at the dwelling to which the account relates
B108: OESP Credit | D108: $ | E108: -50 | H108: 2_ONTARIO ELECTRICITY SUPPORT PROGRAM RECIPIENTS | I108: T | M108: 2_ONTARIO ELECTRICITY SUPPORT PROGRAM RECIPIENTS_OESP CREDIT_CLASS F | V108: 3 | Z108: OESP Credit
B110: Class G | H110: 2_ONTARIO ELECTRICITY SUPPORT PROGRAM RECIPIENTS | V110: 7 | Z110: Class G
B111: Class G comprises account-holders with a household income and household size described under Class C who also meet any of the following conditions: (a) the dwelling to which the account relates is heated primarily by electricity; (b) the account-holder or any member of the account-holder’s household is an Aboriginal person; or (c) the account-holder or any member of the account-holder’s household regularly uses, for medical purposes, an electricity-intensive medical device at the dwelling to which the account relates. | H111: 2_ONTARIO ELECTRICITY SUPPORT PROGRAM RECIPIENTS | V111: 523 | AA111: Class G comprises account-holders with a household income and household size described under Class C who also meet any of the following conditions: (a) the dwelling to which the account relates is heated primarily by electricity; (b) the account-holder or any member of the account-holder’s household is an Aboriginal person; or (c) the account-holder or any member of the account-holder’s household regularly uses, for medical purposes, an electricity-intensive medical device at the dwelling to which the account relates.
B112: OESP Credit | D112: $ | E112: -55 | H112: 2_ONTARIO ELECTRICITY SUPPORT PROGRAM RECIPIENTS | I112: T | M112: 2_ONTARIO ELECTRICITY SUPPORT PROGRAM RECIPIENTS_OESP CREDIT_CLASS G | V112: 3 | Z112: OESP Credit
B114: Class H | H114: 2_ONTARIO ELECTRICITY SUPPORT PROGRAM RECIPIENTS | V114: 7 | Z114: Class H
B115: Class H comprises account-holders with a household income and household size described under Class D who also meet any of the following conditions: (a) the dwelling to which the account relates is heated primarily by electricity; (b) the account-holder or any member of the account-holder’s household is an Aboriginal person ; or (c) the account-holder or any member of the account-holder’s household regularly uses, for medical purposes, an electricity-intensive medical device at the dwelling to which the account relates. | H115: 2_ONTARIO ELECTRICITY SUPPORT PROGRAM RECIPIENTS | V115: 524 | AA115: Class H comprises account-holders with a household income and household size described under Class D who also meet any of the following conditions: (a) the dwelling to which the account relates is heated primarily by electricity; (b) the account-holder or any member of the account-holder’s household is an Aboriginal person ; or (c) the account-holder or any member of the account-holder’s household regularly uses, for medical purposes, an electricity-intensive medical device at the dwelling to which the account relates.
B116: OESP Credit | D116: $ | E116: -60 | H116: 2_ONTARIO ELECTRICITY SUPPORT PROGRAM RECIPIENTS | I116: T | M116: 2_ONTARIO ELECTRICITY SUPPORT PROGRAM RECIPIENTS_OESP CREDIT_CLASS H | V116: 3 | Z116: OESP Credit
B118: Class I | H118: 2_ONTARIO ELECTRICITY SUPPORT PROGRAM RECIPIENTS | V118: 7 | Z118: Class I
B119: Class I comprises account-holders with a household income and household size described under paragraphs (a) or (b) of Class F who also meet any of the following conditions: (a) the dwelling to which the account relates is heated primarily by electricity; (b) the account-holder or any member of the account-holder’s household is an Aboriginal person; or (c) the account-holder or any member of the account-holder’s household regularly uses, for medical purposes, an electricity-intensive medical device at the dwelling to which the account relates. | H119: 2_ONTARIO ELECTRICITY SUPPORT PROGRAM RECIPIENTS | V119: 548 | AA119: Class I comprises account-holders with a household income and household size described under paragraphs (a) or (b) of Class F who also meet any of the following conditions: (a) the dwelling to which the account relates is heated primarily by electricity; (b) the account-holder or any member of the account-holder’s household is an Aboriginal person; or (c) the account-holder or any member of the account-holder’s household regularly uses, for medical purposes, an electricity-intensive medical device at the dwelling to which the account relates.
B120: OESP Credit | D120: $ | E120: -75 | H120: 2_ONTARIO ELECTRICITY SUPPORT PROGRAM RECIPIENTS | I120: T | M120: 2_ONTARIO ELECTRICITY SUPPORT PROGRAM RECIPIENTS_OESP CREDIT_CLASS I | V120: 3 | Z120: OESP Credit | AS120: X
B121: GENERAL SERVICE LESS THAN 50 KW SERVICE CLASSIFICATION | H121: 3_GENERAL SERVICE LESS THAN 50 KW SERVICE CLASSIFICATION | V121: 54 | AA121: GENERAL SERVICE LESS THAN 50 KW SERVICE CLASSIFICATION
B122: This classification applies to a non residential account taking electricity at 750 volts or less whose average monthly maximum demand is less than, or is forecast to be less than, 50 kW. Further servicing details are available in the distributor’s Conditions of Service. | H122: 3_GENERAL SERVICE LESS THAN 50 KW SERVICE CLASSIFICATION | V122: 271 | AA122: This classification applies to a non residential account taking electricity at 750 volts or less whose average monthly maximum demand is less than, or is forecast to be less than, 50 kW. Further servicing details are available in the distributor’s Conditions of Service.
B124: APPLICATION | H124: 3_APPLICATION | V124: 11 | AA124: APPLICATION
B126: The application of these rates and charges shall be in accordance with the Licence of the Distributor and any Code or Order of the Board, and amendments thereto as approved by the Board, which may be applicable to the administration of this schedule. | H126: 3_GENERAL SERVICE LESS THAN 50 KW SERVICE CLASSIFICATION | V126: 250 | AA126: The application of these rates and charges shall be in accordance with the Licence of the Distributor and any Code or Order of the Board, and amendments thereto as approved by the Board, which may be applicable to the administration of this schedule.
B128: No rates and charges for the distribution of electricity and charges to meet the costs of any work or service done or furnished for the purpose of the distribution of electricity shall be made except as permitted by this schedule, unless required by the Distributor’s Licence or a Code or Order of the Board, and amendments thereto as approved by the Board, or as specified herein. | H128: 3_GENERAL SERVICE LESS THAN 50 KW SERVICE CLASSIFICATION | V128: 381 | AA128: No rates and charges for the distribution of electricity and charges to meet the costs of any work or service done or furnished for the purpose of the distribution of electricity shall be made except as permitted by this schedule, unless required by the Distributor’s Licence or a Code or Order of the Board, and amendments thereto as approved by the Board, or as specified herein.
B130: Unless specifically noted, this schedule does not contain any charges for the electricity commodity, be it under the Regulated Price Plan, a contract with a retailer or the wholesale market price, as applicable. In addition, the charges in the MONTHLY RATES AND CHARGES – Regulatory Component of this schedule do not apply to a customer that is an embedded wholesale market participant. | H130: 3_GENERAL SERVICE LESS THAN 50 KW SERVICE CLASSIFICATION | V130: 390 | AA130: Unless specifically noted, this schedule does not contain any charges for the electricity commodity, be it under the Regulated Price Plan, a contract with a retailer or the wholesale market price, as applicable. In addition, the charges in the MONTHLY RATES AND CHARGES – Regulatory Component of this schedule do not apply to a customer that is an embedded wholesale market participant.
B132: It should be noted that this schedule does not list any charges, assessments or credits that are required by law to be invoiced by a distributor and that are not subject to Board approval, such as the Debt Retirement Charge, the Global Adjustment, the Ontario Clean Energy Benefit and the HST. | H132: 3_GENERAL SERVICE LESS THAN 50 KW SERVICE CLASSIFICATION | V132: 293 | AA132: It should be noted that this schedule does not list any charges, assessments or credits that are required by law to be invoiced by a distributor and that are not subject to Board approval, such as the Debt Retirement Charge, the Global Adjustment, the Ontario Clean Energy Benefit and the HST.
B134: MONTHLY RATES AND CHARGES - Delivery Component | H134: 3_MRC_DEL | V134: 46 | AA134: MONTHLY RATES AND CHARGES - Delivery Component
B136: Service Charge | D136: $ | E136: 31.25 | H136: 3_GENERAL SERVICE LESS THAN 50 KW SERVICE CLASSIFICATION | I136: A | M136: 3_GENERAL SERVICE LESS THAN 50 KW SERVICE CLASSIFICATION_MSC | V136: 5 | Z136: Service Charge
B137: Rate Rider for Smart Metering Entity Charge - effective until October 31, 2018 | D137: $ | E137: 0.79 | H137: 3_GENERAL SERVICE LESS THAN 50 KW SERVICE CLASSIFICATION | I137: B | M137: 3_GENERAL SERVICE LESS THAN 50 KW SERVICE CLASSIFICATION_SME | Q137: 2018-10-31 | V137: 4 | Z137: Rate Rider for Smart Metering Entity Charge - effective until October 31, 2018
B138: Distribution Volumetric Rate | D138: $/kWh | E138: 0.0171 | H138: 3_GENERAL SERVICE LESS THAN 50 KW SERVICE CLASSIFICATION | I138: A | M138: 3_GENERAL SERVICE LESS THAN 50 KW SERVICE CLASSIFICATION_DVC | V138: 6 | Z138: Distribution Volumetric Rate
B139: Rate Rider for Stranded Meter (2017) - effective until December 31, 2021 | D139: $ | E139: 0.24 | H139: 3_GENERAL SERVICE LESS THAN 50 KW SERVICE CLASSIFICATION | I139: A | M139: 3_GENERAL SERVICE LESS THAN 50 KW SERVICE CLASSIFICATION_SMA | V139: 4 | Z139: Rate Rider for Stranded Meter (2017) - effective until December 31, 2021
B140: Rate Rider for Smart Meter Disposition (2017) - effective until December 31, 2020 | D140: $ | E140: 3.1 | H140: 3_GENERAL SERVICE LESS THAN 50 KW SERVICE CLASSIFICATION | I140: A | M140: 3_GENERAL SERVICE LESS THAN 50 KW SERVICE CLASSIFICATION_FX_RR_8 | V140: 3 | Z140: Rate Rider for Smart Meter Disposition (2017) - effective until December 31, 2020
B141: Rate Rider for Disposition of Deferral/Variance Accounts (2017) - effective until December 31, 2020 | D141: $/kWh | E141: 0.0014 | H141: 3_GENERAL SERVICE LESS THAN 50 KW SERVICE CLASSIFICATION | I141: B | M141: 3_GENERAL SERVICE LESS THAN 50 KW SERVICE CLASSIFICATION_DEFVAR_ALL | V141: 6 | Z141: Rate Rider for Disposition of Deferral/Variance Accounts (2017) - effective until December 31, 2020
B142: Rate Rider for Disposition of Deferral/Variance Accounts - NON_WMP (2017) - effective until December 31, 2020 | D142: $/kWh | E142: -0.0006 | H142: 3_GENERAL SERVICE LESS THAN 50 KW SERVICE CLASSIFICATION | I142: B | M142: 3_GENERAL SERVICE LESS THAN 50 KW SERVICE CLASSIFICATION_DEFVAR_ALL | V142: 7 | Z142: Rate Rider for Disposition of Deferral/Variance Accounts - NON_WMP (2017) - effective until December 31, 2020
B143: Rate Rider for Disposition of Global Adjustment Account (2017) - effective until December 31, 2020 Applicable only for Non-RPP Customers | D143: $/kWh | E143: 0.0038 | H143: 3_GENERAL SERVICE LESS THAN 50 KW SERVICE CLASSIFICATION | I143: B | M143: 3_GENERAL SERVICE LESS THAN 50 KW SERVICE CLASSIFICATION_GA_kwh | V143: 6 | Z143: Rate Rider for Disposition of Global Adjustment Account (2017) - effective until December 31, 2020 Applicable only for Non-RPP Customers
B144: Rate Rider for Disposition of Gr 2 Deferral/Variance Accounts (2017) - effective until December 31, 2020 | D144: $/kWh | E144: 0.0006 | H144: 3_GENERAL SERVICE LESS THAN 50 KW SERVICE CLASSIFICATION | I144: A | M144: 3_GENERAL SERVICE LESS THAN 50 KW SERVICE CLASSIFICATION_DEFVAR_ALL | V144: 6 | Z144: Rate Rider for Disposition of Gr 2 Deferral/Variance Accounts (2017) - effective until December 31, 2020
B145: Rate Rider for Accounting Changes in CGAAP (2017) - effective until December 31, 2020 | D145: $/kWh | E145: -0.0025 | H145: 3_GENERAL SERVICE LESS THAN 50 KW SERVICE CLASSIFICATION | I145: A | M145: 3_GENERAL SERVICE LESS THAN 50 KW SERVICE CLASSIFICATION_VR_RR_9 | V145: 7 | Z145: Rate Rider for Accounting Changes in CGAAP (2017) - effective until December 31, 2020
B146: Rate Rider for Disposition of Lost Revenue Adjustment Mechanism Variance Account (2017) - effective until December 31, 2020 | D146: $/kWh | E146: 0.0002 | H146: 3_GENERAL SERVICE LESS THAN 50 KW SERVICE CLASSIFICATION | I146: A | M146: 3_GENERAL SERVICE LESS THAN 50 KW SERVICE CLASSIFICATION_LRAM | V146: 6 | Z146: Rate Rider for Disposition of Lost Revenue Adjustment Mechanism Variance Account (2017) - effective until December 31, 2020
B147: Low Voltage Service Rate | D147: $/kWh | E147: 0.001 | H147: 3_GENERAL SERVICE LESS THAN 50 KW SERVICE CLASSIFICATION | I147: B | M147: 3_GENERAL SERVICE LESS THAN 50 KW SERVICE CLASSIFICATION_LV | V147: 5 | Z147: Low Voltage Service Rate
B148: Retail Transmission Rate - Network Service Rate | D148: $/kWh | E148: 0.005814424199 | H148: 3_GENERAL SERVICE LESS THAN 50 KW SERVICE CLASSIFICATION | I148: C | M148: 3_GENERAL SERVICE LESS THAN 50 KW SERVICE CLASSIFICATION_Retail Transmission Rate - Network Service Rate | V148: 20 | Z148: Retail Transmission Rate - Network Service Rate
B149: Retail Transmission Rate - Line and Transformation Connection Service Rate | D149: $/kWh | E149: 0.0033 | H149: 3_GENERAL SERVICE LESS THAN 50 KW SERVICE CLASSIFICATION | I149: C | M149: 3_GENERAL SERVICE LESS THAN 50 KW SERVICE CLASSIFICATION_Retail Transmission Rate - Line and Transformation Connection Service Rate | V149: 6 | Z149: Retail Transmission Rate - Line and Transformation Connection Service Rate
B151: MONTHLY RATES AND CHARGES - Regulatory Component | H151: 3_MRC_REG | V151: 48 | Z151: MONTHLY RATES AND CHARGES - Regulatory Component
B153: Wholesale Market Service Rate | D153: $/kWh | E153: 0.0036 | H153: 3_GENERAL SERVICE LESS THAN 50 KW SERVICE CLASSIFICATION | I153: T | M153: 3_GENERAL SERVICE LESS THAN 50 KW SERVICE CLASSIFICATION_WMSR | V153: 6 | Z153: Wholesale Market Service Rate
B154: Rural or Remote Electricity Rate Protection Charge (RRRP) | D154: $/kWh | E154: 0.0013 | H154: 3_GENERAL SERVICE LESS THAN 50 KW SERVICE CLASSIFICATION | I154: T | M154: 3_GENERAL SERVICE LESS THAN 50 KW SERVICE CLASSIFICATION_RRRP | V154: 6 | Z154: Rural or Remote Electricity Rate Protection Charge (RRRP)
B155: Ontario Electricity Support Program Charge (OESP) | D155: $/kWh | E155: 0.0011 | H155: 3_GENERAL SERVICE LESS THAN 50 KW SERVICE CLASSIFICATION | I155: T | M155: 3_GENERAL SERVICE LESS THAN 50 KW SERVICE CLASSIFICATION_OESPR | V155: 6 | Z155: Ontario Electricity Support Program Charge (OESP)
B156: Standard Supply Service - Administrative Charge (if applicable) | D156: $ | E156: 0.25 | H156: 3_GENERAL SERVICE LESS THAN 50 KW SERVICE CLASSIFICATION | I156: T | M156: 3_GENERAL SERVICE LESS THAN 50 KW SERVICE CLASSIFICATION_SSS | V156: 4 | Z156: Standard Supply Service - Administrative Charge (if applicable) | AS156: X
B157: GENERAL SERVICE 50 TO 4,999 KW SERVICE CLASSIFICATION | H157: 4_GENERAL SERVICE 50 TO 4,999 KW SERVICE CLASSIFICATION | V157: 53 | AA157: GENERAL SERVICE 50 TO 4,999 KW SERVICE CLASSIFICATION
B158: This classification applies to a non residential account whose average monthly maximum demand used for billing purposes is equal to or greater than, or is forecast to be equal to or greater than, 50 kW but less than 5,000 kW. Further servicing details are available in the distributor’s Conditions of Service. | H158: 4_GENERAL SERVICE 50 TO 4,999 KW SERVICE CLASSIFICATION | V158: 309 | AA158: This classification applies to a non residential account whose average monthly maximum demand used for billing purposes is equal to or greater than, or is forecast to be equal to or greater than, 50 kW but less than 5,000 kW. Further servicing details are available in the distributor’s Conditions of Service.
B160: APPLICATION | H160: 4_APPLICATION | V160: 11 | AA160: APPLICATION
B162: The application of these rates and charges shall be in accordance with the Licence of the Distributor and any Code or Order of the Board, and amendments thereto as approved by the Board, which may be applicable to the administration of this schedule. | H162: 4_GENERAL SERVICE 50 TO 4,999 KW SERVICE CLASSIFICATION | V162: 250 | AA162: The application of these rates and charges shall be in accordance with the Licence of the Distributor and any Code or Order of the Board, and amendments thereto as approved by the Board, which may be applicable to the administration of this schedule.
B164: No rates and charges for the distribution of electricity and charges to meet the costs of any work or service done or furnished for the purpose of the distribution of electricity shall be made except as permitted by this schedule, unless required by the Distributor’s Licence or a Code or Order of the Board, and amendments thereto as approved by the Board, or as specified herein. | H164: 4_GENERAL SERVICE 50 TO 4,999 KW SERVICE CLASSIFICATION | V164: 381 | AA164: No rates and charges for the distribution of electricity and charges to meet the costs of any work or service done or furnished for the purpose of the distribution of electricity shall be made except as permitted by this schedule, unless required by the Distributor’s Licence or a Code or Order of the Board, and amendments thereto as approved by the Board, or as specified herein.
B166: Unless specifically noted, this schedule does not contain any charges for the electricity commodity, be it under the Regulated Price Plan, a contract with a retailer or the wholesale market price, as applicable. In addition, the charges in the MONTHLY RATES AND CHARGES – Regulatory Component of this schedule do not apply to a customer that is an embedded wholesale market participant. | H166: 4_GENERAL SERVICE 50 TO 4,999 KW SERVICE CLASSIFICATION | V166: 390 | AA166: Unless specifically noted, this schedule does not contain any charges for the electricity commodity, be it under the Regulated Price Plan, a contract with a retailer or the wholesale market price, as applicable. In addition, the charges in the MONTHLY RATES AND CHARGES – Regulatory Component of this schedule do not apply to a customer that is an embedded wholesale market participant.
B168: It should be noted that this schedule does not list any charges, assessments or credits that are required by law to be invoiced by a distributor and that are not subject to Board approval, such as the Debt Retirement Charge, the Global Adjustment, the Ontario Clean Energy Benefit and the HST. | H168: 4_GENERAL SERVICE 50 TO 4,999 KW SERVICE CLASSIFICATION | V168: 293 | AA168: It should be noted that this schedule does not list any charges, assessments or credits that are required by law to be invoiced by a distributor and that are not subject to Board approval, such as the Debt Retirement Charge, the Global Adjustment, the Ontario Clean Energy Benefit and the HST.
B170: MONTHLY RATES AND CHARGES - Delivery Component | H170: 4_MRC_DEL | V170: 46 | AA170: MONTHLY RATES AND CHARGES - Delivery Component
B172: Service Charge | D172: $ | E172: 189.27 | H172: 4_GENERAL SERVICE 50 TO 4,999 KW SERVICE CLASSIFICATION | I172: A | M172: 4_GENERAL SERVICE 50 TO 4,999 KW SERVICE CLASSIFICATION_MSC | V172: 6 | Z172: Service Charge
B173: Distribution Volumetric Rate | D173: $/kW | E173: 3.1129 | H173: 4_GENERAL SERVICE 50 TO 4,999 KW SERVICE CLASSIFICATION | I173: A | M173: 4_GENERAL SERVICE 50 TO 4,999 KW SERVICE CLASSIFICATION_DVC | V173: 6 | Z173: Distribution Volumetric Rate
B174: Rate Rider for Stranded Meter (2017) - effective until December 31, 2021 | D174: $ | E174: 4.82 | H174: 4_GENERAL SERVICE 50 TO 4,999 KW SERVICE CLASSIFICATION | I174: A | M174: 4_GENERAL SERVICE 50 TO 4,999 KW SERVICE CLASSIFICATION_SMA | V174: 4 | Z174: Rate Rider for Stranded Meter (2017) - effective until December 31, 2021
B175: Rate Rider for Smart Meter Disposition (2017) - effective until December 31, 2020 | D175: $ | E175: 11.6 | H175: 4_GENERAL SERVICE 50 TO 4,999 KW SERVICE CLASSIFICATION | I175: A | M175: 4_GENERAL SERVICE 50 TO 4,999 KW SERVICE CLASSIFICATION_FX_RR_10 | V175: 4 | Z175: Rate Rider for Smart Meter Disposition (2017) - effective until December 31, 2020
B176: Rate Rider for Disposition of Deferral/Variance Accounts (2017) - effective until December 31, 2020 | D176: $/kW | E176: 0.5127 | H176: 4_GENERAL SERVICE 50 TO 4,999 KW SERVICE CLASSIFICATION | I176: B | M176: 4_GENERAL SERVICE 50 TO 4,999 KW SERVICE CLASSIFICATION_DEFVAR_ALL | V176: 6 | Z176: Rate Rider for Disposition of Deferral/Variance Accounts (2017) - effective until December 31, 2020
B177: Rate Rider for Disposition of Deferral/Variance Accounts - NON_WMP (2017) - effective until December 31, 2020 | D177: $/kW | E177: -0.2372 | H177: 4_GENERAL SERVICE 50 TO 4,999 KW SERVICE CLASSIFICATION | I177: B | M177: 4_GENERAL SERVICE 50 TO 4,999 KW SERVICE CLASSIFICATION_DEFVAR_ALL | V177: 7 | Z177: Rate Rider for Disposition of Deferral/Variance Accounts - NON_WMP (2017) - effective until December 31, 2020
B178: Rate Rider for Disposition of Global Adjustment Account (2017) - effective until December 31, 2020 Applicable only for Non-RPP Customers | D178: $/kWh | E178: 0.0038 | H178: 4_GENERAL SERVICE 50 TO 4,999 KW SERVICE CLASSIFICATION | I178: B | M178: 4_GENERAL SERVICE 50 TO 4,999 KW SERVICE CLASSIFICATION_GA_kwh | V178: 6 | Z178: Rate Rider for Disposition of Global Adjustment Account (2017) - effective until December 31, 2020 Applicable only for Non-RPP Customers
B179: Rate Rider for Disposition of Gr 2 Deferral/Variance Accounts (2017) - effective until December 31, 2020 | D179: $/kW | E179: 0.2382 | H179: 4_GENERAL SERVICE 50 TO 4,999 KW SERVICE CLASSIFICATION | I179: A | M179: 4_GENERAL SERVICE 50 TO 4,999 KW SERVICE CLASSIFICATION_DEFVAR_ALL | V179: 6 | Z179: Rate Rider for Disposition of Gr 2 Deferral/Variance Accounts (2017) - effective until December 31, 2020
B180: Rate Rider for Accounting Changes in CGAAP (2017) - effective until December 31, 2020 | D180: $/kW | E180: -0.9046 | H180: 4_GENERAL SERVICE 50 TO 4,999 KW SERVICE CLASSIFICATION | I180: A | M180: 4_GENERAL SERVICE 50 TO 4,999 KW SERVICE CLASSIFICATION_VR_RR_15 | V180: 7 | Z180: Rate Rider for Accounting Changes in CGAAP (2017) - effective until December 31, 2020
B181: Rate Rider for Disposition of Lost Revenue Adjustment Mechanism Variance Account (2017) - effective until December 31, 2020 | D181: $/kW | E181: 0.0684 | H181: 4_GENERAL SERVICE 50 TO 4,999 KW SERVICE CLASSIFICATION | I181: A | M181: 4_GENERAL SERVICE 50 TO 4,999 KW SERVICE CLASSIFICATION_LRAM | V181: 6 | Z181: Rate Rider for Disposition of Lost Revenue Adjustment Mechanism Variance Account (2017) - effective until December 31, 2020
B182: Low Voltage Service Rate | D182: $/kW | E182: 0.3733 | H182: 4_GENERAL SERVICE 50 TO 4,999 KW SERVICE CLASSIFICATION | I182: B | M182: 4_GENERAL SERVICE 50 TO 4,999 KW SERVICE CLASSIFICATION_LV | V182: 6 | Z182: Low Voltage Service Rate
B183: Retail Transmission Rate - Network Service Rate | D183: $/kW | E183: 2.3687 | H183: 4_GENERAL SERVICE 50 TO 4,999 KW SERVICE CLASSIFICATION | I183: C | M183: 4_GENERAL SERVICE 50 TO 4,999 KW SERVICE CLASSIFICATION_Retail Transmission Rate - Network Service Rate | V183: 6 | Z183: Retail Transmission Rate - Network Service Rate
B184: Retail Transmission Rate - Line and Transformation Connection Service Rate | D184: $/kW | E184: 1.2157 | H184: 4_GENERAL SERVICE 50 TO 4,999 KW SERVICE CLASSIFICATION | I184: C | M184: 4_GENERAL SERVICE 50 TO 4,999 KW SERVICE CLASSIFICATION_Retail Transmission Rate - Line and Transformation Connection Service Rate | V184: 6 | Z184: Retail Transmission Rate - Line and Transformation Connection Service Rate
B186: MONTHLY RATES AND CHARGES - Regulatory Component | H186: 4_MRC_REG | V186: 48 | Z186: MONTHLY RATES AND CHARGES - Regulatory Component
B188: Wholesale Market Service Rate | D188: $/kWh | E188: 0.0036 | H188: 4_GENERAL SERVICE 50 TO 4,999 KW SERVICE CLASSIFICATION | I188: T | M188: 4_GENERAL SERVICE 50 TO 4,999 KW SERVICE CLASSIFICATION_WMSR | V188: 6 | Z188: Wholesale Market Service Rate
B189: Rural or Remote Electricity Rate Protection Charge (RRRP) | D189: $/kWh | E189: 0.0013 | H189: 4_GENERAL SERVICE 50 TO 4,999 KW SERVICE CLASSIFICATION | I189: T | M189: 4_GENERAL SERVICE 50 TO 4,999 KW SERVICE CLASSIFICATION_RRRP | V189: 6 | Z189: Rural or Remote Electricity Rate Protection Charge (RRRP)
B190: Ontario Electricity Support Program Charge (OESP) | D190: $/kWh | E190: 0.0011 | H190: 4_GENERAL SERVICE 50 TO 4,999 KW SERVICE CLASSIFICATION | I190: T | M190: 4_GENERAL SERVICE 50 TO 4,999 KW SERVICE CLASSIFICATION_OESPR | V190: 6 | Z190: Ontario Electricity Support Program Charge (OESP)
B191: Standard Supply Service - Administrative Charge (if applicable) | D191: $ | E191: 0.25 | H191: 4_GENERAL SERVICE 50 TO 4,999 KW SERVICE CLASSIFICATION | I191: T | M191: 4_GENERAL SERVICE 50 TO 4,999 KW SERVICE CLASSIFICATION_SSS | V191: 4 | Z191: Standard Supply Service - Administrative Charge (if applicable) | AS191: X
B192: UNMETERED SCATTERED LOAD SERVICE CLASSIFICATION | H192: 5_UNMETERED SCATTERED LOAD SERVICE CLASSIFICATION | V192: 47 | AA192: UNMETERED SCATTERED LOAD SERVICE CLASSIFICATION
B193: This classification applies to an account taking electricity at 750 volts or less whose average monthly maximum demand is less than, or is forecast to be less than, 50 kW and the consumption is unmetered. Such connections include cable TV power packs, bus shelters, telephone booths, traffic lights, railway crossings, etc. The customer will provide detailed manufacturer information/documentation with regard to electrical consumption of the unmetered load. Further servicing details are available in the distributor’s Conditions of Service. | H193: 5_UNMETERED SCATTERED LOAD SERVICE CLASSIFICATION | V193: 544 | AA193: This classification applies to an account taking electricity at 750 volts or less whose average monthly maximum demand is less than, or is forecast to be less than, 50 kW and the consumption is unmetered. Such connections include cable TV power packs, bus shelters, telephone booths, traffic lights, railway crossings, etc. The customer will provide detailed manufacturer information/documentation with regard to electrical consumption of the unmetered load. Further servicing details are available in the distributor’s Conditions of Service.
B195: APPLICATION | H195: 5_APPLICATION | V195: 11 | AA195: APPLICATION
B197: The application of these rates and charges shall be in accordance with the Licence of the Distributor and any Code or Order of the Board, and amendments thereto as approved by the Board, which may be applicable to the administration of this schedule. | H197: 5_UNMETERED SCATTERED LOAD SERVICE CLASSIFICATION | V197: 250 | AA197: The application of these rates and charges shall be in accordance with the Licence of the Distributor and any Code or Order of the Board, and amendments thereto as approved by the Board, which may be applicable to the administration of this schedule.
B199: No rates and charges for the distribution of electricity and charges to meet the costs of any work or service done or furnished for the purpose of the distribution of electricity shall be made except as permitted by this schedule, unless required by the Distributor’s Licence or a Code or Order of the Board, and amendments thereto as approved by the Board, or as specified herein. | H199: 5_UNMETERED SCATTERED LOAD SERVICE CLASSIFICATION | V199: 381 | AA199: No rates and charges for the distribution of electricity and charges to meet the costs of any work or service done or furnished for the purpose of the distribution of electricity shall be made except as permitted by this schedule, unless required by the Distributor’s Licence or a Code or Order of the Board, and amendments thereto as approved by the Board, or as specified herein.
B201: Unless specifically noted, this schedule does not contain any charges for the electricity commodity, be it under the Regulated Price Plan, a contract with a retailer or the wholesale market price, as applicable. In addition, the charges in the MONTHLY RATES AND CHARGES – Regulatory Component of this schedule do not apply to a customer that is an embedded wholesale market participant. | H201: 5_UNMETERED SCATTERED LOAD SERVICE CLASSIFICATION | V201: 390 | AA201: Unless specifically noted, this schedule does not contain any charges for the electricity commodity, be it under the Regulated Price Plan, a contract with a retailer or the wholesale market price, as applicable. In addition, the charges in the MONTHLY RATES AND CHARGES – Regulatory Component of this schedule do not apply to a customer that is an embedded wholesale market participant.
B203: It should be noted that this schedule does not list any charges, assessments or credits that are required by law to be invoiced by a distributor and that are not subject to Board approval, such as the Debt Retirement Charge, the Global Adjustment, the Ontario Clean Energy Benefit and the HST | H203: 5_UNMETERED SCATTERED LOAD SERVICE CLASSIFICATION | V203: 292 | AA203: It should be noted that this schedule does not list any charges, assessments or credits that are required by law to be invoiced by a distributor and that are not subject to Board approval, such as the Debt Retirement Charge, the Global Adjustment, the Ontario Clean Energy Benefit and the HST
B205: MONTHLY RATES AND CHARGES - Delivery Component | H205: 5_MRC_DEL | V205: 46 | AA205: MONTHLY RATES AND CHARGES - Delivery Component
B207: Service Charge (per customer) | D207: $ | E207: 38.95 | H207: 5_UNMETERED SCATTERED LOAD SERVICE CLASSIFICATION | I207: A | M207: 5_UNMETERED SCATTERED LOAD SERVICE CLASSIFICATION_MSC | V207: 5 | Z207: Service Charge (per customer)
B208: Distribution Volumetric Rate | D208: $/kWh | E208: 0.0088 | H208: 5_UNMETERED SCATTERED LOAD SERVICE CLASSIFICATION | I208: A | M208: 5_UNMETERED SCATTERED LOAD SERVICE CLASSIFICATION_DVC | V208: 6 | Z208: Distribution Volumetric Rate
B209: Rate Rider for Disposition of Deferral/Variance Accounts (2017) - effective until December 31, 2020 | D209: $/kWh | E209: 0.0014 | H209: 5_UNMETERED SCATTERED LOAD SERVICE CLASSIFICATION | I209: B | M209: 5_UNMETERED SCATTERED LOAD SERVICE CLASSIFICATION_DEFVAR_ALL | V209: 6 | Z209: Rate Rider for Disposition of Deferral/Variance Accounts (2017) - effective until December 31, 2020
B210: Rate Rider for Disposition of Deferral/Variance Accounts - NON_WMP (2017) - effective until December 31, 2020 | D210: $/kWh | E210: -0.0006 | H210: 5_UNMETERED SCATTERED LOAD SERVICE CLASSIFICATION | I210: B | M210: 5_UNMETERED SCATTERED LOAD SERVICE CLASSIFICATION_DEFVAR_ALL | V210: 7 | Z210: Rate Rider for Disposition of Deferral/Variance Accounts - NON_WMP (2017) - effective until December 31, 2020
B211: Rate Rider for Disposition of Global Adjustment Account (2017) - effective until December 31, 2020 Applicable only for Non-RPP Customers | D211: $/kWh | E211: 0.0038 | H211: 5_UNMETERED SCATTERED LOAD SERVICE CLASSIFICATION | I211: B | M211: 5_UNMETERED SCATTERED LOAD SERVICE CLASSIFICATION_GA_kwh | V211: 6 | Z211: Rate Rider for Disposition of Global Adjustment Account (2017) - effective until December 31, 2020 Applicable only for Non-RPP Customers
B212: Rate Rider for Disposition of Gr 2 Deferral/Variance Accounts (2017) - effective until December 31, 2020 | D212: $/kWh | E212: 0.0006 | H212: 5_UNMETERED SCATTERED LOAD SERVICE CLASSIFICATION | I212: A | M212: 5_UNMETERED SCATTERED LOAD SERVICE CLASSIFICATION_DEFVAR_ALL | V212: 6 | Z212: Rate Rider for Disposition of Gr 2 Deferral/Variance Accounts (2017) - effective until December 31, 2020
B213: Rate Rider for Accounting Changes in CGAAP (2017) - effective until December 31, 2020 | D213: $/kWh | E213: -0.0025 | H213: 5_UNMETERED SCATTERED LOAD SERVICE CLASSIFICATION | I213: A | M213: 5_UNMETERED SCATTERED LOAD SERVICE CLASSIFICATION_VR_RR_21 | V213: 7 | Z213: Rate Rider for Accounting Changes in CGAAP (2017) - effective until December 31, 2020
B214: Rate Rider for Disposition of Lost Revenue Adjustment Mechanism Variance Account (2017) - effective until December 31, 2020 | D214: $/kWh | E214: 0.0002 | H214: 5_UNMETERED SCATTERED LOAD SERVICE CLASSIFICATION | I214: A | M214: 5_UNMETERED SCATTERED LOAD SERVICE CLASSIFICATION_LRAM | V214: 6 | Z214: Rate Rider for Disposition of Lost Revenue Adjustment Mechanism Variance Account (2017) - effective until December 31, 2020
B215: Low Voltage Service Rate | D215: $/kWh | E215: 0.001 | H215: 5_UNMETERED SCATTERED LOAD SERVICE CLASSIFICATION | I215: B | M215: 5_UNMETERED SCATTERED LOAD SERVICE CLASSIFICATION_LV | V215: 5 | Z215: Low Voltage Service Rate
B216: Retail Transmission Rate - Network Service Rate | D216: $/kWh | E216: 0.005814424199 | H216: 5_UNMETERED SCATTERED LOAD SERVICE CLASSIFICATION | I216: C | M216: 5_UNMETERED SCATTERED LOAD SERVICE CLASSIFICATION_Retail Transmission Rate - Network Service Rate | V216: 20 | Z216: Retail Transmission Rate - Network Service Rate
B217: Retail Transmission Rate - Line and Transformation Connection Service Rate | D217: $/kWh | E217: 0.0033 | H217: 5_UNMETERED SCATTERED LOAD SERVICE CLASSIFICATION | I217: C | M217: 5_UNMETERED SCATTERED LOAD SERVICE CLASSIFICATION_Retail Transmission Rate - Line and Transformation Connection Service Rate | V217: 6 | Z217: Retail Transmission Rate - Line and Transformation Connection Service Rate
B219: MONTHLY RATES AND CHARGES - Regulatory Component | H219: 5_MRC_REG | V219: 48 | Z219: MONTHLY RATES AND CHARGES - Regulatory Component
B221: Wholesale Market Service Rate | D221: $/kWh | E221: 0.0036 | H221: 5_UNMETERED SCATTERED LOAD SERVICE CLASSIFICATION | I221: T | M221: 5_UNMETERED SCATTERED LOAD SERVICE CLASSIFICATION_WMSR | V221: 6 | Z221: Wholesale Market Service Rate
B222: Rural or Remote Electricity Rate Protection Charge (RRRP) | D222: $/kWh | E222: 0.0013 | H222: 5_UNMETERED SCATTERED LOAD SERVICE CLASSIFICATION | I222: T | M222: 5_UNMETERED SCATTERED LOAD SERVICE CLASSIFICATION_RRRP | V222: 6 | Z222: Rural or Remote Electricity Rate Protection Charge (RRRP)
B223: Ontario Electricity Support Program Charge (OESP) | D223: $/kWh | E223: 0.0011 | H223: 5_UNMETERED SCATTERED LOAD SERVICE CLASSIFICATION | I223: T | M223: 5_UNMETERED SCATTERED LOAD SERVICE CLASSIFICATION_OESPR | V223: 6 | Z223: Ontario Electricity Support Program Charge (OESP)
B224: Standard Supply Service - Administrative Charge (if applicable) | D224: $ | E224: 0.25 | H224: 5_UNMETERED SCATTERED LOAD SERVICE CLASSIFICATION | I224: T | M224: 5_UNMETERED SCATTERED LOAD SERVICE CLASSIFICATION_SSS | V224: 4 | Z224: Standard Supply Service - Administrative Charge (if applicable) | AS224: X
B225: STREET LIGHTING SERVICE CLASSIFICATION | H225: 6_STREET LIGHTING SERVICE CLASSIFICATION | V225: 38 | AA225: STREET LIGHTING SERVICE CLASSIFICATION
B226: This classification applies to an account for roadway lighting with a Municipality, Regional Municipality, Ministry of Transportation and private roadway lighting, controlled by photo cells. The consumption for these customers will be based on the calculated connected load times the required lighting times established in the approved OEB street lighting load shape template. Further servicing details are available in the distributor’s Conditions of Service. | H226: 6_STREET LIGHTING SERVICE CLASSIFICATION | V226: 462 | AA226: This classification applies to an account for roadway lighting with a Municipality, Regional Municipality, Ministry of Transportation and private roadway lighting, controlled by photo cells. The consumption for these customers will be based on the calculated connected load times the required lighting times established in the approved OEB street lighting load shape template. Further servicing details are available in the distributor’s Conditions of Service.
B228: APPLICATION | H228: 6_APPLICATION | V228: 11 | AA228: APPLICATION
B230: The application of these rates and charges shall be in accordance with the Licence of the Distributor and any Code or Order of the Board, and amendments thereto as approved by the Board, which may be applicable to the administration of this schedule. | H230: 6_STREET LIGHTING SERVICE CLASSIFICATION | V230: 250 | AA230: The application of these rates and charges shall be in accordance with the Licence of the Distributor and any Code or Order of the Board, and amendments thereto as approved by the Board, which may be applicable to the administration of this schedule.
B232: No rates and charges for the distribution of electricity and charges to meet the costs of any work or service done or furnished for the purpose of the distribution of electricity shall be made except as permitted by this schedule, unless required by the Distributor’s Licence or a Code or Order of the Board, and amendments thereto as approved by the Board, or as specified herein. | H232: 6_STREET LIGHTING SERVICE CLASSIFICATION | V232: 381 | AA232: No rates and charges for the distribution of electricity and charges to meet the costs of any work or service done or furnished for the purpose of the distribution of electricity shall be made except as permitted by this schedule, unless required by the Distributor’s Licence or a Code or Order of the Board, and amendments thereto as approved by the Board, or as specified herein.
B234: Unless specifically noted, this schedule does not contain any charges for the electricity commodity, be it under the Regulated Price Plan, a contract with a retailer or the wholesale market price, as applicable. In addition, the charges in the MONTHLY RATES AND CHARGES – Regulatory Component of this schedule do not apply to a customer that is an embedded wholesale market participant. | H234: 6_STREET LIGHTING SERVICE CLASSIFICATION | V234: 390 | AA234: Unless specifically noted, this schedule does not contain any charges for the electricity commodity, be it under the Regulated Price Plan, a contract with a retailer or the wholesale market price, as applicable. In addition, the charges in the MONTHLY RATES AND CHARGES – Regulatory Component of this schedule do not apply to a customer that is an embedded wholesale market participant.
B236: It should be noted that this schedule does not list any charges, assessments or credits that are required by law to be invoiced by a distributor and that are not subject to Board approval, such as the Debt Retirement Charge, the Global Adjustment, the Ontario Clean Energy Benefit and the HST. | H236: 6_STREET LIGHTING SERVICE CLASSIFICATION | V236: 293 | AA236: It should be noted that this schedule does not list any charges, assessments or credits that are required by law to be invoiced by a distributor and that are not subject to Board approval, such as the Debt Retirement Charge, the Global Adjustment, the Ontario Clean Energy Benefit and the HST.
B238: MONTHLY RATES AND CHARGES - Delivery Component | H238: 6_MRC_DEL | V238: 46 | AA238: MONTHLY RATES AND CHARGES - Delivery Component
B240: Service Charge (per connection) | D240: $ | E240: 2.72 | H240: 6_STREET LIGHTING SERVICE CLASSIFICATION | I240: A | M240: 6_STREET LIGHTING SERVICE CLASSIFICATION_MSC | V240: 4 | Z240: Service Charge (per connection)
B241: Distribution Volumetric Rate | D241: $/kW | E241: 6.6579 | H241: 6_STREET LIGHTING SERVICE CLASSIFICATION | I241: A | M241: 6_STREET LIGHTING SERVICE CLASSIFICATION_DVC | V241: 6 | Z241: Distribution Volumetric Rate
B242: Rate Rider for Disposition of Deferral/Variance Accounts (2017) - effective until December 31, 2020 | D242: $/kW | E242: 0.5014 | H242: 6_STREET LIGHTING SERVICE CLASSIFICATION | I242: B | M242: 6_STREET LIGHTING SERVICE CLASSIFICATION_DEFVAR_ALL | V242: 6 | Z242: Rate Rider for Disposition of Deferral/Variance Accounts (2017) - effective until December 31, 2020
B243: Rate Rider for Disposition of Deferral/Variance Accounts - NON_WMP (2017) - effective until December 31, 2020 | D243: $/kW | E243: -0.2319 | H243: 6_STREET LIGHTING SERVICE CLASSIFICATION | I243: B | M243: 6_STREET LIGHTING SERVICE CLASSIFICATION_DEFVAR_ALL | V243: 7 | Z243: Rate Rider for Disposition of Deferral/Variance Accounts - NON_WMP (2017) - effective until December 31, 2020
B244: Rate Rider for Disposition of Global Adjustment Account (2017) - effective until December 31, 2020 Applicable only for Non-RPP Customers | D244: $/kWh | E244: 0.0038 | H244: 6_STREET LIGHTING SERVICE CLASSIFICATION | I244: B | M244: 6_STREET LIGHTING SERVICE CLASSIFICATION_GA_kwh | V244: 6 | Z244: Rate Rider for Disposition of Global Adjustment Account (2017) - effective until December 31, 2020 Applicable only for Non-RPP Customers
B245: Rate Rider for Disposition of Gr 2 Deferral/Variance Accounts (2017) - effective until December 31, 2020 | D245: $/kW | E245: 0.2329 | H245: 6_STREET LIGHTING SERVICE CLASSIFICATION | I245: A | M245: 6_STREET LIGHTING SERVICE CLASSIFICATION_DEFVAR_ALL | V245: 6 | Z245: Rate Rider for Disposition of Gr 2 Deferral/Variance Accounts (2017) - effective until December 31, 2020
B246: Rate Rider for Accounting Changes in CGAAP (2017) - effective until December 31, 2020 | D246: $/kW | E246: -0.8846 | H246: 6_STREET LIGHTING SERVICE CLASSIFICATION | I246: A | M246: 6_STREET LIGHTING SERVICE CLASSIFICATION_VR_RR_27 | V246: 7 | Z246: Rate Rider for Accounting Changes in CGAAP (2017) - effective until December 31, 2020
B247: Rate Rider for Disposition of Lost Revenue Adjustment Mechanism Variance Account (2017) - effective until December 31, 2020 | D247: $/kW | E247: 0.0668 | H247: 6_STREET LIGHTING SERVICE CLASSIFICATION | I247: A | M247: 6_STREET LIGHTING SERVICE CLASSIFICATION_LRAM | V247: 6 | Z247: Rate Rider for Disposition of Lost Revenue Adjustment Mechanism Variance Account (2017) - effective until December 31, 2020
B248: Low Voltage Service Rate | D248: $/kW | E248: 0.2885 | H248: 6_STREET LIGHTING SERVICE CLASSIFICATION | I248: B | M248: 6_STREET LIGHTING SERVICE CLASSIFICATION_LV | V248: 6 | Z248: Low Voltage Service Rate
B249: Retail Transmission Rate - Network Service Rate | D249: $/kW | E249: 1.7864 | H249: 6_STREET LIGHTING SERVICE CLASSIFICATION | I249: C | M249: 6_STREET LIGHTING SERVICE CLASSIFICATION_Retail Transmission Rate - Network Service Rate | V249: 6 | Z249: Retail Transmission Rate - Network Service Rate
B250: Retail Transmission Rate - Line and Transformation Connection Service Rate | D250: $/kW | E250: 0.9398 | H250: 6_STREET LIGHTING SERVICE CLASSIFICATION | I250: C | M250: 6_STREET LIGHTING SERVICE CLASSIFICATION_Retail Transmission Rate - Line and Transformation Connection Service Rate | V250: 6 | Z250: Retail Transmission Rate - Line and Transformation Connection Service Rate
B252: MONTHLY RATES AND CHARGES - Regulatory Component | H252: 6_MRC_REG | V252: 48 | Z252: MONTHLY RATES AND CHARGES - Regulatory Component
B254: Wholesale Market Service Rate | D254: $/kWh | E254: 0.0036 | H254: 6_STREET LIGHTING SERVICE CLASSIFICATION | I254: T | M254: 6_STREET LIGHTING SERVICE CLASSIFICATION_WMSR | V254: 6 | Z254: Wholesale Market Service Rate
B255: Rural or Remote Electricity Rate Protection Charge (RRRP) | D255: $/kWh | E255: 0.0013 | H255: 6_STREET LIGHTING SERVICE CLASSIFICATION | I255: T | M255: 6_STREET LIGHTING SERVICE CLASSIFICATION_RRRP | V255: 6 | Z255: Rural or Remote Electricity Rate Protection Charge (RRRP)
B256: Ontario Electricity Support Program Charge (OESP) | D256: $/kWh | E256: 0.0011 | H256: 6_STREET LIGHTING SERVICE CLASSIFICATION | I256: T | M256: 6_STREET LIGHTING SERVICE CLASSIFICATION_OESPR | V256: 6 | Z256: Ontario Electricity Support Program Charge (OESP)
B257: Standard Supply Service - Administrative Charge (if applicable) | D257: $ | E257: 0.25 | H257: 6_STREET LIGHTING SERVICE CLASSIFICATION | I257: T | M257: 6_STREET LIGHTING SERVICE CLASSIFICATION_SSS | V257: 4 | Z257: Standard Supply Service - Administrative Charge (if applicable) | AS257: X
B258: microFIT SERVICE CLASSIFICATION | H258: 7_MICROFIT SERVICE CLASSIFICATION | V258: 31 | AA258: microFIT SERVICE CLASSIFICATION
B259: This classification applies to an electricity generation facility contracted under the Ontario Power Authority’s microFIT program and connected to the distributor’s distribution system. Further servicing details are available in the distributor’s Conditions of Service. | H259: 7_MICROFIT SERVICE CLASSIFICATION | V259: 270 | AA259: This classification applies to an electricity generation facility contracted under the Ontario Power Authority’s microFIT program and connected to the distributor’s distribution system. Further servicing details are available in the distributor’s Conditions of Service.
B261: APPLICATION | H261: 7_APPLICATION | V261: 11 | AA261: APPLICATION
B263: The application of these rates and charges shall be in accordance with the Licence of the Distributor and any Code or Order of the Board, and amendments thereto as approved by the Board, which may be applicable to the administration of this schedule. | H263: 7_MICROFIT SERVICE CLASSIFICATION | V263: 250 | AA263: The application of these rates and charges shall be in accordance with the Licence of the Distributor and any Code or Order of the Board, and amendments thereto as approved by the Board, which may be applicable to the administration of this schedule.
B265: No rates and charges for the distribution of electricity and charges to meet the costs of any work or service done or furnished for the purpose of the distribution of electricity shall be made except as permitted by this schedule, unless required by the Distributor’s Licence or a Code or Order of the Board, and amendments thereto as approved by the Board, or as specified herein. | H265: 7_MICROFIT SERVICE CLASSIFICATION | V265: 381 | AA265: No rates and charges for the distribution of electricity and charges to meet the costs of any work or service done or furnished for the purpose of the distribution of electricity shall be made except as permitted by this schedule, unless required by the Distributor’s Licence or a Code or Order of the Board, and amendments thereto as approved by the Board, or as specified herein.
B267: Unless specifically noted, this schedule does not contain any charges for the electricity commodity, be it under the Regulated Price Plan, a contract with a retailer or the wholesale market price, as applicable. | H267: 7_MICROFIT SERVICE CLASSIFICATION | V267: 212 | AA267: Unless specifically noted, this schedule does not contain any charges for the electricity commodity, be it under the Regulated Price Plan, a contract with a retailer or the wholesale market price, as applicable.
B269: It should be noted that this schedule does not list any charges, assessments or credits that are required by law to be invoiced by a distributor and that are not subject to Board approval, such as the Debt Retirement Charge, the Global Adjustment, the Ontario Clean Energy Benefit and the HST. | H269: 7_MICROFIT SERVICE CLASSIFICATION | V269: 293 | AA269: It should be noted that this schedule does not list any charges, assessments or credits that are required by law to be invoiced by a distributor and that are not subject to Board approval, such as the Debt Retirement Charge, the Global Adjustment, the Ontario Clean Energy Benefit and the HST.
B271: MONTHLY RATES AND CHARGES - Delivery Component | H271: 7_MRC_DEL | V271: 46 | AA271: MONTHLY RATES AND CHARGES - Delivery Component
B273: Service Charge | D273: $ | E273: 10 | H273: 7_MICROFIT SERVICE CLASSIFICATION | I273: A | M273: 7_MICROFIT SERVICE CLASSIFICATION_MSC | V273: 2 | Z273: Service Charge
AS274: X
B275: ALLOWANCES | H275: RENFREW HYDRO INC._ALLOWANCES | V275: 10
B276: Transformer Allowance for Ownership - per kW of billing demand/month | D276: $/kW | E276: -0.6 | V276: 4 | Z276: Transformer Allowance for Ownership - per kW of billing demand/month
B277: Primary Metering Allowance for transformer losses – applied to measured demand and energy | D277: % | E277: -1 | I277: T | V277: 2 | Z277: Primary Metering Allowance for transformer losses – applied to measured demand and energy | AS277: X
B278: SPECIFIC SERVICE CHARGES | H278: RENFREW HYDRO INC._SSC | V278: 24
B279: The application of these rates and charges shall be in accordance with the Licence of the Distributor and any Code or Order of the Board, and amendments thereto as approved by the Board, which may be applicable to the administration of this schedule. | V279: 250 | AA279: The application of these rates and charges shall be in accordance with the Licence of the Distributor and any Code or Order of the Board, and amendments thereto as approved by the Board, which may be applicable to the administration of this schedule.
... 39 more rows

Sheet 5. 2-W Bill Impacts
AZ1: YES | CA1: 1
D12: The bill comparisons below must be provided for typical customers and consumption levels. Bill impacts must be provided for residential customers consuming 750 kWh per month and general service customers consuming 2,000 kWh per month and having a monthly demand of less than 50 kW. Include bill comparisons for Non-RPP (retailer) as well. The OEB has established that, when assessing the combined effects of the shift to fixed rates and other bill impacts associated with changes in the cost of distribution service, a utility shall evaluate the total bill impact for a low volume residential customer consuming at the distributor’s 10th consumption percentile19, to a minimum of 50 kWh per month. Refer to page 62 of Chapter 2 Filing Requirements For Electricity Distribution Rate Applications issued July 14, 2016. For certain classes where one or more customers have unique consumption and demand patterns and which may be significantly impacted by the proposed rate changes, the distributor must show a typical comparison, and provide an explanation. Note: 1. For those classes that are not eligible for the RPP price, the weighted average price including Class B GA through end of May 2016 of $0.113/kWh (IESO's Monthly Market Report for May 2016, page 22) has been used to represent the cost of power. For those classes on a retailer contract, applicants should enter the contract price (plus GA) for a more accurate estimate. Changes to the cost of power can be made directly on the bill impact chart for the specific class. 2. Due to the change to energy consumption used in the calculation of GA rate riders for the 2017 rate year, the separate “GA Rate Riders” line is only applicable to the “Proposed” section of the bill impact tables. 3. Please enter the applicable billing determinant (e.g. number of connections or devices) to be applied to the monthly service charge for unmetered rate classes in column N. If the monthly service charge is applied on a per customer basis, enter the number “1”. Distributors should provide the number of connections or devices reflective of a typical customer in each class.
D13: Note that cells with the highlighted color shown to the left indicate quantities that are loss adjusted.
D28: Table 1
D29: RATE CLASSES / CATEGORIES (eg: Residential TOU, Residential Retailer) | G29: Units | H29: RPP? Non-RPP Retailer? Non-RPP Other? | I29: Current Loss Factor (eg: 1.0351) | J29: Proposed Loss Factor | K29: Consumption (kWh) | L29: Demand kW (if applicable) | M29: RTSR Demand or Demand-Interval? | N29: Billing Determinant Applied to Fixed Charge for Unmetered Classes (e.g. # of devices/connections).
B30: 1 | C30: 1 | D30: RESIDENTIAL SERVICE CLASSIFICATION | G30: kWh | H30: RPP | I30: 1.081 | J30: 1.081 | K30: 750 | M30: N/A | T30: =SUM(I30:L30) -> 752.162 | U30: 78 | AS30: 1
B31: 2 | C31: 2 | D31: GENERAL SERVICE LESS THAN 50 kW SERVICE CLASSIFICATION | G31: kWh | H31: RPP | I31: 1.081 | J31: 1.081 | K31: 2000 | M31: N/A | T31: 2002.162 | U31: =U30+68 -> 146 | AS31: 2
B32: 3 | C32: 3 | D32: GENERAL SERVICE 50 TO 4,999 KW SERVICE CLASSIFICATION | G32: kW | H32: Non-RPP (Other) | I32: 1.081 | J32: 1.081 | K32: 61605 | L32: 156 | M32: DEMAND | T32: 61763.162 | U32: =U31+68 -> 214 | AS32: 3
B33: 4 | C33: 4 | D33: UNMETERED SCATTERED LOAD SERVICE CLASSIFICATION | G33: kWh | H33: Non-RPP (Other) | I33: 1.081 | J33: 1.081 | K33: 392 | M33: N/A | N33: 34 | T33: 394.162 | U33: 282 | AS33: 4
B34: 5 | C34: 5 | D34: STREET LIGHTING SERVICE CLASSIFICATION | G34: kW | H34: Non-RPP (Other) | I34: 1.081 | J34: 1.081 | K34: 90251 | L34: 250 | M34: DEMAND | N34: 1199 | T34: 90503.162 | U34: 350 | AS34: 5
B35: 6 | C35: 6 | D35: RESIDENTIAL SERVICE CLASSIFICATION | G35: kWh | H35: RPP | I35: 1.081 | J35: 1.081 | K35: 286 | M35: N/A | T35: 288.162 | U35: 418 | AS35: 6
B36: 7 | C36: 7 | D36: RESIDENTIAL SERVICE CLASSIFICATION | G36: kWh | H36: Non-RPP (Retailer) | I36: 1.081 | J36: 1.081 | K36: 750 | M36: N/A | T36: 752.162 | U36: 486 | AS36: 7
B37: 8 | C37: 8 | D37: RESIDENTIAL SERVICE CLASSIFICATION | G37: kWh | H37: Non-RPP (Retailer) | I37: 1.081 | J37: 1.081 | K37: 286 | M37: N/A | T37: 288.162 | AS37: 8
B38: 9 | C38: 9 | D38: GENERAL SERVICE LESS THAN 50 kW SERVICE CLASSIFICATION | G38: kWh | H38: Non-RPP (Retailer) | I38: 1.081 | J38: 1.081 | K38: 2000 | M38: N/A | T38: 2002.162 | AS38: 9
B39: 10 | C39: =IF(ISERROR(VLOOKUP(D39, D30:AS69, 42, FALSE)),"", VLOOKUP(D39, D30:AS69, 42, FALSE)) -> 0 | D39: Add additional scenarios if required | T39: 0
B40: 11 | C40: =IF(ISERROR(VLOOKUP(D40, D30:AS69, 42, FALSE)),"", VLOOKUP(D40, D30:AS69, 42, FALSE)) -> 0 | D40: Add additional scenarios if required | T40: 0
B41: 12 | C41: =IF(ISERROR(VLOOKUP(D41, D30:AS69, 42, FALSE)),"", VLOOKUP(D41, D30:AS69, 42, FALSE)) -> 0 | D41: Add additional scenarios if required | T41: 0
B42: 13 | C42: =IF(ISERROR(VLOOKUP(D42, D30:AS69, 42, FALSE)),"", VLOOKUP(D42, D30:AS69, 42, FALSE)) -> 0 | D42: Add additional scenarios if required | T42: 0
B43: 14 | C43: =IF(ISERROR(VLOOKUP(D43, D30:AS69, 42, FALSE)),"", VLOOKUP(D43, D30:AS69, 42, FALSE)) -> 0 | D43: Add additional scenarios if required | T43: 0
B44: 15 | C44: =IF(ISERROR(VLOOKUP(D44, D30:AS69, 42, FALSE)),"", VLOOKUP(D44, D30:AS69, 42, FALSE)) -> 0 | D44: Add additional scenarios if required | T44: 0
B45: 16 | C45: =IF(ISERROR(VLOOKUP(D45, D30:AS69, 42, FALSE)),"", VLOOKUP(D45, D30:AS69, 42, FALSE)) -> 0 | D45: Add additional scenarios if required | T45: 0
B46: 17 | C46: =IF(ISERROR(VLOOKUP(D46, D30:AS69, 42, FALSE)),"", VLOOKUP(D46, D30:AS69, 42, FALSE)) -> 0 | D46: Add additional scenarios if required | T46: 0
B47: 18 | C47: =IF(ISERROR(VLOOKUP(D47, D30:AS69, 42, FALSE)),"", VLOOKUP(D47, D30:AS69, 42, FALSE)) -> 0 | D47: Add additional scenarios if required | T47: 0
B48: 19 | C48: =IF(ISERROR(VLOOKUP(D48, D30:AS69, 42, FALSE)),"", VLOOKUP(D48, D30:AS69, 42, FALSE)) -> 0 | D48: Add additional scenarios if required | T48: 0
B49: 20 | C49: =IF(ISERROR(VLOOKUP(D49, D30:AS69, 42, FALSE)),"", VLOOKUP(D49, D30:AS69, 42, FALSE)) -> 0 | D49: Add additional scenarios if required | T49: 0
B50: 21 | C50: =IF(ISERROR(VLOOKUP(D50, D30:AS69, 42, FALSE)),"", VLOOKUP(D50, D30:AS69, 42, FALSE)) -> 0 | D50: Add additional scenarios if required | T50: 0
B51: 22 | C51: =IF(ISERROR(VLOOKUP(D51, D30:AS69, 42, FALSE)),"", VLOOKUP(D51, D30:AS69, 42, FALSE)) -> 0 | D51: Add additional scenarios if required | T51: 0
B52: 23 | C52: =IF(ISERROR(VLOOKUP(D52, D30:AS69, 42, FALSE)),"", VLOOKUP(D52, D30:AS69, 42, FALSE)) -> 0 | D52: Add additional scenarios if required | T52: 0
B53: 24 | C53: =IF(ISERROR(VLOOKUP(D53, D30:AS69, 42, FALSE)),"", VLOOKUP(D53, D30:AS69, 42, FALSE)) -> 0 | D53: Add additional scenarios if required | T53: 0
B54: 25 | C54: =IF(ISERROR(VLOOKUP(D54, D30:AS69, 42, FALSE)),"", VLOOKUP(D54, D30:AS69, 42, FALSE)) -> 0 | D54: Add additional scenarios if required | T54: 0
B55: 26 | C55: =IF(ISERROR(VLOOKUP(D55, D30:AS69, 42, FALSE)),"", VLOOKUP(D55, D30:AS69, 42, FALSE)) -> 0 | D55: Add additional scenarios if required | T55: 0
B56: 27 | C56: =IF(ISERROR(VLOOKUP(D56, D30:AS69, 42, FALSE)),"", VLOOKUP(D56, D30:AS69, 42, FALSE)) -> 0 | D56: Add additional scenarios if required | T56: 0
B57: 28 | C57: =IF(ISERROR(VLOOKUP(D57, D30:AS69, 42, FALSE)),"", VLOOKUP(D57, D30:AS69, 42, FALSE)) -> 0 | D57: Add additional scenarios if required | T57: 0 | U57: =U36+68 -> 554 | AS57: 8
B58: 29 | C58: =IF(ISERROR(VLOOKUP(D58, D30:AS69, 42, FALSE)),"", VLOOKUP(D58, D30:AS69, 42, FALSE)) -> 0 | D58: Add additional scenarios if required | T58: 0 | U58: 622 | AS58: 9
B59: 30 | C59: =IF(ISERROR(VLOOKUP(D59, D30:AS69, 42, FALSE)),"", VLOOKUP(D59, D30:AS69, 42, FALSE)) -> 0 | D59: Add additional scenarios if required | T59: 0 | U59: 690 | AS59: 10
B60: 31 | C60: =IF(ISERROR(VLOOKUP(D60, D30:AS69, 42, FALSE)),"", VLOOKUP(D60, D30:AS69, 42, FALSE)) -> 0 | D60: Add additional scenarios if required | T60: 0 | U60: 758
B61: 32 | C61: =IF(ISERROR(VLOOKUP(D61, D30:AS69, 42, FALSE)),"", VLOOKUP(D61, D30:AS69, 42, FALSE)) -> 0 | D61: Add additional scenarios if required | T61: 0 | U61: 826
B62: 33 | C62: =IF(ISERROR(VLOOKUP(D62, D30:AS69, 42, FALSE)),"", VLOOKUP(D62, D30:AS69, 42, FALSE)) -> 0 | D62: Add additional scenarios if required | T62: 0 | U62: 894
B63: 34 | C63: =IF(ISERROR(VLOOKUP(D63, D30:AS69, 42, FALSE)),"", VLOOKUP(D63, D30:AS69, 42, FALSE)) -> 0 | D63: Add additional scenarios if required | T63: 0 | U63: 962
B64: 35 | C64: =IF(ISERROR(VLOOKUP(D64, D30:AS69, 42, FALSE)),"", VLOOKUP(D64, D30:AS69, 42, FALSE)) -> 0 | D64: Add additional scenarios if required | T64: 0 | U64: 1030
B65: 36 | C65: =IF(ISERROR(VLOOKUP(D65, D30:AS69, 42, FALSE)),"", VLOOKUP(D65, D30:AS69, 42, FALSE)) -> 0 | D65: Add additional scenarios if required | T65: 0 | U65: 1098
B66: 37 | C66: =IF(ISERROR(VLOOKUP(D66, D30:AS69, 42, FALSE)),"", VLOOKUP(D66, D30:AS69, 42, FALSE)) -> 0 | D66: Add additional scenarios if required | T66: 0 | U66: 1166
B67: 38 | C67: =IF(ISERROR(VLOOKUP(D67, D30:AS69, 42, FALSE)),"", VLOOKUP(D67, D30:AS69, 42, FALSE)) -> 0 | D67: Add additional scenarios if required | T67: 0 | U67: 1234
B68: 39 | C68: =IF(ISERROR(VLOOKUP(D68, D30:AS69, 42, FALSE)),"", VLOOKUP(D68, D30:AS69, 42, FALSE)) -> 0 | D68: Add additional scenarios if required | T68: 0 | U68: 1302
B69: 40 | C69: =IF(ISERROR(VLOOKUP(D69, D30:AS69, 42, FALSE)),"", VLOOKUP(D69, D30:AS69, 42, FALSE)) -> 0 | D69: Add additional scenarios if required | T69: 0 | U69: 1370
D71: Table 2
D72: RATE CLASSES / CATEGORIES (eg: Residential TOU, Residential Retailer) | G72: Units | H72: Sub-Total | N72: Total
H73: A | J73: B | L73: C | N73: A + B + C
H74: $ | I74: % | J74: $ | K74: % | L74: $ | M74: % | N74: $ | O74: %
B75: =H30 -> RPP | C75: 1 | D75: =IF(ISBLANK(D30), "", IF(D30 = "Add additional scenarios if required", "", IF(M30="YES", D30 & " - " & H30 & " - Interval Customers", D30 & " - " &H30))) -> RESIDENTIAL SERVICE CLASSIFICATION - RPP | G75: =IF(ISBLANK(G30), "", G30) -> kWh | H75: =IF(LEN($G75)>1, (SUMPRODUCT(--($C$118:$C$1000=$B30), --($A$118:$A$1000=$D30), --($B$118:$B$1000="ST_A"), $L$118:$L$1000)), "") -> 3.2748 | I75: =IF(LEN($G75)>1, (SUMPRODUCT(--($C$118:$C$1000=$B30), --($A$118:$A$1000=$D30), --($B$118:$B$1000="ST_A"), $M$118:$M$1000)), "") -> 0.1318092171 | J75: =IF(LEN($G75)>1, (SUMPRODUCT(--($C$118:$C$1000=$B30), --($A$118:$A$1000=$D30), --($B$118:$B$1000="ST_B"), $L$118:$L$1000)), "") -> 3.8748 | K75: =IF(LEN($G75)>1, (SUMPRODUCT(--($C$118:$C$1000=$B30), --($A$118:$A$1000=$D30), --($B$118:$B$1000="ST_B"), $M$118:$M$1000)), "") -> 0.1166162069 | L75: =IF(LEN($G75)>1, (SUMPRODUCT(--($C$118:$C$1000=$B30), --($A$118:$A$1000=$D30), --($B$118:$B$1000="ST_C"), $L$118:$L$1000)), "") -> 4.03695 | M75: =IF(LEN($G75)>1, (SUMPRODUCT(--($C$118:$C$1000=$B30), --($A$118:$A$1000=$D30), --($B$118:$B$1000="ST_C"), $M$118:$M$1000)), "") -> 0.09824362104 | N75: =IF(LEN($G75)>1, (SUMPRODUCT(--($C$118:$C$1000=$B30), --($A$118:$A$1000=$D30), --($B$118:$B$1000=$B75&"_TOTAL"), $L$118:$L$1000)), "") -> 3.8288355 | O75: =IF(LEN($G75)>1, (SUMPRODUCT(--($C$118:$C$1000=$B30), --($A$118:$A$1000=$D30), --($B$118:$B$1000=$B75&"_TOTAL"), $M$118:$M$1000)), "") -> 0.02598491332
B76: RPP | C76: 2 | D76: =IF(ISBLANK(D31), "", IF(D31 = "Add additional scenarios if required", "", IF(M31="YES", D31 & " - " & H31 & " - Interval Customers", D31 & " - " &H31))) -> GENERAL SERVICE LESS THAN 50 kW SERVICE CLASSIFICATION - RPP | G76: kWh | H76: =IF(LEN($G76)>1, (SUMPRODUCT(--($C$118:$C$1000=$B31), --($A$118:$A$1000=$D31), --($B$118:$B$1000="ST_A"), $L$118:$L$1000)), "") -> 6.74 | I76: =IF(LEN($G76)>1, (SUMPRODUCT(--($C$118:$C$1000=$B31), --($A$118:$A$1000=$D31), --($B$118:$B$1000="ST_A"), $M$118:$M$1000)), "") -> 0.1149190111 | J76: =IF(LEN($G76)>1, (SUMPRODUCT(--($C$118:$C$1000=$B31), --($A$118:$A$1000=$D31), --($B$118:$B$1000="ST_B"), $L$118:$L$1000)), "") -> 8.34 | K76: =IF(LEN($G76)>1, (SUMPRODUCT(--($C$118:$C$1000=$B31), --($A$118:$A$1000=$D31), --($B$118:$B$1000="ST_B"), $M$118:$M$1000)), "") -> 0.10492522 | L76: =IF(LEN($G76)>1, (SUMPRODUCT(--($C$118:$C$1000=$B31), --($A$118:$A$1000=$D31), --($B$118:$B$1000="ST_C"), $L$118:$L$1000)), "") -> 8.7724 | M76: =IF(LEN($G76)>1, (SUMPRODUCT(--($C$118:$C$1000=$B31), --($A$118:$A$1000=$D31), --($B$118:$B$1000="ST_C"), $M$118:$M$1000)), "") -> 0.08885514375 | N76: =IF(LEN($G76)>1, (SUMPRODUCT(--($C$118:$C$1000=$B31), --($A$118:$A$1000=$D31), --($B$118:$B$1000=$B76&"_TOTAL"), $L$118:$L$1000)), "") -> 7.958364 | O76: =IF(LEN($G76)>1, (SUMPRODUCT(--($C$118:$C$1000=$B31), --($A$118:$A$1000=$D31), --($B$118:$B$1000=$B76&"_TOTAL"), $M$118:$M$1000)), "") -> 0.02009595542
B77: Non-RPP (Other) | C77: 3 | D77: =IF(ISBLANK(D32), "", IF(D32 = "Add additional scenarios if required", "", IF(M32="YES", D32 & " - " & H32 & " - Interval Customers", D32 & " - " &H32))) -> GENERAL SERVICE 50 TO 4,999 KW SERVICE CLASSIFICATION - Non-RPP (Other) | G77: kW | H77: 13.5808 | I77: 0.02323754144 | J77: 293.2942 | K77: 0.458249275 | L77: 302.8102 | M77: 0.2545302847 | N77: 281.9736415 | O77: 0.02599585603
B78: Non-RPP (Other) | C78: 4 | D78: =IF(ISBLANK(D33), "", IF(D33 = "Add additional scenarios if required", "", IF(M33="YES", D33 & " - " & H33 & " - Interval Customers", D33 & " - " &H33))) -> UNMETERED SCATTERED LOAD SERVICE CLASSIFICATION - Non-RPP (Other) | G78: kWh | H78: -160.2176 | I78: -0.1077237369 | J78: -158.4144 | K78: -0.1062270785 | L78: -158.3296496 | M78: -0.1059024246 | N78: -179.2955759 | O78: -0.1026999055
B79: Non-RPP (Other) | C79: 5 | D79: =IF(ISBLANK(D34), "", IF(D34 = "Add additional scenarios if required", "", IF(M34="YES", D34 & " - " & H34 & " - Interval Customers", D34 & " - " &H34))) -> STREET LIGHTING SERVICE CLASSIFICATION - Non-RPP (Other) | G79: kW | H79: -569.595 | I79: -0.1064837707 | J79: -155.9912 | K79: -0.02879142115 | L79: -144.1912 | M79: -0.02368556398 | N79: -251.1314992 | O79: -0.01207346592
B80: RPP | C80: 6 | D80: =IF(ISBLANK(D35), "", IF(D35 = "Add additional scenarios if required", "", IF(M35="YES", D35 & " - " & H35 & " - Interval Customers", D35 & " - " &H35))) -> RESIDENTIAL SERVICE CLASSIFICATION - RPP | G80: kWh | H80: 4.2028 | I80: 0.2319810123 | J80: 4.4316 | K80: 0.2032651891 | L80: 4.4934332 | M80: 0.1811797292 | N80: 4.798093452 | O80: 0.07195458358
B81: Non-RPP (Retailer) | C81: 7 | D81: =IF(ISBLANK(D36), "", IF(D36 = "Add additional scenarios if required", "", IF(M36="YES", D36 & " - " & H36 & " - Interval Customers", D36 & " - " &H36))) -> RESIDENTIAL SERVICE CLASSIFICATION - Non-RPP (Retailer) | G81: kWh | H81: 3.2748 | I81: 0.1318092171 | J81: 6.7248 | K81: 0.2017959625 | L81: 6.88695 | M81: 0.1672035208 | N81: 7.0493355 | O81: 0.04745720162
B82: =H37 -> Non-RPP (Retailer) | C82: 8 | D82: =IF(ISBLANK(D37), "", IF(D37 = "Add additional scenarios if required", "", IF(M37="YES", D37 & " - " & H37 & " - Interval Customers", D37 & " - " &H37))) -> RESIDENTIAL SERVICE CLASSIFICATION - Non-RPP (Retailer) | G82: kWh | H82: 4.2028 | I82: 0.2319810123 | J82: 5.5184 | K82: 0.2526814204 | L82: 5.5802332 | M82: 0.2246627323 | N82: 6.026177452 | O82: 0.08999369999
B83: Non-RPP (Retailer) | C83: 9 | D83: =IF(ISBLANK(D38), "", IF(D38 = "Add additional scenarios if required", "", IF(M38="YES", D38 & " - " & H38 & " - Interval Customers", D38 & " - " &H38))) -> GENERAL SERVICE LESS THAN 50 kW SERVICE CLASSIFICATION - Non-RPP (Retailer) | G83: kWh | H83: 6.74 | I83: 0.1149190111 | J83: 15.94 | K83: 0.1998846337 | L83: 16.3724 | M83: 0.1653981602 | N83: 16.546364 | O83: 0.04140016636
B84: 0 | C84: 10 | D84: =IF(ISBLANK(D39), "", IF(D39 = "Add additional scenarios if required", "", IF(M39="YES", D39 & " - " & H39 & " - Interval Customers", D39 & " - " &H39))) -> 
B85: 0 | C85: 11 | D85: =IF(ISBLANK(D40), "", IF(D40 = "Add additional scenarios if required", "", IF(M40="YES", D40 & " - " & H40 & " - Interval Customers", D40 & " - " &H40))) -> 
B86: 0 | C86: 12 | D86: =IF(ISBLANK(D41), "", IF(D41 = "Add additional scenarios if required", "", IF(M41="YES", D41 & " - " & H41 & " - Interval Customers", D41 & " - " &H41))) -> 
B87: 0 | C87: 13 | D87: =IF(ISBLANK(D42), "", IF(D42 = "Add additional scenarios if required", "", IF(M42="YES", D42 & " - " & H42 & " - Interval Customers", D42 & " - " &H42))) -> 
B88: 0 | C88: 14 | D88: =IF(ISBLANK(D43), "", IF(D43 = "Add additional scenarios if required", "", IF(M43="YES", D43 & " - " & H43 & " - Interval Customers", D43 & " - " &H43))) -> 
B89: 0 | C89: 15 | D89: =IF(ISBLANK(D44), "", IF(D44 = "Add additional scenarios if required", "", IF(M44="YES", D44 & " - " & H44 & " - Interval Customers", D44 & " - " &H44))) -> 
B90: 0 | C90: 16 | D90: =IF(ISBLANK(D45), "", IF(D45 = "Add additional scenarios if required", "", IF(M45="YES", D45 & " - " & H45 & " - Interval Customers", D45 & " - " &H45))) -> 
B91: 0 | C91: 17 | D91: =IF(ISBLANK(D46), "", IF(D46 = "Add additional scenarios if required", "", IF(M46="YES", D46 & " - " & H46 & " - Interval Customers", D46 & " - " &H46))) -> 
B92: 0 | C92: 18 | D92: =IF(ISBLANK(D47), "", IF(D47 = "Add additional scenarios if required", "", IF(M47="YES", D47 & " - " & H47 & " - Interval Customers", D47 & " - " &H47))) -> 
B93: 0 | C93: 19 | D93: =IF(ISBLANK(D48), "", IF(D48 = "Add additional scenarios if required", "", IF(M48="YES", D48 & " - " & H48 & " - Interval Customers", D48 & " - " &H48))) -> 
B94: 0 | C94: 20 | D94: =IF(ISBLANK(D49), "", IF(D49 = "Add additional scenarios if required", "", IF(M49="YES", D49 & " - " & H49 & " - Interval Customers", D49 & " - " &H49))) -> 
B95: 0 | C95: 21 | D95: =IF(ISBLANK(D50), "", IF(D50 = "Add additional scenarios if required", "", IF(M50="YES", D50 & " - " & H50 & " - Interval Customers", D50 & " - " &H50))) -> 
B96: 0 | C96: 22 | D96: =IF(ISBLANK(D51), "", IF(D51 = "Add additional scenarios if required", "", IF(M51="YES", D51 & " - " & H51 & " - Interval Customers", D51 & " - " &H51))) -> 
B97: 0 | C97: 23 | D97: =IF(ISBLANK(D52), "", IF(D52 = "Add additional scenarios if required", "", IF(M52="YES", D52 & " - " & H52 & " - Interval Customers", D52 & " - " &H52))) -> 
B98: =H53 -> 0 | C98: 24 | D98: =IF(ISBLANK(D53), "", IF(D53 = "Add additional scenarios if required", "", IF(M53="YES", D53 & " - " & H53 & " - Interval Customers", D53 & " - " &H53))) -> 
B99: 0 | C99: 25 | D99: =IF(ISBLANK(D54), "", IF(D54 = "Add additional scenarios if required", "", IF(M54="YES", D54 & " - " & H54 & " - Interval Customers", D54 & " - " &H54))) -> 
B100: 0 | C100: 26 | D100: =IF(ISBLANK(D55), "", IF(D55 = "Add additional scenarios if required", "", IF(M55="YES", D55 & " - " & H55 & " - Interval Customers", D55 & " - " &H55))) -> 
B101: 0 | C101: 27 | D101: =IF(ISBLANK(D56), "", IF(D56 = "Add additional scenarios if required", "", IF(M56="YES", D56 & " - " & H56 & " - Interval Customers", D56 & " - " &H56))) -> 
B102: 0 | C102: 28 | D102: =IF(ISBLANK(D57), "", IF(D57 = "Add additional scenarios if required", "", IF(M57="YES", D57 & " - " & H57 & " - Interval Customers", D57 & " - " &H57))) -> 
B103: 0 | C103: 29 | D103: =IF(ISBLANK(D58), "", IF(D58 = "Add additional scenarios if required", "", IF(M58="YES", D58 & " - " & H58 & " - Interval Customers", D58 & " - " &H58))) -> 
B104: 0 | C104: 30 | D104: =IF(ISBLANK(D59), "", IF(D59 = "Add additional scenarios if required", "", IF(M59="YES", D59 & " - " & H59 & " - Interval Customers", D59 & " - " &H59))) -> 
B105: 0 | C105: 31 | D105: =IF(ISBLANK(D60), "", IF(D60 = "Add additional scenarios if required", "", IF(M60="YES", D60 & " - " & H60 & " - Interval Customers", D60 & " - " &H60))) -> 
B106: 0 | C106: 32 | D106: =IF(ISBLANK(D61), "", IF(D61 = "Add additional scenarios if required", "", IF(M61="YES", D61 & " - " & H61 & " - Interval Customers", D61 & " - " &H61))) -> 
B107: 0 | C107: 33 | D107: =IF(ISBLANK(D62), "", IF(D62 = "Add additional scenarios if required", "", IF(M62="YES", D62 & " - " & H62 & " - Interval Customers", D62 & " - " &H62))) -> 
B108: 0 | C108: 34 | D108: =IF(ISBLANK(D63), "", IF(D63 = "Add additional scenarios if required", "", IF(M63="YES", D63 & " - " & H63 & " - Interval Customers", D63 & " - " &H63))) -> 
B109: 0 | C109: 35 | D109: =IF(ISBLANK(D64), "", IF(D64 = "Add additional scenarios if required", "", IF(M64="YES", D64 & " - " & H64 & " - Interval Customers", D64 & " - " &H64))) -> 
B110: 0 | C110: 36 | D110: =IF(ISBLANK(D65), "", IF(D65 = "Add additional scenarios if required", "", IF(M65="YES", D65 & " - " & H65 & " - Interval Customers", D65 & " - " &H65))) -> 
B111: 0 | C111: 37 | D111: =IF(ISBLANK(D66), "", IF(D66 = "Add additional scenarios if required", "", IF(M66="YES", D66 & " - " & H66 & " - Interval Customers", D66 & " - " &H66))) -> 
B112: 0 | C112: 38 | D112: =IF(ISBLANK(D67), "", IF(D67 = "Add additional scenarios if required", "", IF(M67="YES", D67 & " - " & H67 & " - Interval Customers", D67 & " - " &H67))) -> 
B113: 0 | C113: 39 | D113: =IF(ISBLANK(D68), "", IF(D68 = "Add additional scenarios if required", "", IF(M68="YES", D68 & " - " & H68 & " - Interval Customers", D68 & " - " &H68))) -> 
B114: 0 | C114: 40 | D114: =IF(ISBLANK(D69), "", IF(D69 = "Add additional scenarios if required", "", IF(M69="YES", D69 & " - " & H69 & " - Interval Customers", D69 & " - " &H69))) -> 
D118: Customer Class: | E118: =D30 -> RESIDENTIAL SERVICE CLASSIFICATION | K118: =IF(N30="DEMAND - INTERVAL","RTSR - INTERVAL METERED","") ->  | T118: X
D119: RPP / Non-RPP: | E119: =H30 -> RPP
D120: Consumption | E120: =K30 -> 750 | F120: kWh
D121: Demand | E121: =L30 -> 0 | F121: kW
D122: Current Loss Factor | E122: =I30 -> 1.081
D123: Proposed/Approved Loss Factor | E123: =J30 -> 1.081
F125: Current OEB-Approved | I125: Proposed | L125: Impact
F126: Rate | G126: Volume | H126: Charge | I126: Rate | J126: Volume | K126: Charge | L126: $ Change | M126: % Change
F127: ($) | H127: ($) | I127: ($) | K127: ($)
A128: =$E118 -> RESIDENTIAL SERVICE CLASSIFICATION | D128: Monthly Service Charge | F128: 13.97 | G128: 1 | H128: =G128*F128 -> 13.97 | I128: 18.32 | J128: =G128 -> 1 | K128: =J128*I128 -> 18.32 | L128: =K128-H128 -> 4.35 | M128: =IF(ISERROR(L128/H128), "", L128/H128) -> 0.3113815319
A129: =A128 -> RESIDENTIAL SERVICE CLASSIFICATION | D129: Distribution Volumetric Rate | F129: 0.0145 | G129: =IF($E121>0, $E121, $E120) -> 750 | H129: =G129*F129 -> 10.875 | I129: 0.0123 | J129: =IF($E121>0, $E121, $E120) -> 750 | K129: =J129*I129 -> 9.225 | L129: -1.65 | M129: =IF(ISERROR(L129/H129), "", L129/H129) -> -0.1517241379
A130: =A129 -> RESIDENTIAL SERVICE CLASSIFICATION | D130: Fixed Rate Riders | F130: 0 | G130: 1 | H130: 0 | I130: 0.4248 | J130: =G130 -> 1 | K130: =J130*I130 -> 0.4248 | L130: 0.4248
A131: RESIDENTIAL SERVICE CLASSIFICATION | D131: Volumetric Rate Riders | F131: 0 | G131: =IF($E121>0, $E121, $E120) -> 750 | H131: 0 | I131: 0.0002 | J131: =IF($E121>0, $E121, $E120) -> 750 | K131: 0.15 | L131: 0.15
A132: RESIDENTIAL SERVICE CLASSIFICATION | B132: ST_A | C132: =B30 -> 1 | D132: Sub-Total A (excluding pass through) | H132: =SUM(H128:H131) -> 24.845 | K132: =SUM(K128:K131) -> 28.1198 | L132: 3.2748 | M132: =IF((H132)=0,"",(L132/H132)) -> 0.1318092171
A133: RESIDENTIAL SERVICE CLASSIFICATION | D133: Line Losses on Cost of Power | F133: =IF((E120*12>=150000), 0, IF(E119="RPP",(F147*0.65+F148*0.17+F149*0.18),IF(E119="Non-RPP (Retailer)",F150,F151))) -> 0.11139 | G133: =IF(F133=0, 0, $E120*E122-E120) -> 60.75 | H133: =G133*F133 -> 6.7669425 | I133: =IF((E120*12>=150000), 0, IF(E119="RPP",(I147*0.65+I148*0.17+I149*0.18),IF(E119="Non-RPP (Retailer)",I150,I151))) -> 0.11139 | J133: =IF(I133=0, 0, E120*E123-E120) -> 60.75 | K133: =J133*I133 -> 6.7669425 | L133: =K133-H133 -> 0 | M133: =IF(ISERROR(L133/H133), "", L133/H133) -> 0
A134: RESIDENTIAL SERVICE CLASSIFICATION | D134: Total Deferral/Variance Account Rate Riders | F134: 0 | G134: =IF($E121>0, $E121, $E120) -> 750 | H134: 0 | I134: 0.0008 | J134: =IF($E121>0, $E121, $E120) -> 750 | K134: 0.6 | L134: 0.6
A135: RESIDENTIAL SERVICE CLASSIFICATION | D135: GA Rate Riders | I135: 0 | J135: =E120 -> 750 | K135: 0 | L135: 0
A136: RESIDENTIAL SERVICE CLASSIFICATION | D136: Low Voltage Service Charge | F136: 0.0011 | G136: =IF($E121>0, $E121, $E120) -> 750 | H136: 0.825 | I136: 0.0011 | J136: =IF($E121>0, $E121, $E120) -> 750 | K136: 0.825 | L136: 0 | M136: 0
A137: RESIDENTIAL SERVICE CLASSIFICATION | D137: Smart Meter Entity Charge (if applicable) | F137: 0.79 | G137: 1 | H137: =G137*F137 -> 0.79 | I137: 0.79 | J137: 1 | K137: =J137*I137 -> 0.79 | L137: =K137-H137 -> 0 | M137: =IF(ISERROR(L137/H137), "", L137/H137) -> 0
A138: RESIDENTIAL SERVICE CLASSIFICATION | B138: ST_B | C138: =B30 -> 1 | D138: Sub-Total B - Distribution (includes Sub-Total A) | H138: =SUM(H132:H137) -> 33.2269425 | K138: =SUM(K132:K137) -> 37.1017425 | L138: =K138-H138 -> 3.8748 | M138: =IF((H138)=0,"",(L138/H138)) -> 0.1166162069
A139: RESIDENTIAL SERVICE CLASSIFICATION | D139: RTSR - Network | F139: 0.0064 | G139: =IF($E121>0, $E121, $E120*$E122) -> 810.75 | H139: =G139*F139 -> 5.1888 | I139: 0.0064 | J139: =IF($E121>0, $E121, $E120*$E123) -> 810.75 | K139: =J139*I139 -> 5.1888 | L139: =K139-H139 -> 0 | M139: =IF(ISERROR(L139/H139), "", L139/H139) -> 0
A140: RESIDENTIAL SERVICE CLASSIFICATION | D140: RTSR - Connection and/or Line and Transformation Connection | F140: 0.0033 | G140: =IF($E121>0, $E121, $E120*$E122) -> 810.75 | H140: =G140*F140 -> 2.675475 | I140: 0.0035 | J140: =IF($E121>0, $E121, $E120*$E123) -> 810.75 | K140: =J140*I140 -> 2.837625 | L140: =K140-H140 -> 0.16215 | M140: =IF(ISERROR(L140/H140), "", L140/H140) -> 0.06060606061
A141: RESIDENTIAL SERVICE CLASSIFICATION | B141: ST_C | C141: =B30 -> 1 | D141: Sub-Total C - Delivery (including Sub-Total B) | H141: =SUM(H138:H140) -> 41.0912175 | K141: =SUM(K138:K140) -> 45.1281675 | L141: =K141-H141 -> 4.03695 | M141: =IF((H141)=0,"",(L141/H141)) -> 0.09824362104
A142: RESIDENTIAL SERVICE CLASSIFICATION | D142: Wholesale Market Service Charge (WMSC) | F142: 0.0044 | G142: =E120*E122 -> 810.75 | H142: =G142*F142 -> 3.5673 | I142: 0.0036 | J142: =E120*E123 -> 810.75 | K142: =J142*I142 -> 2.9187 | L142: =K142-H142 -> -0.6486 | M142: =IF(ISERROR(L142/H142), "", L142/H142) -> -0.1818181818
A143: RESIDENTIAL SERVICE CLASSIFICATION | D143: Rural and Remote Rate Protection (RRRP) | F143: 0.0013 | G143: =E120*E122 -> 810.75 | H143: 1.053975 | I143: 0.0013 | J143: =E120*E123 -> 810.75 | K143: 1.053975 | L143: =K143-H143 -> 0 | M143: 0
A144: RESIDENTIAL SERVICE CLASSIFICATION | D144: Standard Supply Service Charge | F144: 0.25 | G144: 1 | H144: 0.25 | I144: 0.25 | J144: 1 | K144: 0.25 | L144: =K144-H144 -> 0 | M144: 0
A145: RESIDENTIAL SERVICE CLASSIFICATION | D145: Debt Retirement Charge (DRC)
A146: RESIDENTIAL SERVICE CLASSIFICATION | D146: Ontario Electricity Support Program (OESP) | F146: =IF('3. Regulatory Charges'!$D$17= "N/A", 0, '3. Regulatory Charges'!$D$17) -> 0.0011 | G146: =E120*E123 -> 810.75 | H146: 0.891825 | I146: =IF('3. Regulatory Charges'!$D$17= "N/A", 0, '3. Regulatory Charges'!$D$17) -> 0.0011 | J146: =E120*E123 -> 810.75 | K146: 0.891825 | L146: =K146-H146 -> 0 | M146: 0
A147: RESIDENTIAL SERVICE CLASSIFICATION | B147: RPP | D147: TOU - Off Peak | F147: 0.087 | G147: =IF(AND(E120*12>=150000),0.65*E120*E122,0.65*E120) -> 487.5 | H147: 42.4125 | I147: 0.087 | J147: =IF(AND(E120*12>=150000),0.65*E120*E123,0.65*E120) -> 487.5 | K147: 42.4125 | L147: 0 | M147: 0
A148: RESIDENTIAL SERVICE CLASSIFICATION | B148: RPP | D148: TOU - Mid Peak | F148: 0.132 | G148: =IF(AND(E120*12>=150000),0.17*E120*E122,0.17*E120) -> 127.5 | H148: 16.83 | I148: 0.132 | J148: =IF(AND(E120*12>=150000),0.17*E120*E123,0.17*E120) -> 127.5 | K148: 16.83 | L148: 0 | M148: 0
A149: RESIDENTIAL SERVICE CLASSIFICATION | B149: RPP | D149: TOU - On Peak | F149: 0.18 | G149: =IF(AND(E120*12>=150000),0.18*E120*E122,0.18*E120) -> 135 | H149: 24.3 | I149: 0.18 | J149: =IF(AND(E120*12>=150000),0.18*E120*E123,0.18*E120) -> 135 | K149: 24.3 | L149: 0 | M149: 0
A150: RESIDENTIAL SERVICE CLASSIFICATION | B150: Non-RPP (Retailer) | D150: Non-RPP Retailer Avg. Price | F150: =0.113 -> 0.113 | G150: =IF(AND(E120*12>=150000),E120*E122,E120) -> 750 | H150: =G150*F150 -> 84.75 | I150: =F150 -> 0.113 | J150: =IF(AND(E120*12>=150000),E120*E123,E120) -> 750 | K150: =J150*I150 -> 84.75 | L150: 0 | M150: 0
A151: RESIDENTIAL SERVICE CLASSIFICATION | B151: Non-RPP (Other) | D151: Average IESO Wholesale Market Price | F151: =0.113 -> 0.113 | G151: =IF(AND(E120*12>=150000),E120*E122,E120) -> 750 | H151: =G151*F151 -> 84.75 | I151: =F151 -> 0.113 | J151: =IF(AND(E120*12>=150000),E120*E123,E120) -> 750 | K151: =J151*I151 -> 84.75 | L151: 0 | M151: 0
A152: RESIDENTIAL SERVICE CLASSIFICATION
A153: RESIDENTIAL SERVICE CLASSIFICATION | B153: RPP | D153: Total Bill on TOU (before Taxes) | H153: =SUM(H142:H149,H141) -> 130.3968175 | K153: =SUM(K142:K149,K141) -> 133.7851675 | L153: =K153-H153 -> 3.38835 | M153: =IF((H153)=0,"",(L153/H153)) -> 0.02598491332
A154: RESIDENTIAL SERVICE CLASSIFICATION | B154: RPP | D154: HST | F154: 0.13 | H154: =H153*F154 -> 16.95158628 | I154: 0.13 | K154: =K153*I154 -> 17.39207178 | L154: =K154-H154 -> 0.4404855 | M154: =IF((H154)=0,"",(L154/H154)) -> 0.02598491332
A155: RESIDENTIAL SERVICE CLASSIFICATION | B155: RPP_TOTAL | C155: =B30 -> 1 | D155: Total Bill on TOU | H155: =SUM(H153,H154) -> 147.3484038 | K155: =K153+K154 -> 151.1772393 | L155: =K155-H155 -> 3.8288355 | M155: =IF((H155)=0,"",(L155/H155)) -> 0.02598491332
A156: RESIDENTIAL SERVICE CLASSIFICATION | B156: RPP
A157: RESIDENTIAL SERVICE CLASSIFICATION | B157: Non-RPP (Retailer) | D157: Total Bill on Non-RPP Avg. Price | H157: =SUM(H150,H142:H146,H141) -> 131.6043175 | K157: =SUM(K150,K142:K146,K141) -> 134.9926675 | L157: =K157-H157 -> 3.38835 | M157: =IF((H157)=0,"",(L157/H157)) -> 0.02574649574
A158: RESIDENTIAL SERVICE CLASSIFICATION | B158: Non-RPP (Retailer) | D158: HST | F158: 0.13 | H158: =H157*F158 -> 17.10856127 | I158: 0.13 | K158: =K157*I158 -> 17.54904678 | L158: =K158-H158 -> 0.4404855 | M158: =IF((H158)=0,"",(L158/H158)) -> 0.02574649574
A159: RESIDENTIAL SERVICE CLASSIFICATION | B159: Non-RPP (Retailer)_TOTAL | D159: Total Bill on Non-RPP Avg. Price | H159: =SUM(H157,H158) -> 148.7128788 | K159: =SUM(K157,K158) -> 152.5417143 | L159: =K159-H159 -> 3.8288355 | M159: =IF((H159)=0,"",(L159/H159)) -> 0.02574649574
A160: RESIDENTIAL SERVICE CLASSIFICATION | B160: Non-RPP (Retailer)
A161: RESIDENTIAL SERVICE CLASSIFICATION | B161: Non-RPP (Other) | D161: Total Bill on Average IESO Wholesale Market Price | H161: =SUM(H151,H142:H146,H141) -> 131.6043175 | K161: =SUM(K151,K142:K146,K141) -> 134.9926675 | L161: =K161-H161 -> 3.38835 | M161: =IF((H161)=0,"",(L161/H161)) -> 0.02574649574
A162: RESIDENTIAL SERVICE CLASSIFICATION | B162: Non-RPP (Other) | D162: HST | F162: 0.13 | H162: =H161*F162 -> 17.10856127 | I162: 0.13 | K162: =K161*I162 -> 17.54904678 | L162: =K162-H162 -> 0.4404855 | M162: =IF((H162)=0,"",(L162/H162)) -> 0.02574649574
A163: RESIDENTIAL SERVICE CLASSIFICATION | B163: Non-RPP (Other)_TOTAL | D163: Total Bill on Average IESO Wholesale Market Price | H163: =SUM(H161,H162) -> 148.7128788 | K163: =SUM(K161,K162) -> 152.5417143 | L163: =K163-H163 -> 3.8288355 | M163: =IF((H163)=0,"",(L163/H163)) -> 0.02574649574
A164: RESIDENTIAL SERVICE CLASSIFICATION | B164: Non-RPP (Other)
D172: Customer Class: | E172: =D31 -> GENERAL SERVICE LESS THAN 50 kW SERVICE CLASSIFICATION | K172: =IF(N31="DEMAND - INTERVAL","RTSR - INTERVAL METERED","") ->  | T172: X
D173: RPP / Non-RPP: | E173: =H31 -> RPP
D174: Consumption | E174: =K31 -> 2000 | F174: kWh
D175: Demand | E175: =L31 -> 0 | F175: kW
D176: Current Loss Factor | E176: =I31 -> 1.081
D177: Proposed/Approved Loss Factor | E177: =J31 -> 1.081
F179: Current OEB-Approved | I179: Proposed | L179: Impact
F180: Rate | G180: Volume | H180: Charge | I180: Rate | J180: Volume | K180: Charge | L180: $ Change | M180: % Change
F181: ($) | H181: ($) | I181: ($) | K181: ($)
A182: =$E172 -> GENERAL SERVICE LESS THAN 50 kW SERVICE CLASSIFICATION | D182: Monthly Service Charge | F182: 31.25 | G182: 1 | H182: =G182*F182 -> 31.25 | I182: 31.25 | J182: =G182 -> 1 | K182: =J182*I182 -> 31.25 | L182: =K182-H182 -> 0 | M182: =IF(ISERROR(L182/H182), "", L182/H182) -> 0
A183: =A182 -> GENERAL SERVICE LESS THAN 50 kW SERVICE CLASSIFICATION | D183: Distribution Volumetric Rate | F183: 0.0137 | G183: =IF($E175>0, $E175, $E174) -> 2000 | H183: =G183*F183 -> 27.4 | I183: 0.0171 | J183: =IF($E175>0, $E175, $E174) -> 2000 | K183: =J183*I183 -> 34.2 | L183: 6.8 | M183: =IF(ISERROR(L183/H183), "", L183/H183) -> 0.2481751825
A184: =A183 -> GENERAL SERVICE LESS THAN 50 kW SERVICE CLASSIFICATION | D184: Fixed Rate Riders | F184: 0 | G184: 1 | H184: 0 | I184: 3.34 | J184: =G184 -> 1 | K184: =J184*I184 -> 3.34 | L184: 3.34
A185: GENERAL SERVICE LESS THAN 50 kW SERVICE CLASSIFICATION | D185: Volumetric Rate Riders | F185: 0 | G185: =IF($E175>0, $E175, $E174) -> 2000 | H185: 0 | I185: -0.0017 | J185: =IF($E175>0, $E175, $E174) -> 2000 | K185: -3.4 | L185: -3.4
A186: GENERAL SERVICE LESS THAN 50 kW SERVICE CLASSIFICATION | B186: ST_A | C186: =B31 -> 2 | D186: Sub-Total A (excluding pass through) | H186: =SUM(H182:H185) -> 58.65 | K186: =SUM(K182:K185) -> 65.39 | L186: 6.74 | M186: =IF((H186)=0,"",(L186/H186)) -> 0.1149190111
A187: GENERAL SERVICE LESS THAN 50 kW SERVICE CLASSIFICATION | D187: Line Losses on Cost of Power | F187: =IF((E174*12>=150000), 0, IF(E173="RPP",(F201*0.65+F202*0.17+F203*0.18),IF(E173="Non-RPP (Retailer)",F204,F205))) -> 0.11139 | G187: =IF(F187=0, 0, $E174*E176-E174) -> 162 | H187: =G187*F187 -> 18.04518 | I187: =IF((E174*12>=150000), 0, IF(E173="RPP",(I201*0.65+I202*0.17+I203*0.18),IF(E173="Non-RPP (Retailer)",I204,I205))) -> 0.11139 | J187: =IF(I187=0, 0, E174*E177-E174) -> 162 | K187: =J187*I187 -> 18.04518 | L187: =K187-H187 -> 0 | M187: =IF(ISERROR(L187/H187), "", L187/H187) -> 0
A188: GENERAL SERVICE LESS THAN 50 kW SERVICE CLASSIFICATION | D188: Total Deferral/Variance Account Rate Riders | F188: 0 | G188: =IF($E175>0, $E175, $E174) -> 2000 | H188: 0 | I188: 0.0008 | J188: =IF($E175>0, $E175, $E174) -> 2000 | K188: 1.6 | L188: 1.6
A189: GENERAL SERVICE LESS THAN 50 kW SERVICE CLASSIFICATION | D189: GA Rate Riders | I189: 0 | J189: =E174 -> 2000 | K189: 0 | L189: 0
A190: GENERAL SERVICE LESS THAN 50 kW SERVICE CLASSIFICATION | D190: Low Voltage Service Charge | F190: 0.001 | G190: =IF($E175>0, $E175, $E174) -> 2000 | H190: 2 | I190: 0.001 | J190: =IF($E175>0, $E175, $E174) -> 2000 | K190: 2 | L190: 0 | M190: 0
A191: GENERAL SERVICE LESS THAN 50 kW SERVICE CLASSIFICATION | D191: Smart Meter Entity Charge (if applicable) | F191: 0.79 | G191: 1 | H191: =G191*F191 -> 0.79 | I191: 0.79 | J191: 1 | K191: =J191*I191 -> 0.79 | L191: =K191-H191 -> 0 | M191: =IF(ISERROR(L191/H191), "", L191/H191) -> 0
A192: GENERAL SERVICE LESS THAN 50 kW SERVICE CLASSIFICATION | B192: ST_B | C192: =B31 -> 2 | D192: Sub-Total B - Distribution (includes Sub-Total A) | H192: =SUM(H186:H191) -> 79.48518 | K192: =SUM(K186:K191) -> 87.82518 | L192: =K192-H192 -> 8.34 | M192: =IF((H192)=0,"",(L192/H192)) -> 0.10492522
A193: GENERAL SERVICE LESS THAN 50 kW SERVICE CLASSIFICATION | D193: RTSR - Network | F193: 0.0058 | G193: =IF($E175>0, $E175, $E174*$E176) -> 2162 | H193: =G193*F193 -> 12.5396 | I193: 0.0058 | J193: =IF($E175>0, $E175, $E174*$E177) -> 2162 | K193: =J193*I193 -> 12.5396 | L193: =K193-H193 -> 0 | M193: =IF(ISERROR(L193/H193), "", L193/H193) -> 0
A194: GENERAL SERVICE LESS THAN 50 kW SERVICE CLASSIFICATION | D194: RTSR - Connection and/or Line and Transformation Connection | F194: 0.0031 | G194: =IF($E175>0, $E175, $E174*$E176) -> 2162 | H194: =G194*F194 -> 6.7022 | I194: 0.0033 | J194: =IF($E175>0, $E175, $E174*$E177) -> 2162 | K194: =J194*I194 -> 7.1346 | L194: =K194-H194 -> 0.4324 | M194: =IF(ISERROR(L194/H194), "", L194/H194) -> 0.06451612903
A195: GENERAL SERVICE LESS THAN 50 kW SERVICE CLASSIFICATION | B195: ST_C | C195: =B31 -> 2 | D195: Sub-Total C - Delivery (including Sub-Total B) | H195: =SUM(H192:H194) -> 98.72698 | K195: =SUM(K192:K194) -> 107.49938 | L195: =K195-H195 -> 8.7724 | M195: =IF((H195)=0,"",(L195/H195)) -> 0.08885514375
A196: GENERAL SERVICE LESS THAN 50 kW SERVICE CLASSIFICATION | D196: Wholesale Market Service Charge (WMSC) | F196: 0.0044 | G196: =E174*E176 -> 2162 | H196: =G196*F196 -> 9.5128 | I196: 0.0036 | J196: =E174*E177 -> 2162 | K196: =J196*I196 -> 7.7832 | L196: =K196-H196 -> -1.7296 | M196: =IF(ISERROR(L196/H196), "", L196/H196) -> -0.1818181818
A197: GENERAL SERVICE LESS THAN 50 kW SERVICE CLASSIFICATION | D197: Rural and Remote Rate Protection (RRRP) | F197: 0.0013 | G197: =E174*E176 -> 2162 | H197: 2.8106 | I197: 0.0013 | J197: =E174*E177 -> 2162 | K197: 2.8106 | L197: =K197-H197 -> 0 | M197: 0
A198: GENERAL SERVICE LESS THAN 50 kW SERVICE CLASSIFICATION | D198: Standard Supply Service Charge | F198: 0.25 | G198: 1 | H198: 0.25 | I198: 0.25 | J198: 1 | K198: 0.25 | L198: =K198-H198 -> 0 | M198: 0
A199: GENERAL SERVICE LESS THAN 50 kW SERVICE CLASSIFICATION | D199: Debt Retirement Charge (DRC) | F199: =IF('1. Information Sheet'!F196 = DATE(2016, 5, 1), (IF(ISERROR(FIND("RESIDENTIAL", UPPER(E172))), 0.007, 0)), 0.007) -> 0.007 | G199: =E174 -> 2000 | H199: 14 | I199: =IF(ISERROR(FIND("RESIDENTIAL", UPPER(E172))), 0.007, 0) -> 0.007 | J199: =E174 -> 2000 | K199: 14 | L199: =K199-H199 -> 0 | M199: 0
A200: GENERAL SERVICE LESS THAN 50 kW SERVICE CLASSIFICATION | D200: Ontario Electricity Support Program (OESP) | F200: =IF('3. Regulatory Charges'!$D$17= "N/A", 0, '3. Regulatory Charges'!$D$17) -> 0.0011 | G200: =E174*E177 -> 2162 | H200: 2.3782 | I200: =IF('3. Regulatory Charges'!$D$17= "N/A", 0, '3. Regulatory Charges'!$D$17) -> 0.0011 | J200: =E174*E177 -> 2162 | K200: 2.3782 | L200: 0 | M200: 0
A201: GENERAL SERVICE LESS THAN 50 kW SERVICE CLASSIFICATION | B201: RPP | D201: TOU - Off Peak | F201: 0.087 | G201: =IF(AND(E174*12>=150000),0.65*E174*E176,0.65*E174) -> 1300 | H201: 113.1 | I201: 0.087 | J201: =IF(AND(E174*12>=150000),0.65*E174*E177,0.65*E174) -> 1300 | K201: 113.1 | L201: 0 | M201: 0
A202: GENERAL SERVICE LESS THAN 50 kW SERVICE CLASSIFICATION | B202: RPP | D202: TOU - Mid Peak | F202: 0.132 | G202: =IF(AND(E174*12>=150000),0.17*E174*E176,0.17*E174) -> 340 | H202: 44.88 | I202: 0.132 | J202: =IF(AND(E174*12>=150000),0.17*E174*E177,0.17*E174) -> 340 | K202: 44.88 | L202: 0 | M202: 0
A203: GENERAL SERVICE LESS THAN 50 kW SERVICE CLASSIFICATION | B203: RPP | D203: TOU - On Peak | F203: 0.18 | G203: =IF(AND(E174*12>=150000),0.18*E174*E176,0.18*E174) -> 360 | H203: 64.8 | I203: 0.18 | J203: =IF(AND(E174*12>=150000),0.18*E174*E177,0.18*E174) -> 360 | K203: 64.8 | L203: 0 | M203: 0
A204: GENERAL SERVICE LESS THAN 50 kW SERVICE CLASSIFICATION | B204: Non-RPP (Retailer) | D204: Non-RPP Retailer Avg. Price | F204: =0.113 -> 0.113 | G204: =IF(AND(E174*12>=150000),E174*E176,E174) -> 2000 | H204: =G204*F204 -> 226 | I204: =F204 -> 0.113 | J204: =IF(AND(E174*12>=150000),E174*E177,E174) -> 2000 | K204: =J204*I204 -> 226 | L204: 0 | M204: 0
A205: GENERAL SERVICE LESS THAN 50 kW SERVICE CLASSIFICATION | B205: Non-RPP (Other) | D205: Average IESO Wholesale Market Price | F205: =0.113 -> 0.113 | G205: =IF(AND(E174*12>=150000),E174*E176,E174) -> 2000 | H205: =G205*F205 -> 226 | I205: =F205 -> 0.113 | J205: =IF(AND(E174*12>=150000),E174*E177,E174) -> 2000 | K205: =J205*I205 -> 226 | L205: 0 | M205: 0
A206: GENERAL SERVICE LESS THAN 50 kW SERVICE CLASSIFICATION
A207: GENERAL SERVICE LESS THAN 50 kW SERVICE CLASSIFICATION | B207: RPP | D207: Total Bill on TOU (before Taxes) | H207: =SUM(H196:H203,H195) -> 350.45858 | K207: =SUM(K196:K203,K195) -> 357.50138 | L207: =K207-H207 -> 7.0428 | M207: =IF((H207)=0,"",(L207/H207)) -> 0.02009595542
A208: GENERAL SERVICE LESS THAN 50 kW SERVICE CLASSIFICATION | B208: RPP | D208: HST | F208: 0.13 | H208: =H207*F208 -> 45.5596154 | I208: 0.13 | K208: =K207*I208 -> 46.4751794 | L208: =K208-H208 -> 0.915564 | M208: =IF((H208)=0,"",(L208/H208)) -> 0.02009595542
A209: GENERAL SERVICE LESS THAN 50 kW SERVICE CLASSIFICATION | B209: RPP_TOTAL | C209: =B31 -> 2 | D209: Total Bill on TOU | H209: =SUM(H207,H208) -> 396.0181954 | K209: =K207+K208 -> 403.9765594 | L209: =K209-H209 -> 7.958364 | M209: =IF((H209)=0,"",(L209/H209)) -> 0.02009595542
A210: GENERAL SERVICE LESS THAN 50 kW SERVICE CLASSIFICATION | B210: RPP
A211: GENERAL SERVICE LESS THAN 50 kW SERVICE CLASSIFICATION | B211: Non-RPP (Retailer) | D211: Total Bill on Non-RPP Avg. Price | H211: =SUM(H204,H196:H200,H195) -> 353.67858 | K211: =SUM(K204,K196:K200,K195) -> 360.72138 | L211: =K211-H211 -> 7.0428 | M211: =IF((H211)=0,"",(L211/H211)) -> 0.01991299558
A212: GENERAL SERVICE LESS THAN 50 kW SERVICE CLASSIFICATION | B212: Non-RPP (Retailer) | D212: HST | F212: 0.13 | H212: =H211*F212 -> 45.9782154 | I212: 0.13 | K212: =K211*I212 -> 46.8937794 | L212: =K212-H212 -> 0.915564 | M212: =IF((H212)=0,"",(L212/H212)) -> 0.01991299558
A213: GENERAL SERVICE LESS THAN 50 kW SERVICE CLASSIFICATION | B213: Non-RPP (Retailer)_TOTAL | D213: Total Bill on Non-RPP Avg. Price | H213: =SUM(H211,H212) -> 399.6567954 | K213: =SUM(K211,K212) -> 407.6151594 | L213: =K213-H213 -> 7.958364 | M213: =IF((H213)=0,"",(L213/H213)) -> 0.01991299558
A214: GENERAL SERVICE LESS THAN 50 kW SERVICE CLASSIFICATION | B214: Non-RPP (Retailer)
A215: GENERAL SERVICE LESS THAN 50 kW SERVICE CLASSIFICATION | B215: Non-RPP (Other) | D215: Total Bill on Average IESO Wholesale Market Price | H215: =SUM(H205,H196:H200,H195) -> 353.67858 | K215: =SUM(K205,K196:K200,K195) -> 360.72138 | L215: =K215-H215 -> 7.0428 | M215: =IF((H215)=0,"",(L215/H215)) -> 0.01991299558
A216: GENERAL SERVICE LESS THAN 50 kW SERVICE CLASSIFICATION | B216: Non-RPP (Other) | D216: HST | F216: 0.13 | H216: =H215*F216 -> 45.9782154 | I216: 0.13 | K216: =K215*I216 -> 46.8937794 | L216: =K216-H216 -> 0.915564 | M216: =IF((H216)=0,"",(L216/H216)) -> 0.01991299558
A217: GENERAL SERVICE LESS THAN 50 kW SERVICE CLASSIFICATION | B217: Non-RPP (Other)_TOTAL | D217: Total Bill on Average IESO Wholesale Market Price | H217: =SUM(H215,H216) -> 399.6567954 | K217: =SUM(K215,K216) -> 407.6151594 | L217: =K217-H217 -> 7.958364 | M217: =IF((H217)=0,"",(L217/H217)) -> 0.01991299558
A218: GENERAL SERVICE LESS THAN 50 kW SERVICE CLASSIFICATION | B218: Non-RPP (Other)
D226: Customer Class: | E226: =D32 -> GENERAL SERVICE 50 TO 4,999 KW SERVICE CLASSIFICATION | K226: =IF(N32="DEMAND - INTERVAL","RTSR - INTERVAL METERED","") ->  | T226: X
D227: RPP / Non-RPP: | E227: =H32 -> Non-RPP (Other)
D228: Consumption | E228: =K32 -> 61605 | F228: kWh
D229: Demand | E229: =L32 -> 156 | F229: kW
D230: Current Loss Factor | E230: =I32 -> 1.081
D231: Proposed/Approved Loss Factor | E231: =J32 -> 1.081
F233: Current OEB-Approved | I233: Proposed | L233: Impact
F234: Rate | G234: Volume | H234: Charge | I234: Rate | J234: Volume | K234: Charge | L234: $ Change | M234: % Change
F235: ($) | H235: ($) | I235: ($) | K235: ($)
A236: =$E226 -> GENERAL SERVICE 50 TO 4,999 KW SERVICE CLASSIFICATION | D236: Monthly Service Charge | F236: 189.27 | G236: 1 | H236: =G236*F236 -> 189.27 | I236: 189.27 | J236: =G236 -> 1 | K236: =J236*I236 -> 189.27 | L236: =K236-H236 -> 0 | M236: =IF(ISERROR(L236/H236), "", L236/H236) -> 0
A237: =A236 -> GENERAL SERVICE 50 TO 4,999 KW SERVICE CLASSIFICATION | D237: Distribution Volumetric Rate | F237: 2.5331 | G237: =IF($E229>0, $E229, $E228) -> 156 | H237: =G237*F237 -> 395.1636 | I237: 3.1129 | J237: =IF($E229>0, $E229, $E228) -> 156 | K237: =J237*I237 -> 485.6124 | L237: 90.4488 | M237: =IF(ISERROR(L237/H237), "", L237/H237) -> 0.228889503
A238: =A237 -> GENERAL SERVICE 50 TO 4,999 KW SERVICE CLASSIFICATION | D238: Fixed Rate Riders | F238: 0 | G238: 1 | H238: 0 | I238: 16.42 | J238: =G238 -> 1 | K238: =J238*I238 -> 16.42 | L238: 16.42
A239: GENERAL SERVICE 50 TO 4,999 KW SERVICE CLASSIFICATION | D239: Volumetric Rate Riders | F239: 0 | G239: =IF($E229>0, $E229, $E228) -> 156 | H239: 0 | I239: -0.598 | J239: =IF($E229>0, $E229, $E228) -> 156 | K239: -93.288 | L239: -93.288
A240: GENERAL SERVICE 50 TO 4,999 KW SERVICE CLASSIFICATION | B240: ST_A | C240: =B32 -> 3 | D240: Sub-Total A (excluding pass through) | H240: =SUM(H236:H239) -> 584.4336 | K240: =SUM(K236:K239) -> 598.0144 | L240: 13.5808 | M240: =IF((H240)=0,"",(L240/H240)) -> 0.02323754144
A241: GENERAL SERVICE 50 TO 4,999 KW SERVICE CLASSIFICATION | D241: Line Losses on Cost of Power | F241: =IF((E228*12>=150000), 0, IF(E227="RPP",(F255*0.65+F256*0.17+F257*0.18),IF(E227="Non-RPP (Retailer)",F258,F259))) -> 0 | G241: =IF(F241=0, 0, $E228*E230-E228) -> 0 | H241: =G241*F241 -> 0 | I241: =IF((E228*12>=150000), 0, IF(E227="RPP",(I255*0.65+I256*0.17+I257*0.18),IF(E227="Non-RPP (Retailer)",I258,I259))) -> 0 | J241: =IF(I241=0, 0, E228*E231-E228) -> 0 | K241: =J241*I241 -> 0 | L241: =K241-H241 -> 0 | M241: =IF(ISERROR(L241/H241), "", L241/H241) -> 
A242: GENERAL SERVICE 50 TO 4,999 KW SERVICE CLASSIFICATION | D242: Total Deferral/Variance Account Rate Riders | F242: 0 | G242: =IF($E229>0, $E229, $E228) -> 156 | H242: 0 | I242: 0.2755 | J242: =IF($E229>0, $E229, $E228) -> 156 | K242: 42.978 | L242: 42.978
A243: GENERAL SERVICE 50 TO 4,999 KW SERVICE CLASSIFICATION | D243: GA Rate Riders | I243: 0.0038 | J243: =E228 -> 61605 | K243: 234.099 | L243: 234.099
A244: GENERAL SERVICE 50 TO 4,999 KW SERVICE CLASSIFICATION | D244: Low Voltage Service Charge | F244: 0.3564 | G244: =IF($E229>0, $E229, $E228) -> 156 | H244: 55.5984 | I244: 0.3733 | J244: =IF($E229>0, $E229, $E228) -> 156 | K244: 58.2348 | L244: 2.6364 | M244: 0.04741863075
A245: GENERAL SERVICE 50 TO 4,999 KW SERVICE CLASSIFICATION | D245: Smart Meter Entity Charge (if applicable) | F245: 0 | G245: 1 | H245: =G245*F245 -> 0 | I245: 0 | J245: 1 | K245: =J245*I245 -> 0 | L245: =K245-H245 -> 0 | M245: =IF(ISERROR(L245/H245), "", L245/H245) -> 
... 303 more rows

Sheet 20. HIDDEN (hidden)
D2: Customer Class: | O2: =FIND("RESIDENTIAL", E2) -> 
D3: RPP / Non-RPP:
D4: Consumption | F4: kWh
D5: Demand | F5: kW
D6: Current Loss Factor
D7: Proposed/Approved Loss Factor
F9: Current OEB-Approved | I9: Proposed | L9: Impact
F10: Rate | G10: Volume | H10: Charge | I10: Rate | J10: Volume | K10: Charge | L10: $ Change | M10: % Change
F11: ($) | H11: ($) | I11: ($) | K11: ($)
A12: =$E2 -> 0 | D12: Monthly Service Charge | G12: 1 | H12: =G12*F12 -> 0 | J12: =G12 -> 1 | K12: =J12*I12 -> 0 | L12: =K12-H12 -> 0 | M12: =IF(ISERROR(L12/H12), "", L12/H12) -> 
A13: =A12 -> 0 | D13: Distribution Volumetric Rate | G13: =IF($E5>0, $E5, $E4) -> 0 | H13: =G13*F13 -> 0 | J13: =IF($E5>0, $E5, $E4) -> 0 | K13: =J13*I13 -> 0 | L13: 0 | M13: =IF(ISERROR(L13/H13), "", L13/H13) -> 
A14: =A13 -> 0 | D14: Fixed Rate Riders | G14: 1 | H14: 0 | J14: =G14 -> 1 | K14: =J14*I14 -> 0 | L14: 0
A15: 0 | D15: Volumetric Rate Riders | G15: =IF($E5>0, $E5, $E4) -> 0 | H15: 0 | J15: =IF($E5>0, $E5, $E4) -> 0 | K15: 0 | L15: 0
A16: 0 | B16: ST_A | D16: Sub-Total A (excluding pass through) | H16: =SUM(H12:H15) -> 0 | K16: =SUM(K12:K15) -> 0 | L16: 0 | M16: =IF((H16)=0,"",(L16/H16)) -> 
A17: 0 | D17: Line Losses on Cost of Power | F17: =IF((E4*12>=150000), 0, IF(E3="RPP",(F31*0.65+F32*0.17+F33*0.18),IF(E3="Non-RPP (Retailer)",F34,F35))) -> 0.113 | G17: =IF(F17=0, 0, $E4*E6-E4) -> 0 | H17: =G17*F17 -> 0 | I17: =IF((E4*12>=150000), 0, IF(E3="RPP",(I31*0.65+I32*0.17+I33*0.18),IF(E3="Non-RPP (Retailer)",I34,I35))) -> 0.113 | J17: =IF(I17=0, 0, E4*E7-E4) -> 0 | K17: =J17*I17 -> 0 | L17: =K17-H17 -> 0 | M17: =IF(ISERROR(L17/H17), "", L17/H17) -> 
A18: 0 | D18: Total Deferral/Variance Account Rate Riders | G18: =IF($E5>0, $E5, $E4) -> 0 | H18: 0 | J18: =IF($E5>0, $E5, $E4) -> 0 | K18: 0 | L18: 0
A19: 0 | D19: GA Rate Riders | J19: =E4 -> 0 | K19: 0 | L19: 0
A20: 0 | D20: Low Voltage Service Charge | G20: =IF($E5>0, $E5, $E4) -> 0 | H20: 0 | J20: =IF($E5>0, $E5, $E4) -> 0 | K20: 0 | L20: 0
A21: 0 | D21: Smart Meter Entity Charge (if applicable) | F21: =IF(OR(ISNUMBER(SEARCH("RESIDENTIAL", E2))=TRUE, ISNUMBER(SEARCH("GENERAL SERVICE LESS THAN 50", E2))=TRUE), 0.79, 0) -> 0 | G21: 1 | H21: =G21*F21 -> 0 | I21: =IF(OR(ISNUMBER(SEARCH("RESIDENTIAL", E2))=TRUE, ISNUMBER(SEARCH("GENERAL SERVICE LESS THAN 50", E2))=TRUE), 0.79, 0) -> 0 | J21: 1 | K21: =J21*I21 -> 0 | L21: =K21-H21 -> 0 | M21: =IF(ISERROR(L21/H21), "", L21/H21) -> 
A22: 0 | B22: ST_B | D22: Sub-Total B - Distribution (includes Sub-Total A) | H22: =SUM(H16:H21) -> 0 | K22: =SUM(K16:K21) -> 0 | L22: =K22-H22 -> 0 | M22: =IF((H22)=0,"",(L22/H22)) -> 
A23: 0 | D23: RTSR - Network | G23: =IF($E5>0, $E5, $E4*$E6) -> 0 | H23: =G23*F23 -> 0 | J23: =IF($E5>0, $E5, $E4*$E7) -> 0 | K23: =J23*I23 -> 0 | L23: =K23-H23 -> 0 | M23: =IF(ISERROR(L23/H23), "", L23/H23) -> 
A24: 0 | D24: RTSR - Connection and/or Line and Transformation Connection | G24: =IF($E5>0, $E5, $E4*$E6) -> 0 | H24: =G24*F24 -> 0 | J24: =IF($E5>0, $E5, $E4*$E7) -> 0 | K24: =J24*I24 -> 0 | L24: =K24-H24 -> 0 | M24: =IF(ISERROR(L24/H24), "", L24/H24) -> 
A25: 0 | B25: ST_C | D25: Sub-Total C - Delivery (including Sub-Total B) | H25: =SUM(H22:H24) -> 0 | K25: =SUM(K22:K24) -> 0 | L25: =K25-H25 -> 0 | M25: =IF((H25)=0,"",(L25/H25)) -> 
A26: 0 | D26: Wholesale Market Service Charge (WMSC) | G26: =E4*E6 -> 0 | H26: =G26*F26 -> 0 | I26: ='3. Regulatory Charges'!$D$14 -> 0.0036 | J26: =E4*E7 -> 0 | K26: =J26*I26 -> 0 | L26: =K26-H26 -> 0 | M26: =IF(ISERROR(L26/H26), "", L26/H26) -> 
A27: 0 | D27: Rural and Remote Rate Protection (RRRP) | G27: =E4*E6 -> 0 | H27: 0 | I27: ='3. Regulatory Charges'!$D$15 -> 0.0013 | J27: =E4*E7 -> 0 | K27: 0 | L27: =K27-H27 -> 0
A28: 0 | D28: Standard Supply Service Charge | G28: 1 | H28: 0 | I28: ='3. Regulatory Charges'!$D$16 -> 0.25 | J28: 1 | K28: 0.25 | L28: =K28-H28 -> 0.25
A29: 0 | D29: Debt Retirement Charge (DRC) | F29: =IF('1. Information Sheet'!F26 = DATE(2016, 5, 1), (IF(ISERROR(FIND("RESIDENTIAL", UPPER(E2))), 0.007, 0)), 0.007) -> 0.007 | G29: =E4 -> 0 | H29: 0 | I29: =IF(ISERROR(FIND("RESIDENTIAL", UPPER(E2))), 0.007, 0) -> 0.007 | J29: =E4 -> 0 | K29: 0 | L29: =K29-H29 -> 0
A30: 0 | D30: Ontario Electricity Support Program (OESP) | F30: =IF('3. Regulatory Charges'!$D$17= "N/A", 0, '3. Regulatory Charges'!$D$17) -> 0.0011 | G30: =E4*E7 -> 0 | H30: 0 | I30: =IF('3. Regulatory Charges'!$D$17= "N/A", 0, '3. Regulatory Charges'!$D$17) -> 0.0011 | J30: =E4*E7 -> 0 | K30: 0 | L30: 0
A31: 0 | B31: RPP | D31: TOU - Off Peak | F31: 0.087 | G31: =IF(AND(E4*12>=150000),0.65*E4*E6,0.65*E4) -> 0 | H31: 0 | I31: 0.087 | J31: =IF(AND(E4*12>=150000),0.65*E4*E7,0.65*E4) -> 0 | K31: 0 | L31: 0
A32: 0 | B32: RPP | D32: TOU - Mid Peak | F32: 0.132 | G32: =IF(AND(E4*12>=150000),0.17*E4*E6,0.17*E4) -> 0 | H32: 0 | I32: 0.132 | J32: =IF(AND(E4*12>=150000),0.17*E4*E7,0.17*E4) -> 0 | K32: 0 | L32: 0
A33: 0 | B33: RPP | D33: TOU - On Peak | F33: 0.18 | G33: =IF(AND(E4*12>=150000),0.18*E4*E6,0.18*E4) -> 0 | H33: 0 | I33: 0.18 | J33: =IF(AND(E4*12>=150000),0.18*E4*E7,0.18*E4) -> 0 | K33: 0 | L33: 0
A34: 0 | B34: Non-RPP (Retailer) | D34: Non-RPP Retailer Avg. Price | F34: =0.113 -> 0.113 | G34: =IF(AND(E4*12>=150000),E4*E6,E4) -> 0 | H34: =G34*F34 -> 0 | I34: =F34 -> 0.113 | J34: =IF(AND(E4*12>=150000),E4*E7,E4) -> 0 | K34: =J34*I34 -> 0 | L34: 0
A35: 0 | B35: Non-RPP (Other) | D35: Average IESO Wholesale Market Price | F35: =0.113 -> 0.113 | G35: =IF(AND(E4*12>=150000),E4*E6,E4) -> 0 | H35: =G35*F35 -> 0 | I35: =F35 -> 0.113 | J35: =IF(AND(E4*12>=150000),E4*E7,E4) -> 0 | K35: =J35*I35 -> 0 | L35: 0
A36: 0
A37: 0 | B37: RPP | D37: Total Bill on TOU (before Taxes) | H37: =SUM(H26:H33,H25) -> 0 | K37: =SUM(K26:K33,K25) -> 0.25 | L37: =K37-H37 -> 0.25 | M37: =IF((H37)=0,"",(L37/H37)) -> 
A38: 0 | B38: RPP | D38: HST | F38: 0.13 | H38: =H37*F38 -> 0 | I38: 0.13 | K38: =K37*I38 -> 0.0325 | L38: =K38-H38 -> 0.0325 | M38: =IF((H38)=0,"",(L38/H38)) -> 
A39: 0 | B39: RPP_TOTAL | D39: Total Bill on TOU | H39: =SUM(H37,H38) -> 0 | K39: =K37+K38 -> 0.2825 | L39: =K39-H39 -> 0.2825 | M39: =IF((H39)=0,"",(L39/H39)) -> 
A40: 0 | B40: RPP
A41: 0 | B41: Non-RPP (Retailer) | D41: Total Bill on Non-RPP Avg. Price | H41: =SUM(H34,H26:H30,H25) -> 0 | K41: =SUM(K34,K26:K30,K25) -> 0.25 | L41: =K41-H41 -> 0.25 | M41: =IF((H41)=0,"",(L41/H41)) -> 
A42: 0 | B42: Non-RPP (Retailer) | D42: HST | F42: 0.13 | H42: =H41*F42 -> 0 | I42: 0.13 | K42: =K41*I42 -> 0.0325 | L42: =K42-H42 -> 0.0325 | M42: =IF((H42)=0,"",(L42/H42)) -> 
A43: 0 | B43: Non-RPP (Retailer)_TOTAL | D43: Total Bill on Non-RPP Avg. Price | H43: =SUM(H41,H42) -> 0 | K43: =SUM(K41,K42) -> 0.2825 | L43: =K43-H43 -> 0.2825 | M43: =IF((H43)=0,"",(L43/H43)) -> 
A44: 0 | B44: Non-RPP (Retailer)
A45: 0 | B45: Non-RPP (Other) | D45: Total Bill on Average IESO Wholesale Market Price | H45: =SUM(H35,H26:H30,H25) -> 0 | K45: =SUM(K35,K26:K30,K25) -> 0.25 | L45: =K45-H45 -> 0.25 | M45: =IF((H45)=0,"",(L45/H45)) -> 
A46: 0 | B46: Non-RPP (Other) | D46: HST | F46: 0.13 | H46: =H45*F46 -> 0 | I46: 0.13 | K46: =K45*I46 -> 0.0325 | L46: =K46-H46 -> 0.0325 | M46: =IF((H46)=0,"",(L46/H46)) -> 
A47: 0 | B47: Non-RPP (Other)_TOTAL | D47: Total Bill on Average IESO Wholesale Market Price | H47: =SUM(H45,H46) -> 0 | K47: =SUM(K45,K46) -> 0.2825 | L47: =K47-H47 -> 0.2825 | M47: =IF((H47)=0,"",(L47/H47)) -> 
A48: 0 | B48: Non-RPP (Other)

Sheet 2016 Database (hidden)
A2: Algoma Power Inc. | C2: EFF_DATE | E2: Algoma Power Inc. | I2: X | J2: Algoma Power Inc._Start | K2: Algoma Power Inc. | M2: 6 | V2: 17
A3: Algoma Power Inc. | C3: IMP_DATE | E3: TARIFF OF RATES AND CHARGES | V3: 27
A4: Algoma Power Inc. | C4: EBNUMBER | E4: Effective and Implementation Date January 1, 2016 | S4: 2016-01-01 | V4: 49
A5: Algoma Power Inc. | C5: NUMBER OF RATE CLASSES | E5: This schedule supersedes and replaces all previously | V5: 52
A6: Algoma Power Inc. | E6: approved schedules of Rates, Charges and Loss Factors | V6: 53
A7: Algoma Power Inc. | E7: EB-2015-0051 | K7: EB-2015-0051 | V7: 12
A8: Algoma Power Inc. | E8: RESIDENTIAL – R1 SERVICE CLASSIFICATION | K8: 1_RESIDENTIAL – R1 SERVICE CLASSIFICATION | V8: 39
A9: Algoma Power Inc. | E9: For the purposes of rates and charges, a residential service is defined in two ways: i) a dwelling occupied as a residence continuously for at least eight months of the year and, where the residential premises is located on a farm, includes other farm premises associated with the residential electricity meter, and ii) consumers who are treated as residential-rate class customers under Ontario Regulation 445/07 (Reclassifying Certain Classes of Consumers as Residential-Rate Class Customers: Section 78 of the Ontario Energy Board Act, 1998) made under the Ontario Energy Board Act, 1998. | K9: 1_RESIDENTIAL – R1 SERVICE CLASSIFICATION | V9: 591
A10: Algoma Power Inc. | E10: This classification refers to a Residential service with a demand of less than, or is forecast to be less than, 50 kilowatts, and which is billed on an energy basis. Further servicing details are available in the distributor’s Conditions of Service. | K10: 1_RESIDENTIAL – R1 SERVICE CLASSIFICATION | V10: 250
A11: Algoma Power Inc. | E11: APPLICATION | K11: 1_APPLICATION | V11: 11
A12: Algoma Power Inc. | E12: The application of these rates and charges shall be in accordance with the Licence of the Distributor and any Code or Order of the Ontario Energy Board, and amendments thereto as approved by the Ontario Energy Board, which may be applicable to the administration of this schedule. | K12: 1_RESIDENTIAL – R1 SERVICE CLASSIFICATION | V12: 280
A13: Algoma Power Inc. | E13: No rates and charges for the distribution of electricity and charges to meet the costs of any work or service done or furnished for the purpose of the distribution of electricity shall be made except as permitted by this schedule, unless required by the Distributor’s Licence or a Code or Order of the Ontario Energy Board, and amendments thereto as approved by the Ontario Energy Board, or as specified herein. | K13: 1_RESIDENTIAL – R1 SERVICE CLASSIFICATION | V13: 411
A14: Algoma Power Inc. | E14: Unless specifically noted, this schedule does not contain any charges for the electricity commodity, be it under the Regulated Price Plan, a contract with a retailer or the wholesale market price, as applicable. In addition, the charges in the MONTHLY RATES AND CHARGES – Regulatory Component of this schedule do not apply to a customer that is an embedded wholesale market participant. | K14: 1_RESIDENTIAL – R1 SERVICE CLASSIFICATION | V14: 387
A15: Algoma Power Inc. | E15: It should be noted that this schedule does not list any charges, assessments or credits that are required by law to be invoiced by a distributor and that are not subject to Ontario Energy Board approval, such as the Debt Retirement Charge, the Global Adjustment, and the HST. | K15: 1_RESIDENTIAL – R1 SERVICE CLASSIFICATION | V15: 275
A16: Algoma Power Inc. | E16: MONTHLY RATES AND CHARGES – Delivery Component | K16: 1_MRC_Del | V16: 46
A17: Algoma Power Inc. | E17: Service Charge - summary of (I) and (ii) above | G17: $ | H17: 51.52 | K17: 1_RESIDENTIAL – R1 SERVICE CLASSIFICATION | L17: A | P17: 1_RESIDENTIAL – R1 SERVICE CLASSIFICATION_MSC | V17: 47
A18: Algoma Power Inc. | E18: Rate Rider for Smart Metering Entity Change – effective until October 31, 2018 | G18: $ | H18: 0.79 | K18: 1_RESIDENTIAL – R1 SERVICE CLASSIFICATION | L18: B | P18: 1_RESIDENTIAL – R1 SERVICE CLASSIFICATION_SME | T18: 2018-10-31 | V18: 78
A19: Algoma Power Inc. | E19: Distribution Volumetric Rate – Applicable only to customers that meet criteria (i) above | G19: $/kWh | H19: 0.0288 | K19: 1_RESIDENTIAL – R1 SERVICE CLASSIFICATION | L19: A | P19: 1_RESIDENTIAL – R1 SERVICE CLASSIFICATION_DVC | V19: 88 | AA19: 4
A20: Algoma Power Inc. | E20: Distribution Volumetric Rate – Applicable only to customers that meet criteria (ii) above | G20: $/kWh | H20: 0.0334 | K20: 1_RESIDENTIAL – R1 SERVICE CLASSIFICATION | L20: A | P20: 1_RESIDENTIAL – R1 SERVICE CLASSIFICATION_DVC | V20: 89 | AA20: 4
A21: Algoma Power Inc. | E21: Rate Rider for Disposition of Accounts 1575 & 1576 - effective until December 31, 2019 | G21: $/kWh | H21: -0.0019 | K21: 1_RESIDENTIAL – R1 SERVICE CLASSIFICATION | L21: A | P21: 1_RESIDENTIAL – R1 SERVICE CLASSIFICATION_DEFVAR_ALL | T21: 2019-12-31 | V21: 86 | AA21: 4
A22: Algoma Power Inc. | E22: Retail Transmission Rate – Network Service Rate | G22: $/kWh | H22: 0.007 | K22: 1_RESIDENTIAL – R1 SERVICE CLASSIFICATION | L22: C | P22: 1_RESIDENTIAL – R1 SERVICE CLASSIFICATION_Retail Transmission Rate – Network Service Rate | V22: 47 | AA22: 3
A23: Algoma Power Inc. | E23: Retail Transmission Rate – Line and Transformation Connection Service Rate | G23: $/kWh | H23: 0.0051 | K23: 1_RESIDENTIAL – R1 SERVICE CLASSIFICATION | L23: C | P23: 1_RESIDENTIAL – R1 SERVICE CLASSIFICATION_Retail Transmission Rate – Line and Transformation Connection Service Rate | V23: 74 | AA23: 4
A24: Algoma Power Inc. | E24: MONTHLY RATES AND CHARGES – Regulatory Component | K24: 1_MRC_Reg | V24: 48
A25: Algoma Power Inc. | E25: Wholesale Market Service Rate | G25: $/kWh | H25: 0.0036 | K25: 1_RESIDENTIAL – R1 SERVICE CLASSIFICATION | L25: T | P25: 1_RESIDENTIAL – R1 SERVICE CLASSIFICATION_WMSR | V25: 30 | AA25: 4
A26: Algoma Power Inc. | E26: Rural or Remote Electricity Rate Protection Charge (RRRP) | G26: $/kWh | H26: 0.0013 | K26: 1_RESIDENTIAL – R1 SERVICE CLASSIFICATION | L26: T | P26: 1_RESIDENTIAL – R1 SERVICE CLASSIFICATION_RRRP | V26: 57 | AA26: 4
A27: Algoma Power Inc. | E27: Ontario Electricity Support Program Charge (OESP) | G27: $/kWh | H27: 0.0011 | K27: 1_RESIDENTIAL – R1 SERVICE CLASSIFICATION | L27: T | P27: 1_RESIDENTIAL – R1 SERVICE CLASSIFICATION_OESPR | V27: 49 | AA27: 4
A28: Algoma Power Inc. | E28: Standard Supply Service – Administration Charge (if applicable) | G28: $ | H28: 0.25 | K28: 1_RESIDENTIAL – R1 SERVICE CLASSIFICATION | L28: T | P28: 1_RESIDENTIAL – R1 SERVICE CLASSIFICATION_SSS | V28: 64
A29: Algoma Power Inc. | E29: RESIDENTIAL – R2 SERVICE CLASSIFICATION | K29: 2_RESIDENTIAL – R2 SERVICE CLASSIFICATION | V29: 39
A30: Algoma Power Inc. | E30: This classification refers to a Residential service with a demand equal to or greater than, or is forecast to be equal to or greater than, 50 kilowatts, and which is billed on a demand basis. Further servicing details are available in the distributor’s Conditions of Service. | K30: 2_RESIDENTIAL – R2 SERVICE CLASSIFICATION | V30: 276
A31: Algoma Power Inc. | E31: APPLICATION | K31: 2_APPLICATION | V31: 11
A32: Algoma Power Inc. | E32: The application of these rates and charges shall be in accordance with the Licence of the Distributor and any Code or Order of the Ontario Energy Board, and amendments thereto as approved by the Ontario Energy Board, which may be applicable to the administration of this schedule. | K32: 2_RESIDENTIAL – R2 SERVICE CLASSIFICATION | V32: 280
A33: Algoma Power Inc. | E33: No rates and charges for the distribution of electricity and charges to meet the costs of any work or service done or furnished for the purpose of the distribution of electricity shall be made except as permitted by this schedule, unless required by the Distributor’s Licence or a Code or Order of the Ontario Energy Board, and amendments thereto as approved by the Ontario Energy Board, or as specified herein. | K33: 2_RESIDENTIAL – R2 SERVICE CLASSIFICATION | V33: 411
A34: Algoma Power Inc. | E34: Unless specifically noted, this schedule does not contain any charges for the electricity commodity, be it under the Regulated Price Plan, a contract with a retailer or the wholesale market price, as applicable. In addition, the charges in the MONTHLY RATES AND CHARGES – Regulatory Component of this schedule do not apply to a customer that is an embedded wholesale market participant. | K34: 2_RESIDENTIAL – R2 SERVICE CLASSIFICATION | V34: 387
A35: Algoma Power Inc. | E35: It should be noted that this schedule does not list any charges, assessments or credits that are required by law to be invoiced by a distributor and that are not subject to Ontario Energy Board approval, such as the Debt Retirement Charge, the Global Adjustment, and the HST. | K35: 2_RESIDENTIAL – R2 SERVICE CLASSIFICATION | V35: 275
A36: Algoma Power Inc. | E36: MONTHLY RATES AND CHARGES – Delivery Component | K36: 2_MRC_Del | V36: 46
A37: Algoma Power Inc. | E37: Service Charge | G37: $ | H37: 611.64 | K37: 2_RESIDENTIAL – R2 SERVICE CLASSIFICATION | L37: A | P37: 2_RESIDENTIAL – R2 SERVICE CLASSIFICATION_MSC | V37: 15
A38: Algoma Power Inc. | E38: Distribution Volumetric Rate | G38: $/kW | H38: 3.1691 | K38: 2_RESIDENTIAL – R2 SERVICE CLASSIFICATION | L38: A | P38: 2_RESIDENTIAL – R2 SERVICE CLASSIFICATION_DVC | V38: 29 | AA38: 4
A39: Algoma Power Inc. | E39: Rate Rider for Disposition of Accounts 1575 & 1576 – effective until December 31, 2019 | G39: $/kW | H39: -0.801 | K39: 2_RESIDENTIAL – R2 SERVICE CLASSIFICATION | L39: A | P39: 2_RESIDENTIAL – R2 SERVICE CLASSIFICATION_DEFVAR_ALL | T39: 2019-12-31 | V39: 86 | AA39: 3
A40: Algoma Power Inc. | E40: Retail Transmission Rate – Network Service Rate | G40: $/kW | H40: 2.6924 | K40: 2_RESIDENTIAL – R2 SERVICE CLASSIFICATION | L40: C | P40: 2_RESIDENTIAL – R2 SERVICE CLASSIFICATION_Retail Transmission Rate – Network Service Rate | V40: 48 | AA40: 4
A41: Algoma Power Inc. | E41: Retail Transmission Rate – Line and Transformation Connection Service Rate | G41: $/kW | H41: 1.9084 | K41: 2_RESIDENTIAL – R2 SERVICE CLASSIFICATION | L41: C | P41: 2_RESIDENTIAL – R2 SERVICE CLASSIFICATION_Retail Transmission Rate – Line and Transformation Connection Service Rate | V41: 75 | AA41: 4
A42: Algoma Power Inc. | E42: MONTHLY RATES AND CHARGES – Regulatory Component | K42: 2_MRC_Reg | V42: 48
A43: Algoma Power Inc. | E43: Wholesale Market Service Rate | G43: $/kWh | H43: 0.0036 | K43: 2_RESIDENTIAL – R2 SERVICE CLASSIFICATION | L43: T | P43: 2_RESIDENTIAL – R2 SERVICE CLASSIFICATION_WMSR | V43: 30 | AA43: 4
A44: Algoma Power Inc. | E44: Rural or Remote Electricity Rate Protection Charge (RRRP) | G44: $/kWh | H44: 0.0013 | K44: 2_RESIDENTIAL – R2 SERVICE CLASSIFICATION | L44: T | P44: 2_RESIDENTIAL – R2 SERVICE CLASSIFICATION_RRRP | V44: 57 | AA44: 4
A45: Algoma Power Inc. | E45: Ontario Electricity Support Program Charge (OESP) | G45: $/kWh | H45: 0.0011 | K45: 2_RESIDENTIAL – R2 SERVICE CLASSIFICATION | L45: T | P45: 2_RESIDENTIAL – R2 SERVICE CLASSIFICATION_OESPR | V45: 49 | AA45: 4
A46: Algoma Power Inc. | E46: Standard Supply Service – Administration Charge (if applicable) | G46: $ | H46: 0.25 | K46: 2_RESIDENTIAL – R2 SERVICE CLASSIFICATION | L46: T | P46: 2_RESIDENTIAL – R2 SERVICE CLASSIFICATION_SSS | V46: 64
A47: Algoma Power Inc. | E47: ONTARIO ELECTRICITY SUPPORT PROGRAM RECIPIENTS | K47: 3_ONTARIO ELECTRICITY SUPPORT PROGRAM RECIPIENTS | V47: 46
A48: Algoma Power Inc. | E48: In addition to the charges specified on page 1 of this tariff of rates and charges, the following credits are to be applied to eligible residential customers. | K48: 3_ONTARIO ELECTRICITY SUPPORT PROGRAM RECIPIENTS | V48: 158
A49: Algoma Power Inc. | E49: APPLICATION | K49: 3_APPLICATION | V49: 11
A50: Algoma Power Inc. | E50: The application of the credits is in accordance with the Distribution System Code (Section 9) and subsection 79.2 of the Ontario Energy Board Act, 1998. | K50: 3_ONTARIO ELECTRICITY SUPPORT PROGRAM RECIPIENTS | V50: 152
A51: Algoma Power Inc. | E51: The application of these credits shall be in accordance with the Licence of the Distributor and any Code or Order of the Ontario Energy Board, and amendments thereto as approved by the Ontario Energy Board, which may be applicable to the administration of this schedule. | K51: 3_ONTARIO ELECTRICITY SUPPORT PROGRAM RECIPIENTS | V51: 270
A52: Algoma Power Inc. | E52: In this class: “Aboriginal person” includes a person who is a First Nations person, a Métis person or an Inuit person; “account-holder” means a consumer who has an account with a distributor that falls within a residential-rate classification as specified in a rate order made by the Ontario Energy Board under section 78 of the Act, and who lives at the service address to which the account relates for at least six months in a year; “electricity-intensive medical device” means an oxygen concentrator, a mechanical ventilator, or such other device as may be specified by the Ontario Energy Board; “household” means the account-holder and any other people living at the accountholder’s service address for at least six months in a year, including people other than the account-holder’s spouse, children or other relatives; “household income” means the combined annual after-tax income of all members of a household aged 16 or over; | K52: 3_ONTARIO ELECTRICITY SUPPORT PROGRAM RECIPIENTS | V52: 933
A53: Algoma Power Inc. | E53: MONTHLY RATES AND CHARGES | K53: 3_MRC | V53: 25
A54: Algoma Power Inc. | E54: Class A | K54: 3_ONTARIO ELECTRICITY SUPPORT PROGRAM RECIPIENTS | V54: 8
A55: Algoma Power Inc. | E55: (a) account-holders with a household income of $28,000 or less living in a household of one or two persons; | K55: 3_ONTARIO ELECTRICITY SUPPORT PROGRAM RECIPIENTS | V55: 107
A56: Algoma Power Inc. | E56: (b) account-holders with a household income of between $28,001 and $39,000 living in a household of three persons; | K56: 3_ONTARIO ELECTRICITY SUPPORT PROGRAM RECIPIENTS | V56: 114
A57: Algoma Power Inc. | E57: (c) account-holders with a household income of between $39,001 and $48,000 living in a household of five persons; | K57: 3_ONTARIO ELECTRICITY SUPPORT PROGRAM RECIPIENTS | V57: 114
A58: Algoma Power Inc. | E58: (d) account-holders with a household income of between $48,001 and $52,000 living in a household of seven or more persons; | K58: 3_ONTARIO ELECTRICITY SUPPORT PROGRAM RECIPIENTS | V58: 122
A59: Algoma Power Inc. | E59: but does not include account-holders in Class E. | K59: 3_ONTARIO ELECTRICITY SUPPORT PROGRAM RECIPIENTS | V59: 48
A60: Algoma Power Inc. | E60: OESP Credit | G60: $ | H60: -30 | K60: 3_ONTARIO ELECTRICITY SUPPORT PROGRAM RECIPIENTS | L60: T | P60: 3_ONTARIO ELECTRICITY SUPPORT PROGRAM RECIPIENTS_OESP CREDIT_CLASS A | V60: 12
A61: Algoma Power Inc. | E61: Class B | K61: 3_ONTARIO ELECTRICITY SUPPORT PROGRAM RECIPIENTS | V61: 8
A62: Algoma Power Inc. | E62: (a) account-holders with a household income of $28,000 or less living in a household of three persons; | K62: 3_ONTARIO ELECTRICITY SUPPORT PROGRAM RECIPIENTS | V62: 102
A63: Algoma Power Inc. | E63: (b) account-holders with a household income of between $28,001 and $39,000 living in a household of four persons; | K63: 3_ONTARIO ELECTRICITY SUPPORT PROGRAM RECIPIENTS | V63: 113
A64: Algoma Power Inc. | E64: (c) account-holders with a household income of between $39,001 and $48,000 living in a household of six persons; | K64: 3_ONTARIO ELECTRICITY SUPPORT PROGRAM RECIPIENTS | V64: 113
A65: Algoma Power Inc. | E65: but does not include account-holders in Class F. | K65: 3_ONTARIO ELECTRICITY SUPPORT PROGRAM RECIPIENTS | V65: 48
A66: Algoma Power Inc. | E66: OESP Credit | G66: $ | H66: -34 | K66: 3_ONTARIO ELECTRICITY SUPPORT PROGRAM RECIPIENTS | L66: T | P66: 3_ONTARIO ELECTRICITY SUPPORT PROGRAM RECIPIENTS_OESP CREDIT_CLASS B | V66: 12
A67: Algoma Power Inc. | E67: Class C | K67: 3_ONTARIO ELECTRICITY SUPPORT PROGRAM RECIPIENTS | V67: 8
A68: Algoma Power Inc. | E68: (a) account-holders with a household income of $28,000 or less living in a household of four persons; | K68: 3_ONTARIO ELECTRICITY SUPPORT PROGRAM RECIPIENTS | V68: 101
A69: Algoma Power Inc. | E69: (b) account-holders with a household income of between $28,001 and $39,000 living in a household of five persons; | K69: 3_ONTARIO ELECTRICITY SUPPORT PROGRAM RECIPIENTS | V69: 113
A70: Algoma Power Inc. | E70: (c) account-holders with a household income of between $39,001 and $48,000 living in a household of seven or more persons; | K70: 3_ONTARIO ELECTRICITY SUPPORT PROGRAM RECIPIENTS | V70: 123
A71: Algoma Power Inc. | E71: but does not include account-holders in Class G. | K71: 3_ONTARIO ELECTRICITY SUPPORT PROGRAM RECIPIENTS | V71: 48
A72: Algoma Power Inc. | E72: OESP Credit | G72: $ | H72: -38 | K72: 3_ONTARIO ELECTRICITY SUPPORT PROGRAM RECIPIENTS | L72: T | P72: 3_ONTARIO ELECTRICITY SUPPORT PROGRAM RECIPIENTS_OESP CREDIT_CLASS C | V72: 12
A73: Algoma Power Inc. | E73: Class D | K73: 3_ONTARIO ELECTRICITY SUPPORT PROGRAM RECIPIENTS | V73: 8
A74: Algoma Power Inc. | E74: (a) account-holders with a household income of $28,000 or less living in a household of five persons; | K74: 3_ONTARIO ELECTRICITY SUPPORT PROGRAM RECIPIENTS | V74: 101
A75: Algoma Power Inc. | E75: (b) account-holders with a household income of between $28,001 and $39,000 living in a household of six persons; | K75: 3_ONTARIO ELECTRICITY SUPPORT PROGRAM RECIPIENTS | V75: 112
A76: Algoma Power Inc. | E76: but does not include account-holders in Class H. | K76: 3_ONTARIO ELECTRICITY SUPPORT PROGRAM RECIPIENTS | V76: 48
A77: Algoma Power Inc. | E77: OESP Credit | G77: $ | H77: -42 | K77: 3_ONTARIO ELECTRICITY SUPPORT PROGRAM RECIPIENTS | L77: T | P77: 3_ONTARIO ELECTRICITY SUPPORT PROGRAM RECIPIENTS_OESP CREDIT_CLASS D | V77: 12
A78: Algoma Power Inc. | E78: Class E | K78: 3_ONTARIO ELECTRICITY SUPPORT PROGRAM RECIPIENTS | V78: 8
A79: Algoma Power Inc. | E79: Class E comprises account-holders with a household income and household size described under Class A | K79: 3_ONTARIO ELECTRICITY SUPPORT PROGRAM RECIPIENTS | V79: 101
A80: Algoma Power Inc. | E80: who also meet any of the following conditions: | K80: 3_ONTARIO ELECTRICITY SUPPORT PROGRAM RECIPIENTS | V80: 46
A81: Algoma Power Inc. | E81: (a) the dwelling to which the account relates is heated primarily by electricity; | K81: 3_ONTARIO ELECTRICITY SUPPORT PROGRAM RECIPIENTS | V81: 82
A82: Algoma Power Inc. | E82: (b) the account-holder or any member of the account-holder’s household is an Aboriginal person; or | K82: 3_ONTARIO ELECTRICITY SUPPORT PROGRAM RECIPIENTS | V82: 99
A83: Algoma Power Inc. | E83: (c) the account-holder or any member of the account-holder’s household regularly uses, for medical purposes, | K83: 3_ONTARIO ELECTRICITY SUPPORT PROGRAM RECIPIENTS | V83: 109
A84: Algoma Power Inc. | E84: an electricity-intensive medical device at the dwelling to which the account relates. | K84: 3_ONTARIO ELECTRICITY SUPPORT PROGRAM RECIPIENTS | V84: 85
A85: Algoma Power Inc. | E85: OESP Credit | G85: $ | H85: -45 | K85: 3_ONTARIO ELECTRICITY SUPPORT PROGRAM RECIPIENTS | L85: T | P85: 3_ONTARIO ELECTRICITY SUPPORT PROGRAM RECIPIENTS_OESP CREDIT_CLASS E | V85: 12
A86: Algoma Power Inc. | E86: Class F | K86: 3_ONTARIO ELECTRICITY SUPPORT PROGRAM RECIPIENTS | V86: 8
A87: Algoma Power Inc. | E87: (a) account-holders with a household income of $28,000 or less living in a household of six or more persons; | K87: 3_ONTARIO ELECTRICITY SUPPORT PROGRAM RECIPIENTS | V87: 108
A88: Algoma Power Inc. | E88: (b) account-holders with a household income of between $28,001 and $39,000 living in a household of seven | K88: 3_ONTARIO ELECTRICITY SUPPORT PROGRAM RECIPIENTS | V88: 106
A89: Algoma Power Inc. | E89: or more persons; or | K89: 3_ONTARIO ELECTRICITY SUPPORT PROGRAM RECIPIENTS | V89: 19
A90: Algoma Power Inc. | E90: (c) account-holders with a household income and household size described under Class B who also meet any | K90: 3_ONTARIO ELECTRICITY SUPPORT PROGRAM RECIPIENTS | V90: 105
A91: Algoma Power Inc. | E91: of the following conditions: | K91: 3_ONTARIO ELECTRICITY SUPPORT PROGRAM RECIPIENTS | V91: 28
A92: Algoma Power Inc. | E92: i. the dwelling to which the account relates is heated primarily by electricity; | K92: 3_ONTARIO ELECTRICITY SUPPORT PROGRAM RECIPIENTS | V92: 80
A93: Algoma Power Inc. | E93: ii. the account-holder or any member of the account-holder’s household is an Aboriginal person; or | K93: 3_ONTARIO ELECTRICITY SUPPORT PROGRAM RECIPIENTS | V93: 98
A94: Algoma Power Inc. | E94: iii. the account-holder or any member of the account-holder’s household regularly uses, for medical purposes, | K94: 3_ONTARIO ELECTRICITY SUPPORT PROGRAM RECIPIENTS | V94: 110
A95: Algoma Power Inc. | E95: an electricity-intensive medical device at the dwelling to which the account relates. | K95: 3_ONTARIO ELECTRICITY SUPPORT PROGRAM RECIPIENTS | V95: 85
A96: Algoma Power Inc. | E96: OESP Credit | G96: $ | H96: -50 | K96: 3_ONTARIO ELECTRICITY SUPPORT PROGRAM RECIPIENTS | L96: T | P96: 3_ONTARIO ELECTRICITY SUPPORT PROGRAM RECIPIENTS_OESP CREDIT_CLASS F | V96: 12
A97: Algoma Power Inc. | E97: Class G | K97: 3_ONTARIO ELECTRICITY SUPPORT PROGRAM RECIPIENTS | V97: 8
A98: Algoma Power Inc. | E98: Class G comprises account-holders with a household income and household size described under Class C | K98: 3_ONTARIO ELECTRICITY SUPPORT PROGRAM RECIPIENTS | V98: 101
A99: Algoma Power Inc. | E99: who also meet any of the following conditions: | K99: 3_ONTARIO ELECTRICITY SUPPORT PROGRAM RECIPIENTS | V99: 46
A100: Algoma Power Inc. | E100: (a) the dwelling to which the account relates is heated primarily by electricity; | K100: 3_ONTARIO ELECTRICITY SUPPORT PROGRAM RECIPIENTS | V100: 82
A101: Algoma Power Inc. | E101: (b) the account-holder or any member of the account-holder’s household is an Aboriginal person; or | K101: 3_ONTARIO ELECTRICITY SUPPORT PROGRAM RECIPIENTS | V101: 99
A102: Algoma Power Inc. | E102: (c) the account-holder or any member of the account-holder’s household regularly uses, for medical purposes, | K102: 3_ONTARIO ELECTRICITY SUPPORT PROGRAM RECIPIENTS | V102: 109
A103: Algoma Power Inc. | E103: an electricity-intensive medical device at the dwelling to which the account relates. | K103: 3_ONTARIO ELECTRICITY SUPPORT PROGRAM RECIPIENTS | V103: 85
A104: Algoma Power Inc. | E104: OESP Credit | G104: $ | H104: -55 | K104: 3_ONTARIO ELECTRICITY SUPPORT PROGRAM RECIPIENTS | L104: T | P104: 3_ONTARIO ELECTRICITY SUPPORT PROGRAM RECIPIENTS_OESP CREDIT_CLASS G | V104: 12
A105: Algoma Power Inc. | E105: Class H | K105: 3_ONTARIO ELECTRICITY SUPPORT PROGRAM RECIPIENTS | V105: 8
A106: Algoma Power Inc. | E106: Class H comprises account-holders with a household income and household size described under Class D | K106: 3_ONTARIO ELECTRICITY SUPPORT PROGRAM RECIPIENTS | V106: 101
A107: Algoma Power Inc. | E107: who also meet any of the following conditions: | K107: 3_ONTARIO ELECTRICITY SUPPORT PROGRAM RECIPIENTS | V107: 46
A108: Algoma Power Inc. | E108: (a) the dwelling to which the account relates is heated primarily by electricity; | K108: 3_ONTARIO ELECTRICITY SUPPORT PROGRAM RECIPIENTS | V108: 82
A109: Algoma Power Inc. | E109: (b) the account-holder or any member of the account-holder’s household is an Aboriginal person; or | K109: 3_ONTARIO ELECTRICITY SUPPORT PROGRAM RECIPIENTS | V109: 99
A110: Algoma Power Inc. | E110: (c) the account-holder or any member of the account-holder’s household regularly uses, for medical purposes, | K110: 3_ONTARIO ELECTRICITY SUPPORT PROGRAM RECIPIENTS | V110: 109
A111: Algoma Power Inc. | E111: an electricity-intensive medical device at the dwelling to which the account relates. | K111: 3_ONTARIO ELECTRICITY SUPPORT PROGRAM RECIPIENTS | V111: 85
A112: Algoma Power Inc. | E112: OESP Credit | G112: $ | H112: -60 | K112: 3_ONTARIO ELECTRICITY SUPPORT PROGRAM RECIPIENTS | L112: T | P112: 3_ONTARIO ELECTRICITY SUPPORT PROGRAM RECIPIENTS_OESP CREDIT_CLASS H | V112: 12
A113: Algoma Power Inc. | E113: Class I | K113: 3_ONTARIO ELECTRICITY SUPPORT PROGRAM RECIPIENTS | V113: 8
A114: Algoma Power Inc. | E114: Class I comprises account-holders with a household income and household size described under | K114: 3_ONTARIO ELECTRICITY SUPPORT PROGRAM RECIPIENTS | V114: 93
A115: Algoma Power Inc. | E115: paragraphs (a) or (b) of Class F who also meet any of the following conditions: | K115: 3_ONTARIO ELECTRICITY SUPPORT PROGRAM RECIPIENTS | V115: 79
A116: Algoma Power Inc. | E116: (a) the dwelling to which the account relates is heated primarily by electricity; | K116: 3_ONTARIO ELECTRICITY SUPPORT PROGRAM RECIPIENTS | V116: 82
A117: Algoma Power Inc. | E117: (b) the account-holder or any member of the account-holder’s household is an Aboriginal person; or | K117: 3_ONTARIO ELECTRICITY SUPPORT PROGRAM RECIPIENTS | V117: 99
A118: Algoma Power Inc. | E118: (c) the account-holder or any member of the account-holder’s household regularly uses, for medical purposes, | K118: 3_ONTARIO ELECTRICITY SUPPORT PROGRAM RECIPIENTS | V118: 109
A119: Algoma Power Inc. | E119: an electricity-intensive medical device at the dwelling to which the account relates. | K119: 3_ONTARIO ELECTRICITY SUPPORT PROGRAM RECIPIENTS | V119: 85
A120: Algoma Power Inc. | E120: OESP Credit | G120: $ | H120: -75 | K120: 3_ONTARIO ELECTRICITY SUPPORT PROGRAM RECIPIENTS | L120: T | P120: 3_ONTARIO ELECTRICITY SUPPORT PROGRAM RECIPIENTS_OESP CREDIT_CLASS I | V120: 12
A121: Algoma Power Inc. | E121: SEASONAL CUSTOMERS SERVICE CLASSIFICATION | K121: 4_SEASONAL CUSTOMERS SERVICE CLASSIFICATION | V121: 41
A122: Algoma Power Inc. | E122: This classification includes all services supplied to single-family dwelling units for domestic purposes, which are occupied on a seasonal/intermittent basis. A service is defined as Seasonal if occupancy is for a period of less than eight months of the year. Further servicing details are available in the distributor’s Conditions of Service. | K122: 4_SEASONAL CUSTOMERS SERVICE CLASSIFICATION | V122: 345
A123: Algoma Power Inc. | E123: APPLICATION | K123: 4_APPLICATION | V123: 11
A124: Algoma Power Inc. | E124: The application of these rates and charges shall be in accordance with the Licence of the Distributor and any Code or Order of the Ontario Energy Board, and amendments thereto as approved by the Ontario Energy Board, which may be applicable to the administration of this schedule. | K124: 4_SEASONAL CUSTOMERS SERVICE CLASSIFICATION | V124: 280
A125: Algoma Power Inc. | E125: No rates and charges for the distribution of electricity and charges to meet the costs of any work or service done or furnished for the purpose of the distribution of electricity shall be made except as permitted by this schedule, unless required by the Distributor’s Licence or a Code or Order of the Ontario Energy Board, and amendments thereto as approved by the Ontario Energy Board, or as specified herein. | K125: 4_SEASONAL CUSTOMERS SERVICE CLASSIFICATION | V125: 411
A126: Algoma Power Inc. | E126: Unless specifically noted, this schedule does not contain any charges for the electricity commodity, be it under the Regulated Price Plan, a contract with a retailer or the wholesale market price, as applicable. In addition, the charges in the MONTHLY RATES AND CHARGES – Regulatory Component of this schedule do not apply to a customer that is an embedded wholesale market participant. | K126: 4_SEASONAL CUSTOMERS SERVICE CLASSIFICATION | V126: 387
A127: Algoma Power Inc. | E127: It should be noted that this schedule does not list any charges, assessments or credits that are required by law to be invoiced by a distributor and that are not subject to Ontario Energy Board approval, such as the Debt Retirement Charge, the Global Adjustment, and the HST. | K127: 4_SEASONAL CUSTOMERS SERVICE CLASSIFICATION | V127: 275
A128: Algoma Power Inc. | E128: MONTHLY RATES AND CHARGES – Delivery Component | K128: 4_MRC_Del | V128: 46
A129: Algoma Power Inc. | E129: Service Charge | G129: $ | H129: 34.27 | K129: 4_SEASONAL CUSTOMERS SERVICE CLASSIFICATION | L129: A | P129: 4_SEASONAL CUSTOMERS SERVICE CLASSIFICATION_MSC | V129: 15
A130: Algoma Power Inc. | E130: Rate Rider for Smart Metering Entity Charge – effective until October 31, 2018 | G130: $ | H130: 0.79 | K130: 4_SEASONAL CUSTOMERS SERVICE CLASSIFICATION | L130: B | P130: 4_SEASONAL CUSTOMERS SERVICE CLASSIFICATION_SME | T130: 2018-10-31 | V130: 78
A131: Algoma Power Inc. | E131: Rate Rider for Recovery of Smart Meter Deferred Revenue – effective until December 31, 2016 | G131: $ | H131: 3.57 | K131: 4_SEASONAL CUSTOMERS SERVICE CLASSIFICATION | L131: A | P131: 4_SEASONAL CUSTOMERS SERVICE CLASSIFICATION_FX_RR_3 | T131: 2016-12-31 | V131: 91
A132: Algoma Power Inc. | E132: Distribution Volumetric Rate | G132: $/kWh | H132: 0.1435 | K132: 4_SEASONAL CUSTOMERS SERVICE CLASSIFICATION | L132: A | P132: 4_SEASONAL CUSTOMERS SERVICE CLASSIFICATION_DVC | V132: 29 | AA132: 4
A133: Algoma Power Inc. | E133: Rate Rider for Disposition of Account 1574 – effective until June 30, 2019 | G133: $/kWh | H133: 0.0307 | K133: 4_SEASONAL CUSTOMERS SERVICE CLASSIFICATION | L133: A | P133: 4_SEASONAL CUSTOMERS SERVICE CLASSIFICATION_1574 | T133: 2019-06-30 | V133: 74 | AA133: 4
A134: Algoma Power Inc. | E134: Rate Rider for Disposition of Accounts 1575 & 1576 – effective until December 31, 2019 | G134: $/kWh | H134: -0.0019 | K134: 4_SEASONAL CUSTOMERS SERVICE CLASSIFICATION | L134: A | P134: 4_SEASONAL CUSTOMERS SERVICE CLASSIFICATION_DEFVAR_ALL | T134: 2019-12-31 | V134: 86 | AA134: 4
A135: Algoma Power Inc. | E135: Retail Transmission Rate – Network Service Rate | G135: $/kWh | H135: 0.007 | K135: 4_SEASONAL CUSTOMERS SERVICE CLASSIFICATION | L135: C | P135: 4_SEASONAL CUSTOMERS SERVICE CLASSIFICATION_Retail Transmission Rate – Network Service Rate | V135: 48 | AA135: 3
A136: Algoma Power Inc. | E136: Retail Transmission Rate – Line and Transformation Connection Service Rate | G136: $/kWh | H136: 0.0051 | K136: 4_SEASONAL CUSTOMERS SERVICE CLASSIFICATION | L136: C | P136: 4_SEASONAL CUSTOMERS SERVICE CLASSIFICATION_Retail Transmission Rate – Line and Transformation Connection Service Rate | V136: 75 | AA136: 4
A137: Algoma Power Inc. | E137: MONTHLY RATES AND CHARGES – Regulatory Component | K137: 4_MRC_Reg | V137: 48
A138: Algoma Power Inc. | E138: Wholesale Market Service Rate | G138: $/kWh | H138: 0.0036 | K138: 4_SEASONAL CUSTOMERS SERVICE CLASSIFICATION | L138: T | P138: 4_SEASONAL CUSTOMERS SERVICE CLASSIFICATION_WMSR | V138: 30 | AA138: 4
A139: Algoma Power Inc. | E139: Rural or Remote Electricity Rate Protection Charge (RRRP) | G139: $/kWh | H139: 0.0013 | K139: 4_SEASONAL CUSTOMERS SERVICE CLASSIFICATION | L139: T | P139: 4_SEASONAL CUSTOMERS SERVICE CLASSIFICATION_RRRP | V139: 57 | AA139: 4
A140: Algoma Power Inc. | E140: Ontario Electricity Support Program Charge (OESP) | G140: $/kWh | H140: 0.0011 | K140: 4_SEASONAL CUSTOMERS SERVICE CLASSIFICATION | L140: T | P140: 4_SEASONAL CUSTOMERS SERVICE CLASSIFICATION_OESPR | V140: 49 | AA140: 4
A141: Algoma Power Inc. | E141: Standard Supply Service – Administration Charge (if applicable) | G141: $ | H141: 0.25 | K141: 4_SEASONAL CUSTOMERS SERVICE CLASSIFICATION | L141: T | P141: 4_SEASONAL CUSTOMERS SERVICE CLASSIFICATION_SSS | V141: 64
A142: Algoma Power Inc. | E142: STREET LIGHTING SERVICE CLASSIFICATION | K142: 5_STREET LIGHTING SERVICE CLASSIFICATION | V142: 38
A143: Algoma Power Inc. | E143: This classification refers to an account for roadway lighting. The consumption for these unmetered accounts will be based on the calculated connection load times the calculated hours of use established in the approved Ontario Energy Board street lighting load shape template. Further servicing details are available in the distributor’s Conditions of Service. | K143: 5_STREET LIGHTING SERVICE CLASSIFICATION | V143: 361
A144: Algoma Power Inc. | E144: APPLICATION | K144: 5_APPLICATION | V144: 11
A145: Algoma Power Inc. | E145: The application of these rates and charges shall be in accordance with the Licence of the Distributor and any Code or Order of the Ontario Energy Board, and amendments thereto as approved by the Ontario Energy Board, which may be applicable to the administration of this schedule. | K145: 5_STREET LIGHTING SERVICE CLASSIFICATION | V145: 280
A146: Algoma Power Inc. | E146: No rates and charges for the distribution of electricity and charges to meet the costs of any work or service done or furnished for the purpose of the distribution of electricity shall be made except as permitted by this schedule, unless required by the Distributor’s Licence or a Code or Order of the Ontario Energy Board, and amendments thereto as approved by the Ontario Energy Board, or as specified herein. | K146: 5_STREET LIGHTING SERVICE CLASSIFICATION | V146: 411
A147: Algoma Power Inc. | E147: Unless specifically noted, this schedule does not contain any charges for the electricity commodity, be it under the Regulated Price Plan, a contract with a retailer or the wholesale market price, as applicable. In addition, the charges in the MONTHLY RATES AND CHARGES – Regulatory Component of this schedule do not apply to a customer that is an embedded wholesale market participant. | K147: 5_STREET LIGHTING SERVICE CLASSIFICATION | V147: 387
A148: Algoma Power Inc. | E148: It should be noted that this schedule does not list any charges, assessments or credits that are required by law to be invoiced by a distributor and that are not subject to Ontario Energy Board approval, such as the Debt Retirement Charge, the Global Adjustment, and the HST. | K148: 5_STREET LIGHTING SERVICE CLASSIFICATION | V148: 275
A149: Algoma Power Inc. | E149: MONTHLY RATES AND CHARGES – Delivery Component | K149: 5_MRC_Del | V149: 46
A150: Algoma Power Inc. | E150: Service Charge (per connection) | G150: $ | H150: 1.34 | K150: 5_STREET LIGHTING SERVICE CLASSIFICATION | L150: A | P150: 5_STREET LIGHTING SERVICE CLASSIFICATION_MSC | V150: 31
A151: Algoma Power Inc. | E151: Distribution Volumetric Rate | G151: $/kWh | H151: 0.2164 | K151: 5_STREET LIGHTING SERVICE CLASSIFICATION | L151: A | P151: 5_STREET LIGHTING SERVICE CLASSIFICATION_DVC | V151: 29 | AA151: 4
A152: Algoma Power Inc. | E152: Rate Rider for Disposition of Accounts 1575 & 1576 – effective until December 31, 2019 | G152: $/kWh | H152: -0.0019 | K152: 5_STREET LIGHTING SERVICE CLASSIFICATION | L152: A | P152: 5_STREET LIGHTING SERVICE CLASSIFICATION_DEFVAR_ALL | T152: 2019-12-31 | V152: 86 | AA152: 4
A153: Algoma Power Inc. | E153: Retail Transmission Rate – Network Service Rate | G153: $/kW | H153: 1.9496 | K153: 5_STREET LIGHTING SERVICE CLASSIFICATION | L153: C | P153: 5_STREET LIGHTING SERVICE CLASSIFICATION_Retail Transmission Rate – Network Service Rate | V153: 48 | AA153: 4
A154: Algoma Power Inc. | E154: Retail Transmission Rate – Line and Transformation Connection Service Rate | G154: $/kW | H154: 1.3767 | K154: 5_STREET LIGHTING SERVICE CLASSIFICATION | L154: C | P154: 5_STREET LIGHTING SERVICE CLASSIFICATION_Retail Transmission Rate – Line and Transformation Connection Service Rate | V154: 75 | AA154: 4
A155: Algoma Power Inc. | E155: MONTHLY RATES AND CHARGES – Regulatory Component | K155: 5_MRC_Reg | V155: 48
A156: Algoma Power Inc. | E156: Wholesale Market Service Rate | G156: $/kWh | H156: 0.0036 | K156: 5_STREET LIGHTING SERVICE CLASSIFICATION | L156: T | P156: 5_STREET LIGHTING SERVICE CLASSIFICATION_WMSR | V156: 30 | AA156: 4
A157: Algoma Power Inc. | E157: Rural or Remote Electricity Rate Protection Charge (RRRP) | G157: $/kWh | H157: 0.0013 | K157: 5_STREET LIGHTING SERVICE CLASSIFICATION | L157: T | P157: 5_STREET LIGHTING SERVICE CLASSIFICATION_RRRP | V157: 57 | AA157: 4
A158: Algoma Power Inc. | E158: Ontario Electricity Support Program Charge (OESP) | G158: $/kWh | H158: 0.0011 | K158: 5_STREET LIGHTING SERVICE CLASSIFICATION | L158: T | P158: 5_STREET LIGHTING SERVICE CLASSIFICATION_OESPR | V158: 49 | AA158: 4
A159: Algoma Power Inc. | E159: Standard Supply Service – Administration Charge (if applicable) | G159: $ | H159: 0.25 | K159: 5_STREET LIGHTING SERVICE CLASSIFICATION | L159: T | P159: 5_STREET LIGHTING SERVICE CLASSIFICATION_SSS | V159: 64
A160: Algoma Power Inc. | E160: microFIT SERVICE CLASSIFICATION | K160: 6_microFIT SERVICE CLASSIFICATION | V160: 31
A161: Algoma Power Inc. | E161: This classification applies to an electricity generation facility contracted under the Independent Electricity System Operator’s microFIT program and connected to the distributor’s distribution system. Further servicing details are available in the distributor’s Conditions of Service. | K161: 6_microFIT SERVICE CLASSIFICATION | V161: 286
A162: Algoma Power Inc. | E162: APPLICATION | K162: 6_APPLICATION | V162: 11
A163: Algoma Power Inc. | E163: The application of these rates and charges shall be in accordance with the Licence of the Distributor and any Code or Order of the Ontario Energy Board, and amendments thereto as approved by the Ontario Energy Board, which may be applicable to the administration of this schedule. | K163: 6_microFIT SERVICE CLASSIFICATION | V163: 280
A164: Algoma Power Inc. | E164: No rates and charges for the distribution of electricity and charges to meet the costs of any work or service done or furnished for the purpose of the distribution of electricity shall be made except as permitted by this schedule, unless required by the Distributor’s Licence or a Code or Order of the Ontario Energy Board, and amendments thereto as approved by the Ontario Energy Board, or as specified herein. | K164: 6_microFIT SERVICE CLASSIFICATION | V164: 411
A165: Algoma Power Inc. | E165: Unless specifically noted, this schedule does not contain any charges for the electricity commodity, be it under the Regulated Price Plan, a contract with a retailer or the wholesale market price, as applicable. | K165: 6_microFIT SERVICE CLASSIFICATION | V165: 211
A166: Algoma Power Inc. | E166: It should be noted that this schedule does not list any charges, assessments or credits that are required by law to be invoiced by a distributor and that are not subject to Ontario Energy Board approval, such as the Debt Retirement Charge, the Global Adjustment, and the HST. | K166: 6_microFIT SERVICE CLASSIFICATION | V166: 275
A167: Algoma Power Inc. | E167: MONTHLY RATES AND CHARGES – Delivery Component | K167: 6_MRC_Del | V167: 47
A168: Algoma Power Inc. | E168: Service Charge | G168: $ | H168: 5.4 | K168: 6_microFIT SERVICE CLASSIFICATION | L168: A | P168: 6_microFIT SERVICE CLASSIFICATION_MSC | V168: 15
A169: Algoma Power Inc. | E169: ALLOWANCES | K169: Algoma Power Inc._ALLOWANCES | V169: 10
A170: Algoma Power Inc. | E170: Transformer Allowance for Ownership – per kW of billing demand/month | G170: $/kW | H170: -0.6 | V170: 69 | AA170: 1
A171: Algoma Power Inc. | E171: Primary Metering Allowance for transformer losses – applied to measured demand and energy | G171: % | H171: -1 | L171: T | V171: 90
A172: Algoma Power Inc. | E172: SPECIFIC SERVICE CHARGES | K172: Algoma Power Inc._SSC | V172: 24
A173: Algoma Power Inc. | E173: APPLICATION | V173: 11
A174: Algoma Power Inc. | E174: The application of these rates and charges shall be in accordance with the Licence of the Distributor and any Code or Order of the Ontario Energy Board, and amendments thereto as approved by the Ontario Energy Board, which may be applicable to the administration of this schedule. | V174: 280
A175: Algoma Power Inc. | E175: No charges to meet the costs of any work or service done or furnished for the purpose of the distribution of electricity shall be made except as permitted by this schedule, unless required by the Distributor’s Licence or a Code or Order of the Ontario Energy Board, and amendments thereto as approved by the Ontario Energy Board, or as specified herein. | V175: 353
A176: Algoma Power Inc. | E176: It should be noted that this schedule does not list any charges, assessments or credits that are required by law to be invoiced by a distributor and that are not subject to Ontario Energy Board approval, such as the Debt Retirement Charge, the Global Adjustment, and the HST. | V176: 275
A177: Algoma Power Inc. | E177: Customer Administration | K177: Algoma Power Inc._CA | V177: 23
A178: Algoma Power Inc. | E178: Arrears certificate (credit reference) | G178: $ | H178: 15 | V178: 39
A179: Algoma Power Inc. | E179: Statement of account | G179: $ | H179: 15 | V179: 21
A180: Algoma Power Inc. | E180: Pulling post dated cheques | G180: $ | H180: 15 | V180: 27
A181: Algoma Power Inc. | E181: Duplicate invoices for previous billing | G181: $ | H181: 15 | V181: 40
A182: Algoma Power Inc. | E182: Request for other billing information | G182: $ | H182: 15 | V182: 38
A183: Algoma Power Inc. | E183: Easement letter | G183: $ | H183: 15 | V183: 16
A184: Algoma Power Inc. | E184: Income tax letter | G184: $ | H184: 15 | V184: 18
A185: Algoma Power Inc. | E185: Notification charge | G185: $ | H185: 15 | V185: 20
A186: Algoma Power Inc. | E186: Account history | G186: $ | H186: 15 | V186: 16
A187: Algoma Power Inc. | E187: Credit reference/credit check (plus credit agency costs) | G187: $ | H187: 15 | V187: 57
A188: Algoma Power Inc. | E188: Account set up charge/change of occupancy charge (plus credit agency costs if applicable) | G188: $ | H188: 30 | V188: 90
A189: Algoma Power Inc. | E189: Returned cheque charge (plus bank charges) | G189: $ | H189: 15 | V189: 43
A190: Algoma Power Inc. | E190: Charge to certify cheques | G190: $ | H190: 15 | V190: 26
A191: Algoma Power Inc. | E191: Legal letter charge | G191: $ | H191: 15 | V191: 20
A192: Algoma Power Inc. | E192: Special meter reads | G192: $ | H192: 30 | V192: 20
A193: Algoma Power Inc. | E193: Meter dispute charge plus Measurement Canada fees (if meter found correct) | G193: $ | H193: 30 | V193: 75
A194: Algoma Power Inc. | E194: Non-Payment of Account | K194: Algoma Power Inc._NPoA | V194: 22
A195: Algoma Power Inc. | E195: Late payment - per month | G195: % | H195: 1.5 | V195: 25
A196: Algoma Power Inc. | E196: Late payment - per annum | G196: % | H196: 19.56 | V196: 25
A197: Algoma Power Inc. | E197: Collection of account charge – no disconnection - during regular business hours | G197: $ | H197: 30 | V197: 80
A198: Algoma Power Inc. | E198: Collection of account charge - no disconnection - after regular hours | G198: $ | H198: 165 | V198: 70
A199: Algoma Power Inc. | E199: Disconnect/reconnect charges - at meter during regular hours | G199: $ | H199: 65 | V199: 61
A200: Algoma Power Inc. | E200: Disconnect/reconnect charges - at meter after regular hours | G200: $ | H200: 185 | V200: 60
A201: Algoma Power Inc. | E201: Disconnect/reconnect charges at pole - during regular hours | G201: $ | H201: 185 | V201: 60
... 2049 more rows

Sheet lists (hidden)
A1: ALLOWANCES | B1: Embedded Distributor | C1: =COUNTA(B1:B17) -> 4 | I1: A Standby Service Charge will be applied for a month where standby power is not provided. The applicable rate is the approved Distribution Volumetric Rate of the applicable service class and is applied to gross metered demand or contracted amount, whichever is greater. A monthly administration charge of $200, for simple metering arrangements, or $500, for complex metering arrangements, will also be applied. | L1: Loss Factors | N1: Units | O1: Units1 | P1: Units2 | Z1: Account History | AA1: Account set up charge/change of occupancy charge (plus credit agency costs if applicable) | AB1: Total Loss Factor – Embedded Distributor – Hydro One Networks Inc. | AL1: Algoma Power Inc. | AM1: Algoma Power Inc. | AO1: DISTRIBUTED GENERATION [DGEN] | AP1: kW | AT1: Sub-Total: Delivery (Distribution and Retail Transmission)
A2: COMPETITIVE SECTOR MULTI-UNIT RESIDENTIAL SERVICE | B2: General Service 3,000 to 4,999 kW | I2: Distribution Volumetric Rate | L2: Total Loss Factor – Primary Metered Customer | N2: $ | O2: $/kWh | P2: $ | Z2: Account set up charge/change of occupancy charge | AA2: Administrative Billing Charge | AB2: Total Loss Factor – Primary Metered Customer | AL2: Atikokan Hydro Inc. | AM2: Atikokan Hydro Inc. | AO2: EMBEDDED DISTRIBUTOR | AP2: kW | AT2: Wholesale Market Service Rate | AW2: =AU2*AV2 -> 0 | AX2: =AU2 -> 0 | AY2: 0 | AZ2: =AX2*AY2 -> 0 | BB2: =AZ2-AW2 -> 0 | BC2: =BB2/AW2 -> 
A3: COMPETITIVE SECTOR MULTI-UNIT RESIDENTIAL SERVICE CLASSIFICATION | B3: General Service 1,000 to 4,999 kW | I3: Distribution Volumetric Rate - $/kW of contracted amount | L3: Total Loss Factor – Primary Metered Customer < 5,000 kW | N3: $/kWh | O3: $/kW | P3: % | W3: MSC | Z3: Account set up charge/change of occupancy charge (plus credit agency costs if applicable – Residential) | AA3: Bell Canada Pole Rentals | AB3: Total Loss Factor – Primary Metered Customer < 5,000 kW | AL3: Bluewater Power Distribution Corporation | AM3: Bluewater Power Distribution Corporation | AO3: EMBEDDED DISTRIBUTOR | AP3: kW | AT3: Rural or Remote Electricity Rate Protection Charge (RRRP) | AW3: =AU3*AV3 -> 0 | AX3: 0 | AY3: 0 | AZ3: =AX3*AY3 -> 0 | BB3: =AZ3-AW3 -> 0 | BC3: =BB3/AW3 -> 
A4: DISTRIBUTED GENERATION [DGEN] | B4: General Service Equal To Or Greater Than 1,500 kW - Interval Metered | I4: Distribution Wheeling Service Rate | L4: Total Loss Factor – Primary Metered Customer > 5,000 kW | N4: $/kW | O4: $/kVA | W4: SM_Rate_Adder | Z4: Account set up charge/change of occupancy charge (plus credit agency costs if applicable) | AA4: Clearance Pole Attachment charge $/pole/year | AB4: Total Loss Factor – Primary Metered Customer > 5,000 kW | AL4: Brant County Power Inc. | AM4: Brant County Power Inc. | AO4: FARMS - SINGLE PHASE ENERGY-BILLED [F1] | AP4: kWh | AT4: Standard Supply Service – Administration Charge (if applicable) | AW4: =AU4*AV4 -> 0 | AX4: 0 | AY4: 0 | AZ4: =AX4*AY4 -> 0 | BB4: =AZ4-AW4 -> 0 | BC4: =BB4/AW4 -> 
A5: DISTRIBUTED GENERATION [DGEN] SERVICE CLASSIFICATION | I5: Electricity Rate | L5: Total Loss Factor – Secondary Metered Customer | N5: $/kVA | W5: MSC_Rate_Rider_ | Z5: Arrears certificate | AA5: Collection of account charge – no disconnection | AB5: Total Loss Factor – Secondary Metered Customer | AL5: Brantford Power Inc. | AM5: Brantford Power Inc. | AO5: FARMS - THREE PHASE ENERGY-BILLED [F3] | AP5: kWh | AT5: Sub-Total: Regulatory | AW5: =SUM(AW2:AW4) -> 0 | AZ5: =SUM(AZ2:BA4) -> 0 | BB5: =AZ5-AW5 -> 0 | BC5: =BB5/AW5 -> 
A6: EMBEDDED DISTRIBUTOR | I6: Electricity Rate - All Additional kWh | L6: Total Loss Factor – Secondary Metered Customer < 5,000 kW | W6: VC | Z6: Arrears certificate (credit reference) | AA6: Collection of account charge – no disconnection – after regular hours | AB6: Total Loss Factor – Secondary Metered Customer < 5,000 kW | AL6: Burlington Hydro Inc. | AM6: Burlington Hydro Inc. | AO6: GENERAL SERVICE - COMMERCIAL | AP6: kW | AT6: Debt Retirement Charge (DRC) | AW6: =AU6*AV6 -> 0 | AX6: =AU6 -> 0 | AY6: =AV6 -> 0 | AZ6: =AX6*AY6 -> 0 | BB6: =AZ6-AW6 -> 0 | BC6: =BB6/AW6 -> 
A7: EMBEDDED DISTRIBUTOR SERVICE CLASSIFICATION | I7: Electricity Rate - First 250 kWh | AL7: Cambridge and North Dumfries Hydro Inc. | AM7: Cambridge and North Dumfries Hydro Inc. | AO7: GENERAL SERVICE - INSTITUTIONAL | AP7: kW
A8: ENERGY FROM WASTE SERVICE CLASSIFICATION | I8: Electricity Rate -All Additional kWh | L8: Total Loss Factor – Secondary Metered Customer > 5,000 kW | W8: VC_Rate_Rider_ | Z8: Charge to certify cheque | AA8: Collection of account charge – no disconnection - during regular business hours | AB8: Total Loss Factor – Secondary Metered Customer > 5,000 kW | AL8: Canadian Niagara Power Inc. | AM8: Canadian Niagara Power Inc. | AO8: GENERAL SERVICE 1,000 TO 2,999 KW | AP8: kW | AT8: Total Bill on RPP (before taxes) | BB8: =AZ8-AW8 -> 0
A9: FARMS - SINGLE PHASE ENERGY-BILLED [F1] | I9: Electricity Rate First 1,000 kWh | L9: Distribution Loss Factor - Secondary Metered Customer < 5,000 kW | W9: VC_GA_Rate_Rider_kW_ | Z9: Collection of Account Charge – No Disconnection | AA9: Collection of account charge – no disconnection – during regular hours | AL9: Centre Wellington Hydro Ltd. | AM9: Centre Wellington Hydro Ltd. | AO9: GENERAL SERVICE 1,000 TO 4,999 KW | AP9: kW | AT9: HST | AW9: =AV9*AW8 -> 0 | AY9: =AV9 -> 0 | AZ9: =AY9*AZ8 -> 0 | BB9: =AZ9-AW9 -> 0 | BC9: =BB9/AW9 -> 
A10: FARMS - THREE PHASE ENERGY-BILLED [F3] | I10: Electricity Rate First 25,000 kWh | L10: Distribution Loss Factor - Secondary Metered Customer > 5,000 kW | W10: VC_LV_Rate | Z10: Credit Card Convenience Charge | AA10: Collection/Disconnection/Load Limiter/Reconnection – if in Community | AL10: Chapleau Public Utilities Corporation | AM10: Chapleau Public Utilities Corporation | AO10: GENERAL SERVICE 1,000 TO 4,999 KW - INTERVAL METERS | AP10: kW | AT10: Total Bill (including HST) | AW10: =AW9+AW8 -> 0 | AZ10: =AZ9+AZ8 -> 0 | BB10: =AZ10-AW10 -> 0 | BC10: =BB10/AW10 -> 
A11: GENERAL SERVICE - COMMERCIAL | I11: Electricity Rate First 6,000 kWh | L11: Distribution Loss Factor - Primary Metered Customer < 5,000 kW | W11: RTSR_Network | Z11: Credit check (plus credit agency costs) | AA11: Credit Card Convenience Charge | AL11: Collus PowerStream Corporation | AM11: Collus PowerStream Corporation | AO11: GENERAL SERVICE 1,000 TO 4,999 KW (CO-GENERATION) | AP11: kW | AT11: Ontario Clean Energy Benefit (OCEB) | AW11: =-0.1*AW10 -> 0 | AY11: =AV11 -> 0 | AZ11: =-0.1*AZ10 -> 0 | BB11: =AZ11-AW11 -> 0 | BC11: =BB11/AW11 -> 
A12: GENERAL SERVICE - INSTITUTIONAL | I12: Electricity Rate Next 1,500 kWh | L12: Distribution Loss Factor - Primary Metered Customer > 5,000 kW | W12: RTSR_Connection | Z12: Credit reference Letter | AA12: Disconnect/Reconnect at meter – after regular hours | AL12: Cooperative Hydro Embrun Inc. | AM12: Cooperative Hydro Embrun Inc. | AO12: GENERAL SERVICE 1,500 TO 4,999 KW | AP12: kW | AT12: Total Bill on RPP (including OCEB) | AW12: =AW10+AW11 -> 0 | AZ12: =AZ10+AZ11 -> 0 | BB12: =AZ12-AW12 -> 0 | BC12: =BB12/AW12 -> 
A13: GENERAL SERVICE 1,000 TO 2,999 KW | I13: General Service 1,500 to 4,999 kW customer | AL13: E.L.K. Energy Inc. | AM13: E.L.K. Energy Inc. | AO13: GENERAL SERVICE 2,500 TO 4,999 KW | AP13: kW
A14: GENERAL SERVICE 1,000 TO 4,999 KW | I14: General Service 50 to 1,499 kW customer | L14: Total Loss Factor - Embedded Distributor | W14: RTSR_Network_Interval | Z14: Credit reference/credit check (plus credit agency costs – General Service) | AA14: Disconnect/Reconnect at meter – during regular hours | AL14: Enersource Hydro Mississauga Inc. | AM14: Enersource Hydro Mississauga Inc. | AO14: GENERAL SERVICE 3,000 TO 4,999 KW | AP14: kW | AT14: Total Bill on TOU (before taxes) | BB14: =AZ14-AW14 -> 0
A15: GENERAL SERVICE 1,000 TO 4,999 KW - INTERVAL METERS | I15: General Service Large Use customer | L15: Total Loss Factor – Embedded Distributor – Hydro One Networks Inc. | W15: RTSR_Connection_Interval | Z15: Credit Reference/credit check (plus credit agency costs) | AA15: Disconnect/Reconnect at pole – after regular hours | AL15: Entegrus Powerlines Inc. | AM15: Entegrus Powerlines Inc. | AO15: GENERAL SERVICE 3,000 TO 4,999 KW - INTERMEDIATE USE | AP15: kW | AT15: HST | AW15: =AV15*AW14 -> 0 | AY15: =AV15 -> 0 | AZ15: =AY15*AZ14 -> 0 | BB15: =AZ15-AW15 -> 0 | BC15: =BB15/AW15 -> 
A16: GENERAL SERVICE 1,000 TO 4,999 KW (CO-GENERATION) | I16: Green Energy Act Initiatives Funding Adder - effective until the date of the next cost of service-based rate order | W16: RTSR_Network_Interval_GR1000kW | Z16: Dispute Test – Commercial self contained -- MC | AA16: Disconnect/Reconnect at pole – during regular hours | AL16: Entegrus Powerlines Inc. - Dutton Service Area | AM16: Entegrus Powerlines Inc. - Dutton Service Area | AO16: GENERAL SERVICE 3,000 TO 4,999 KW - INTERVAL METERED | AP16: kW | AT16: Total Bill (including HST) | AW16: =AW15+AW14 -> 0 | AZ16: =AZ15+AZ14 -> 0 | BB16: =AZ16-AW16 -> 0 | BC16: =BB16/AW16 -> 
A17: GENERAL SERVICE 1,000 TO 4,999 KW (CO-GENERATION) SERVICE CLASSIFICATION | I17: Green Energy Act Plan Funding Adder | W17: RTSR_Connection_Interval_GR1000kW | Z17: Dispute Test – Commercial TT -- MC | AA17: Disconnect/Reconnect Charge – At Meter – After Hours | AL17: Entegrus Powerlines Inc. - former Chatham-Kent Hydro Service Area | AM17: Entegrus Powerlines Inc. - former Chatham-Kent Hydro Service Area | AO17: GENERAL SERVICE 3,000 TO 4,999 KW - TIME OF USE | AP17: kW | AT17: Ontario Clean Energy Benefit (OCEB) | AW17: =-0.1*AW16 -> 0 | AY17: =AV17 -> 0 | AZ17: =-0.1*AZ16 -> 0 | BB17: =AZ17-AW17 -> 0 | BC17: =BB17/AW17 -> 
A18: GENERAL SERVICE 1,000 to 4,999 kW SERVICE CLASSIFICATION | I18: Green Energy Act Plan Funding Adder - effective April 1, 2013 until March 31, 2014 | W18: RTSR_Line_Connection | Z18: Dispute Test – Residential | AA18: Disconnect/Reconnect Charge – At Meter – During Regular Hours | AL18: Entegrus Powerlines Inc. - Newbury Service Area | AM18: Entegrus Powerlines Inc. - Newbury Service Area | AO18: GENERAL SERVICE 50 TO 1,000 KW | AP18: kW | AT18: Total Bill on TOU (including OCEB) | AW18: =AW16+AW17 -> 0 | AZ18: =AZ16+AZ17 -> 0 | BB18: =AZ18-AW18 -> 0 | BC18: =BB18/AW18 -> 
A19: GENERAL SERVICE 1,500 TO 4,999 KW | I19: Green Energy Act Plan Funding Adder - effective April 1, 2014 until March 31, 2015 | W19: RTSR_Transformer_Connection | Z19: Duplicate Invoices for previous billing | AA19: Disconnect/Reconnect Charge – At Pole – After Hours | AL19: Entegrus Powerlines Inc. - Strathroy, Mount Brydges and Parkhill Service Areas | AM19: Entegrus Powerlines Inc. - Strathroy, Mount Brydges and Parkhill Service Areas | AO19: GENERAL SERVICE 50 TO 1,000 KW - INTERVAL METERS | AP19: kW
A20: GENERAL SERVICE 2,500 TO 4,999 KW | I20: ICM Rate Rider (2014) - in effect until the effective date of the next cost of service rates | W20: WMSR | Z20: Easement Letter | AA20: Disconnect/Reconnect Charge – At Pole – During Regular Hours | AL20: ENWIN Utilities Ltd. | AM20: ENWIN Utilities Ltd. | AO20: GENERAL SERVICE 50 TO 1,000 KW - NON INTERVAL METERS | AP20: kW
A21: GENERAL SERVICE 3,000 TO 4,999 KW | I21: Low Voltage Service Charge | W21: RRRP | Z21: Income Tax Letter | AA21: Disconnect/Reconnect Charges for non payment of account - At Meter After Hours | AL21: Erie Thames Powerlines Corporation | AM21: Erie Thames Powerlines Corporation | AO21: GENERAL SERVICE 50 TO 1,499 KW | AP21: kW
A22: GENERAL SERVICE 3,000 TO 4,999 KW - INTERMEDIATE USE | I22: Low Voltage Service Rate | W22: SPC | Z22: Interval Meter Interrogation | AA22: Disconnect/Reconnect charges for non payment of account – at meter after regular hours | AL22: Espanola Regional Hydro Distribution Corporation | AM22: Espanola Regional Hydro Distribution Corporation | AO22: GENERAL SERVICE 50 TO 1,499 KW - INTERVAL METERED | AP22: kW
A23: GENERAL SERVICE 3,000 TO 4,999 KW - INTERMEDIATE USE SERVICE CLASSIFICATION | I23: Low Voltage Volumetric Rate | W23: DRC | Z23: Interval meter request change | AA23: Disconnect/Reconnect Charges for non payment of account - At Meter During Regular Hours | AL23: Essex Powerlines Corporation | AM23: Essex Powerlines Corporation | AO23: GENERAL SERVICE 50 TO 2,499 KW | AP23: kW
A24: GENERAL SERVICE 3,000 TO 4,999 KW - INTERVAL METERED | I24: LRAM Rate Rider - Effective Until April 30, 2015 | W24: SSS | Z24: Legal letter | AA24: Disconnect/Reconnect charges for non payment of account – at meter during regular hours | AL24: Festival Hydro Inc. | AM24: Festival Hydro Inc. | AO24: GENERAL SERVICE 50 TO 2,999 KW | AP24: kW
A25: GENERAL SERVICE 3,000 TO 4,999 KW - TIME OF USE | I25: Minimum Distribution Charge - per KW of maximum billing demand in the previous 11 months | W25: SFLF | Z25: Legal letter charge | AA25: Disconnect/Reconnect charges for non payment of account – at pole after regular hours | AL25: Fort Frances Power Corporation | AM25: Fort Frances Power Corporation | AO25: GENERAL SERVICE 50 TO 2,999 KW - INTERVAL METERED | AP25: kW
A26: GENERAL SERVICE 3,000 TO 4,999 KW SERVICE CLASSIFICATION | B26: January | I26: Monthly Distribution Wheeling Service Rate - Dedicated LV Line | W26: DLF_Secondary_LT_5000kW | Z26: Meter dispute charge plus Measurement Canada fees (if meter found correct) | AA26: Disconnect/Reconnect charges for non payment of account – at pole during regular hours | AL26: Greater Sudbury Hydro Inc. | AM26: Greater Sudbury Hydro Inc. | AO26: GENERAL SERVICE 50 TO 2,999 KW - TIME OF USE | AP26: kW
A27: GENERAL SERVICE 50 TO 1,000 KW | B27: February | I27: Monthly Distribution Wheeling Service Rate - Hydro One Networks | W27: DLF_Secondary_GT_5000kW | Z27: Notification charge | AA27: Disconnect/Reconnection for >300 volts - after regular hours | AL27: Grimsby Power Inc. | AM27: Grimsby Power Inc. | AO27: GENERAL SERVICE 50 TO 4,999 KW | AP27: kW
A28: GENERAL SERVICE 50 TO 1,000 KW - INTERVAL METERS | B28: March | I28: Monthly Distribution Wheeling Service Rate - Shared LV Line | W28: DLF_Primary_LT_5000kW | Z28: Pulling Post Dated Cheques | AA28: Disconnect/Reconnection for >300 volts - during regular hours | AL28: Guelph Hydro Electric Systems Inc. | AM28: Guelph Hydro Electric Systems Inc. | AO28: GENERAL SERVICE 50 TO 4,999 KW - INTERVAL METERED | AP28: kW
A29: GENERAL SERVICE 50 TO 1,000 KW - NON INTERVAL METERS | B29: April | I29: Monthly Distribution Wheeling Service Rate - Waterloo North Hydro | W29: DLF_Primary_GT_5000kW | Z29: Request for other billing information | AA29: Disposal of Concrete Poles | AL29: Haldimand County Hydro Inc. | AM29: Haldimand County Hydro Inc. | AO29: GENERAL SERVICE 50 TO 4,999 KW - TIME OF USE | AP29: kW
A30: GENERAL SERVICE 50 TO 1,499 KW | B30: May | I30: Rate Rider for Application of Tax Change - effective until April 30, 2015 | W30: TLF_Secondary_LT_5000kW | Z30: Returned cheque (plus bank charges) | AA30: Dispute Test – Commercial TT -- MC | AL30: Halton Hills Hydro Inc. | AM30: Halton Hills Hydro Inc. | AO30: GENERAL SERVICE 50 TO 4,999 KW (COGENERATION) | AP30: kW
A31: GENERAL SERVICE 50 TO 1,499 KW - INTERVAL METERED | B31: June | I31: Rate Rider for Application of Tax Change - effective until December 31, 2014 | W31: TLF_Secondary_GT_5000kW | Z31: Returned cheque charge (plus bank charges) | AA31: Install/Remove load control device – after regular hours | AL31: Hearst Power Distribution Company Limited | AM31: Hearst Power Distribution Company Limited | AO31: GENERAL SERVICE 50 TO 4,999 KW (FORMERLY TIME OF USE) | AP31: kW
A32: GENERAL SERVICE 50 to 1,499 kW SERVICE CLASSIFICATION | B32: July | I32: Rate Rider for Application of Tax Change (2014) - effective until April 30, 2015 | W32: TLF_Primary_LT_5000kW | Z32: Special Billing Service (aggregation) | AA32: Install/Remove load control device – during regular hours | AL32: Horizon Utilities Corporation | AM32: Horizon Utilities Corporation | AO32: GENERAL SERVICE 50 TO 499 KW | AP32: kW
A33: GENERAL SERVICE 50 TO 2,499 KW | B33: August | I33: Rate Rider for Application of Tax Change (per connection) - effective until April 30, 2015 | W33: TLF_Primary_GT_5000kW | Z33: Special Billing Service (sub-metering charge per meter) | AA33: Interval Meter Interrogation | AL33: Hydro 2000 Inc. | AM33: Hydro 2000 Inc. | AO33: GENERAL SERVICE 50 TO 699 KW | AP33: kW
A34: GENERAL SERVICE 50 TO 2,999 KW | B34: September | I34: Rate Rider for CGAAP Accounting Changes (2013) - effective until April 30, 2017 | W34: TLF_EmbeddedDistributor | Z34: Special meter reads | AA34: Interval Meter Load Management Tool Charge $/month | AL34: Hydro Hawkesbury Inc. | AM34: Hydro Hawkesbury Inc. | AO34: GENERAL SERVICE 50 TO 999 KW | AP34: kW
A35: GENERAL SERVICE 50 TO 2,999 KW - INTERVAL METERED | B35: October | I35: Rate Rider for Deferral/Variance Account (2012) - effective unitl April 30, 2016 | Z35: Statement of Account | AA35: Interval meter request change | AL35: Hydro One Brampton Networks Inc. | AM35: Hydro One Brampton Networks Inc. | AO35: GENERAL SERVICE 50 TO 999 KW - INTERVAL METERED | AP35: kW
A36: GENERAL SERVICE 50 TO 2,999 KW - TIME OF USE | B36: November | I36: Rate Rider for Deferral/Variance Account Disposition – effective until April 30, 2015 | Z36: Unprocessed Payment Charge (plus bank charges) | AA36: Late Payment – per annum | AL36: Hydro One Networks Inc. | AM36: Hydro One Networks Inc. | AO36: GENERAL SERVICE 500 TO 4,999 KW | AP36: kW
A37: GENERAL SERVICE 50 TO 2,999 KW SERVICE CLASSIFICATION | B37: December | I37: Rate Rider for Deferral/Variance Account Disposition (2012) - effective until April 30, 2016 | AA37: Late Payment – per month | AL37: Hydro Ottawa Limited | AM37: Hydro Ottawa Limited | AO37: GENERAL SERVICE 700 TO 4,999 KW | AP37: kW
A38: GENERAL SERVICE 50 TO 4,999 KW | I38: Rate Rider for Deferral/Variance Account Disposition (2013) - effective until April 30, 2014 | AA38: Layout fees | AL38: Innisfil Hydro Distribution Systems Limited | AM38: Innisfil Hydro Distribution Systems Limited | AO38: GENERAL SERVICE DEMAND BILLED (50 KW AND ABOVE) [GSD] | AP38: kW
A39: GENERAL SERVICE 50 TO 4,999 KW - INTERVAL METERED | I39: Rate Rider for Deferral/Variance Account Disposition (2014) - effective until April 28, 2016 | AA39: Meter dispute charge plus Measurement Canada fees (if meter found correct) | AL39: Kenora Hydro Electric Corporation Ltd. | AM39: Kenora Hydro Electric Corporation Ltd. | AO39: GENERAL SERVICE ENERGY BILLED (LESS THAN 50 KW) [GSE-METERED] | AP39: kWh
A40: GENERAL SERVICE 50 TO 4,999 KW - TIME OF USE | I40: Rate Rider for Deferral/Variance Account Disposition (2014) - effective until April 30, 2015 | AA40: Meter Interrogation Charge | AL40: Kingston Hydro Corporation | AM40: Kingston Hydro Corporation | AO40: GENERAL SERVICE ENERGY BILLED (LESS THAN TO 50 KW) [GSE-UNMETERED] | AP40: kWh
A41: GENERAL SERVICE 50 TO 4,999 KW (COGENERATION) | I41: Rate Rider for Deferral/Variance Account Disposition (2014) - effective until December 31, 2014 | AA41: Missed Service Appointment | AL41: Kitchener-Wilmot Hydro Inc. | AM41: Kitchener-Wilmot Hydro Inc. | AO41: GENERAL SERVICE EQUAL TO OR GREATER THAN 1,500 KW | AP41: kW
A42: GENERAL SERVICE 50 TO 4,999 KW (FORMERLY TIME OF USE) | I42: Rate Rider for Deferral/Variance Account Disposition (2014) - effective until December 31, 2015 | AA42: Norfolk Pole Rentals – Billed | AL42: Lakefront Utilities Inc. | AM42: Lakefront Utilities Inc. | AO42: GENERAL SERVICE EQUAL TO OR GREATER THAN 1,500 KW - INTERVAL METERED | AP42: kW
A43: GENERAL SERVICE 50 TO 4,999 KW SERVICE CLASSIFICATION | I43: Rate Rider for Deferral/Variance Account Dispositon (2012) - effective until April 30, 2016 | AA43: Optional Interval/TOU Meter charge $/month | AL43: Lakeland Power Distribution Ltd. | AM43: Lakeland Power Distribution Ltd. | AO43: GENERAL SERVICE GREATER THAN 1,000 KW | AP43: kW
A44: GENERAL SERVICE 50 to 4,999 kWSERVICE CLASSIFICATION | I44: Rate Rider for Disposition of Accounting Changes Under CGAAP Account 1576 - effective until April 30, 2016 | AA44: Overtime Locate | AL44: London Hydro Inc. | AM44: London Hydro Inc. | AO44: GENERAL SERVICE GREATER THAN 50 kW - WMP | AP44: kW
A45: GENERAL SERVICE 50 TO 499 KW | I45: Rate Rider for Disposition of Deferral/Variance Accounts (2010) - effective until December 31, 2014 | AA45: Owner Requested Disconnection/Reconnection – after regular hours | AL45: Midland Power Utility Corporation | AM45: Midland Power Utility Corporation | AO45: GENERAL SERVICE INTERMEDIATE 1,000 TO 4,999 KW | AP45: kW
A46: GENERAL SERVICE 50 to 499 kW SERVICE CLASSIFICATION | I46: Rate Rider for Disposition of Deferral/Variance Accounts (2011) - effective until April 30, 2015 | AA46: Owner Requested Disconnection/Reconnection – during regular hours | AL46: Milton Hydro Distribution Inc. | AM46: Milton Hydro Distribution Inc. | AO46: GENERAL SERVICE INTERMEDIATE RATE CLASS 1,000 TO 4,999 KW (FORMERLY GENERAL SERVICE > 50 KW CUSTOMERS) | AP46: kW
A47: GENERAL SERVICE 50 TO 699 KW | I47: Rate Rider for Disposition of Deferral/Variance Accounts (2011) - effective until April 30, 2016 | AA47: Returned cheque (plus bank charges) | AL47: Newmarket - Tay Power Distribution Ltd. | AM47: Newmarket - Tay Power Distribution Ltd. | AO47: GENERAL SERVICE INTERMEDIATE RATE CLASS 1,000 TO 4,999 KW (FORMERLY LARGE USE CUSTOMERS) | AP47: kW
A48: GENERAL SERVICE 50 TO 699 KW SERVICE CLASSIFICATION | I48: Rate Rider for Disposition of Deferral/Variance Accounts (2012) - effective until April 30, 2014 | AA48: Rural system expansion / line connection fee | AL48: Niagara Peninsula Energy Inc. | AM48: Niagara Peninsula Energy Inc. | AO48: GENERAL SERVICE LESS THAN 50 KW | AP48: kWh
A49: GENERAL SERVICE 50 TO 999 KW | I49: Rate Rider for Disposition of Deferral/Variance Accounts (2012) - effective until April 30, 2015 | AA49: Same Day Open Trench | AL49: Niagara-on-the-Lake Hydro Inc. | AM49: Niagara-on-the-Lake Hydro Inc. | AO49: GENERAL SERVICE LESS THAN 50 KW - SINGLE PHASE ENERGY-BILLED [G1] | AP49: kWh
A50: GENERAL SERVICE 50 TO 999 KW - INTERVAL METERED | I50: Rate Rider for Disposition of Deferral/Variance Accounts (2012) - effective until April 30, 2016 | AA50: Scheduled Day Open Trench | AL50: Norfolk Power Distribution Inc. | AM50: Norfolk Power Distribution Inc. | AO50: GENERAL SERVICE LESS THAN 50 KW - THREE PHASE ENERGY-BILLED [G3] | AP50: kWh
A51: GENERAL SERVICE 50 to 999 kW SERVICE CLASSIFICATION | I51: Rate Rider for Disposition of Deferral/Variance Accounts (2012) - effective until August 31, 2014 | AA51: Service call – after regular hours | AL51: North Bay Hydro Distribution Limited | AM51: North Bay Hydro Distribution Limited | AO51: GENERAL SERVICE LESS THAN 50 KW - TRANSMISSION CLASS ENERGY-BILLED [T] | AP51: kWh
A52: GENERAL SERVICE 500 TO 1,499 KW SERVICE CLASSIFICATION | I52: Rate Rider for Disposition of Deferral/Variance Accounts (2012) - effective until December 31, 2015 | AA52: Service call – customer owned equipment | AL52: Northern Ontario Wires Inc. | AM52: Northern Ontario Wires Inc. | AO52: GENERAL SERVICE LESS THAN 50 KW - URBAN ENERGY-BILLED [UG] | AP52: kWh
A53: GENERAL SERVICE 500 TO 4,999 KW | I53: Rate Rider for Disposition of Deferral/Variance Accounts (2012) - effective until December 31, 2016 Applicable only in the former service area of Clinton Power | AA53: Service Call – Customer-owned Equipment – After Regular Hours | AL53: Oakville Hydro Electricity Distribution Inc. | AM53: Oakville Hydro Electricity Distribution Inc. | AO53: GENERAL SERVICE SINGLE PHASE - G1 | AP53: kW
A54: GENERAL SERVICE 500 to 4,999 kW SERVICE CLASSIFICATION | I54: Rate Rider for Disposition of Deferral/Variance Accounts (2012) – effective until December 31, 2016 Applicable only in the former service area of Clinton Power | AA54: Service Call – Customer-owned Equipment – During Regular Hours | AL54: Orangeville Hydro Limited | AM54: Orangeville Hydro Limited | AO54: GENERAL SERVICE THREE PHASE - G3 | AP54: kW
A55: GENERAL SERVICE 700 TO 4,999 KW | I55: Rate Rider for Disposition of Deferral/Variance Accounts (2012) - effective until January 31, 2014 | AA55: Service Charge for onsite interrogation of interval meter due to customer phone line failure - required weekly until line repaired $ 6 | AL55: Orillia Power Distribution Corporation | AM55: Orillia Power Distribution Corporation | AO55: INTERMEDIATE USERS | AP55: kW
A56: GENERAL SERVICE 700 TO 4,999 KW SERVICE CLASSIFICATION | I56: Rate Rider for Disposition of Deferral/Variance Accounts (2012) - effective until June 30, 2014 | AA56: Service Layout - Commercial | AL56: Oshawa PUC Networks Inc. | AM56: Oshawa PUC Networks Inc. | AO56: INTERMEDIATE WITH SELF GENERATION | AP56: kW
A57: GENERAL SERVICE DEMAND BILLED (50 KW AND ABOVE) [GSD] | I57: Rate Rider for Disposition of Deferral/Variance Accounts (2013) - Applicable only to Wholesale Market Participants - effective until April 30, 2015 | AA57: Service Layout - ResidentiaI | AL57: Ottawa River Power Corporation | AM57: Ottawa River Power Corporation | AO57: LARGE USE | AP57: kW
A58: GENERAL SERVICE ENERGY BILLED (LESS THAN 50 KW) [GSE-METERED] | I58: Rate Rider for Disposition of Deferral/Variance Accounts (2013) - effective until April 30, 2014 | AA58: Special Billing Service (sub-metering charge per meter) | AL58: Parry Sound Power Corporation | AM58: Parry Sound Power Corporation | AO58: LARGE USE - 3TS | AP58: kW
A59: GENERAL SERVICE ENERGY BILLED (LESS THAN TO 50 KW) [GSE-UNMETERED] | I59: Rate Rider for Disposition of Deferral/Variance Accounts (2013) - effective until April 30, 2015 | AA59: Special meter reads | AL59: Peterborough Distribution Incorporated | AM59: Peterborough Distribution Incorporated | AO59: LARGE USE - FORD ANNEX | AP59: kW
A60: GENERAL SERVICE EQUAL TO OR GREATER THAN 1,500 KW | I60: Rate Rider for Disposition of Deferral/Variance Accounts (2013) - effective until April 30, 2015 - not applicable to Wholesale Market Participants | AA60: Specific Charge for Access to the Power Poles - $/pole/year | AL60: PowerStream Inc. | AM60: PowerStream Inc. | AO60: LARGE USE - REGULAR | AP60: kW
A61: GENERAL SERVICE EQUAL TO OR GREATER THAN 1,500 KW - INTERVAL METERED | I61: Rate Rider for Disposition of Deferral/Variance Accounts (2013) - effective until April 30, 2017 | AA61: Specific Charge for Bell Canada Access to the Power Poles – per pole/year | AL61: PUC Distribution Inc. | AM61: PUC Distribution Inc. | AO61: LARGE USE > 5000 KW | AP61: kW
A62: GENERAL SERVICE EQUAL TO OR GREATER THAN 1,500 KW SERVICE CLASSIFICATION | I62: Rate Rider for Disposition of Deferral/Variance Accounts (2013) - effective until August 31, 2014 | AA62: Switching for company maintenance – Charge based on Time and Materials | AL62: Renfrew Hydro Inc. | AM62: Renfrew Hydro Inc. | AO62: microFIT | AP62: $
A63: GENERAL SERVICE GREATER THAN 1,000 KW | I63: Rate Rider for Disposition of Deferral/Variance Accounts (2013) - effective until December 31, 2014 | AA63: Temporary Service – Install & remove – overhead – no transformer | AL63: Rideau St. Lawrence Distribution Inc. | AM63: Rideau St. Lawrence Distribution Inc. | AO63: RESIDENTIAL | AP63: kWh
A64: GENERAL SERVICE GREATER THAN 50 kW - WMP | I64: Rate Rider for Disposition of Deferral/Variance Accounts (2013) - effective until May 31, 2014 | AA64: Temporary Service – Install & remove – overhead – with transformer | AL64: Sioux Lookout Hydro Inc. | AM64: Sioux Lookout Hydro Inc. | AO64: RESIDENTIAL - HENSALL | AP64: kWh
A65: GENERAL SERVICE INTERMEDIATE 1,000 TO 4,999 KW | I65: Rate Rider for Disposition of Deferral/Variance Accounts (2014) - effective until December 31, 2015 | AA65: Temporary Service – Install & remove – underground – no transformer | AL65: St. Thomas Energy Inc. | AM65: St. Thomas Energy Inc. | AO65: RESIDENTIAL - HIGH DENSITY [R1] | AP65: kWh
A66: GENERAL SERVICE INTERMEDIATE RATE CLASS 1,000 TO 4,999 KW (FORMERLY GENERAL SERVICE > 50 KW CUSTOMERS) | I66: Rate Rider for Disposition of Deferred PILs Variance Account 1562 - effective until March 31, 2016 | AA66: Temporary service install & remove – overhead – no transformer | AL66: Thunder Bay Hydro Electricity Distribution Inc. | AM66: Thunder Bay Hydro Electricity Distribution Inc. | AO66: RESIDENTIAL - LOW DENSITY [R2] | AP66: kWh
A67: GENERAL SERVICE INTERMEDIATE RATE CLASS 1,000 TO 4,999 KW (FORMERLY LARGE USE CUSTOMERS) | I67: Rate Rider for Disposition of Deferred PILs Variance Account 1562 (2012) - effective until April 30, 2015 | AA67: Temporary Service Install & Remove – Overhead – With Transformer | AL67: Tillsonburg Hydro Inc. | AM67: Tillsonburg Hydro Inc. | AO67: RESIDENTIAL - MEDIUM DENSITY [R1] | AP67: kWh
A68: GENERAL SERVICE LESS THAN 50 KW | I68: Rate Rider for Disposition of Deferred PILs Variance Account 1562 (2012) - effective until April 30, 2016 | AA68: Temporary Service Install & Remove – Underground – No Transformer | AL68: Toronto Hydro-Electric System Limited | AM68: Toronto Hydro-Electric System Limited | AO68: RESIDENTIAL - NORMAL DENSITY [R2] | AP68: kWh
A69: GENERAL SERVICE LESS THAN 50 KW - SINGLE PHASE ENERGY-BILLED [G1] | I69: Rate Rider for Disposition of Deferred PILs Variance Account 1562 (2nd Installment - 2012) - effective until April 30, 2016 | AA69: Temporary service installation and removal – overhead – no transformer | AL69: Veridian Connections Inc. | AM69: Veridian Connections Inc. | AO69: RESIDENTIAL - TIME OF USE | AP69: kWh
A70: GENERAL SERVICE LESS THAN 50 KW - THREE PHASE ENERGY-BILLED [G3] | I70: Rate Rider for Disposition of Deferred PILs Variance Account 1562 (per connection) (2012) - effective until April 30, 2015 | AA70: Temporary service installation and removal – overhead – with transformer | AL70: Wasaga Distribution Inc. | AM70: Wasaga Distribution Inc. | AO70: RESIDENTIAL - URBAN [UR] | AP70: kWh
A71: GENERAL SERVICE LESS THAN 50 KW - TRANSMISSION CLASS ENERGY-BILLED [T] | I71: Rate Rider for Disposition of Deferred PILs Variance Account 1562 (per connection) (2012) - effective until April 30, 2016 | AA71: Temporary service installation and removal – underground – no transformer | AL71: Waterloo North Hydro Inc. | AM71: Waterloo North Hydro Inc. | AO71: RESIDENTIAL REGULAR | AP71: kWh
A72: GENERAL SERVICE LESS THAN 50 KW - URBAN ENERGY-BILLED [UG] | I72: Rate Rider for Disposition of Global Adjustment Sub-Account (2011) - effective until April 30, 2015 Applicable only for Non-RPP Customers | AL72: Welland Hydro-Electric System Corp. | AM72: Welland Hydro-Electric System Corp. | AO72: RESIDENTIAL SUBURBAN | AP72: kWh
A73: GENERAL SERVICE LESS THAN 50 kW SERVICE CLASSIFICATION | I73: Rate Rider for Disposition of Global Adjustment Sub-Account (2011) - effective until April 30, 2016 Applicable only for Non-RPP Customers | AL73: Wellington North Power Inc. | AM73: Wellington North Power Inc. | AO73: RESIDENTIAL SUBURBAN SEASONAL | AP73: kWh
A74: GENERAL SERVICE SINGLE PHASE - G1 | I74: Rate Rider for Disposition of Global Adjustment Sub-Account (2012) - effective until April 30, 2014 Applicable only for Non-RPP Customers | AL74: West Coast Huron Energy Inc. | AM74: West Coast Huron Energy Inc. | AO74: RESIDENTIAL SUBURBAN YEAR ROUND | AP74: kWh
A75: GENERAL SERVICE THREE PHASE - G3 | I75: Rate Rider for Disposition of Global Adjustment Sub-Account (2012) - effective until April 30, 2015 Applicable only for Non-RPP Customers | AL75: Westario Power Inc. | AM75: Westario Power Inc. | AO75: RESIDENTIAL URBAN | AP75: kWh
A76: GENERAL SERVICELESS THAN 50 kWSERVICE CLASSIFICATION | I76: Rate Rider for Disposition of Global Adjustment Sub-Account (2012) - effective until April 30, 2015 Applicatble only for Non-RPP Customers | AL76: Whitby Hydro Electric Corporation | AM76: Whitby Hydro Electric Corporation | AO76: RESIDENTIAL URBAN YEAR-ROUND | AP76: kWh
A77: INTERMEDIATE USER SERVICE CLASSIFICATION | I77: Rate Rider for Disposition of Global Adjustment Sub-Account (2012) - effective until April 30, 2016 Applicable only for Non-RPP Customers | AL77: Woodstock Hydro Services Inc. | AM77: Woodstock Hydro Services Inc. | AO77: SEASONAL RESIDENTIAL | AP77: kWh
A78: INTERMEDIATE USERS | I78: Rate Rider for Disposition of Global Adjustment Sub-Account (2012) - effective until January 31, 2014. Applicable only for Non-RPP Customers | AO78: SEASONAL RESIDENTIAL - HIGH DENSITY [R3] | AP78: kWh
A79: INTERMEDIATE WITH SELF GENERATION | I79: Rate Rider for Disposition of Global Adjustment Sub-Account (2012) - effective until June 30, 2014 Applicable only for Non-RPP Customers | AO79: SEASONAL RESIDENTIAL - NORMAL DENSITY [R4] | AP79: kWh
A80: LARGE USE | I80: Rate Rider for Disposition of Global Adjustment Sub-Account (2012) Applicable only for Non-RPP Customers - effective until August 31, 2014 | AO80: SENTINEL LIGHTING | AP80: kW
A81: LARGE USE - 3TS | I81: Rate Rider for Disposition of Global Adjustment Sub-Account (2012) Applicable only to Non-RPP Customers - effective until August 31, 2014 | AO81: SMALL COMMERCIAL AND USL - PER CONNECTION | AP81: kWh
A82: LARGE USE - 3TS SERVICE CLASSIFICATION | I82: Rate Rider for Disposition of Global Adjustment Sub-Account (2013) - effective until April 30, 2014 Applicable only for Non-RPP Customers | AO82: SMALL COMMERCIAL AND USL - PER METER | AP82: kWh
A83: LARGE USE - FORD ANNEX | I83: Rate Rider for Disposition of Global Adjustment Sub-Account (2013) - effective until April 30, 2015 Applicable only for Non-RPP Customers | AO83: STANDARD A GENERAL SERVICE AIR ACCESS | AP83: kWh
A84: LARGE USE - FORD ANNEX SERVICE CLASSIFICATION | I84: Rate Rider for Disposition of Global Adjustment Sub-Account (2013) - effective until April 30, 2015 Applicable only for Non-RPP Customers and excluding Wholesale Market Participants | AO84: STANDARD A GENERAL SERVICE ROAD/RAIL | AP84: kWh
A85: LARGE USE - REGULAR | I85: Rate Rider for Disposition of Global Adjustment Sub-Account (2013) - effective until April 30, 2017 Applicable only for Non-RPP Customers | AO85: STANDARD A GRID CONNECTED | AP85: kWh
A86: LARGE USE - REGULAR SERVICE CLASSIFICATION | I86: Rate Rider For Disposition of Global Adjustment Sub-Account (2013) - effective until August 31, 2014 Applicable only for Non-RPP Customers | AO86: STANDARD A RESIDENTIAL AIR ACCESS | AP86: kWh
A87: LARGE USE > 5000 KW | I87: Rate Rider for Disposition of Global Adjustment Sub-Account (2013) - effective until December 31, 2014 Applicable only for Non-RPP Customers | AO87: STANDARD A RESIDENTIAL ROAD/RAIL | AP87: kWh
A88: LARGE USE SERVICE CLASSIFICATION | I88: Rate Rider for Disposition of Global Adjustment Sub-Account (2013) - effective until May 31, 2014 Applicable only for Non-RPP Customers | AO88: STANDBY - GENERAL SERVICE 1,000 - 5,000 KW | AP88: kW
A89: LARGE USE WITH DEDICATED ASSETS SERVICE CLASSIFICATION | I89: Rate Rider for Disposition of Global Adjustment Sub-Account (2014) - effective until December 31, 2014. Applicable only for Non-RPP - Class B Customers | AO89: STANDBY - GENERAL SERVICE 50 - 1,000 KW | AP89: kW
A90: LARGE USESERVICE CLASSIFICATION | I90: Rate Rider for Disposition of Global Adjustment Sub-Account (2014) - effective until December 31, 2014. Applicable only for Non-RPP Customers | AO90: STANDBY - LARGE USE | AP90: kW
A91: LOSS FACTORS | I91: Rate Rider for Disposition of Global Adjustment Sub-Account (2014) - effective until December 31, 2014. Applicable only for Non-RPP Customers - Class A Customers | AO91: STANDBY DISTRIBUTION SERVICE | AP91: kW
A92: microFIT | I92: Rate Rider for Disposition of Global Adjustment Sub-Account (2014) - effective until December 31, 2014. Applicable only for Non-RPP Customers - Interval Metered | AO92: STANDBY POWER | AP92: kW
A93: MICROFIT GENERATOR SERVICE CLASSIFICATION | I93: Rate Rider for Disposition of Global Adjustment Sub-Account (2014) - effective until December 31, 2014. Applicable only for Non-RPP Customers - Non Interval Metered | AO93: STANDBY POWER - APPROVED ON AN INTERIM BASIS | AP93: kW
A94: microFIT SERVICE CLASSIFICATION | I94: Rate Rider for Disposition of Global Adjustment Sub-Account (2014) - effective until December 31, 2015. Applicable only for Non-RPP Customers. | AO94: STANDBY POWER GENERAL SERVICE 1,500 TO 4,999 KW | AP94: kW
A95: microFITGENERATOR SERVICE CLASSIFICATION | I95: Rate Rider for Disposition of Post Retirement Actuarial Gain - effective until March 31, 2025 | AO95: STANDBY POWER GENERAL SERVICE 50 TO 1,499 KW | AP95: kW
A96: MONTHLY RATES AND CHARGES–DELIVERY COMPONENT-APPROVED ON AN INTERIM | I96: Rate Rider for Disposition of Residual Hisotrical Smart Meter Costs - effective until April 30, 2015 | AO96: STANDBY POWER GENERAL SERVICE LARGE USE | AP96: kW
A97: NON STANDARD A GENERAL SERVICE SINGLE PHASE SERVICE CLASSIFICATION – G1 | I97: Rate Rider for Disposition of Residual Hisotrical Smart Meter Costs - effective until April 30, 2017 | AO97: STREET LIGHTING | AP97: kW
A98: NON STANDARD A GENERAL SERVICE THREE PHASE SERVICE CLASSIFICATION – G3 | I98: Rate Rider for Disposition of Residual Historical Smart Meter Costs - effective until April 30, 2014 | AO98: SUB TRANSMISSION [ST] | AP98: kW
A99: NON STANDARD A SEASONAL RESIDENTIAL SERVICE CLASSIFICATION – R4 | I99: Rate Rider for Disposition of Residual Historical Smart Meter Costs - effective until April 30, 2016 | AO99: UNMETERED SCATTERED LOAD | AP99: kWh
A100: NON STANDARD A YEAR ROUND RESIDENTIAL SERVICE CLASSIFICATION – R2 | I100: Rate Rider for Disposition of Residual Historical Smart Meter Costs - effective until August 31, 2014 | AO100: URBAN GENERAL SERVICE DEMAND BILLED (50 KW AND ABOVE) [UGD] | AP100: kW
A101: ONTARIO ELECTRICITY SUPPORT PROGRAM RECIPIENTS | I101: Rate Rider for Disposition of Residual Historical Smart Meter Costs - effective until August 31, 2015 | AO101: URBAN GENERAL SERVICE ENERGY BILLED (LESS THAN 50 KW) [UGE] | AP101: kWh
A102: RESIDENTIAL | I102: Rate Rider for Disposition of Residual Historical Smart Meter Costs - effective until December 31, 2014 | AO102: WESTPORT SEWAGE TREATMENT PLANT | AP102: kW
A103: RESIDENTIAL - HENSALL | I103: Rate Rider for Disposition of Residual Historical Smart Meter Costs – effective until December 31, 2014 | AO103: YEAR-ROUND RESIDENTIAL - R2 | AP103: kWh
A104: RESIDENTIAL - HIGH DENSITY [R1] | I104: Rate Rider for Disposition of Residual Historical Smart Meter Costs - effective until December 31, 2015
A105: RESIDENTIAL - LOW DENSITY [R2] | I105: Rate Rider for Disposition of Residual Historical Smart Meter Costs - effective until December 31, 2016
A106: RESIDENTIAL - MEDIUM DENSITY [R1] | I106: Rate Rider for Disposition of Residual Historical Smart Meter Costs - effective until October 31, 2014
A107: RESIDENTIAL - NORMAL DENSITY [R2] | I107: Rate Rider for Disposition of Residual Historical Smart Meter Costs - effective until September 30, 2014
A108: RESIDENTIAL - TIME OF USE | I108: Rate Rider for Disposition of Residual Historical Smart Meter Costs - Non-Interval Metered - effective until April 30, 2014
A109: RESIDENTIAL - URBAN [UR] | I109: Rate Rider for Disposition of Residual Historical Smart Meter Costs 2 - in effect until the effective date of the next cost of service-based rate order
A110: RESIDENTIAL REGULAR | I110: Rate Rider for Disposition of Residual Historical Smart Meter Costs 3 - in effect until the effective date of the next cost of service-based rate order
A111: RESIDENTIAL SERVICE CLASSIFICATION | I111: Rate Rider for Disposition of Residual Incremental Historical Smart Meter Costs - effective until August 31, 2015
A112: RESIDENTIAL SUBURBAN | I112: Rate Rider for Disposition of Stranded Meter costs - effective until April 30, 2015
A113: RESIDENTIAL SUBURBAN SEASONAL | I113: Rate Rider for Disposition of Stranded Meter Costs - effective until April 30, 2016
A114: RESIDENTIAL SUBURBAN YEAR ROUND | I114: Rate Rider for Disposition of Stranded Meter Costs - effective until April 30, 2017
A115: RESIDENTIAL URBAN | I115: Rate Rider for Global Adjustment Sub Account Disposition - effective until April 30, 2016 Applicable only for Non RPP Customers
A116: RESIDENTIAL URBAN YEAR-ROUND | I116: Rate Rider for Global Adjustment Sub-Account Disposition (2014) - effective until April 28, 2016 Applicable only for Non-RPP Customers
A117: RETAIL SERVICE CHARGES (if applicable) | I117: Rate Rider for Global Adjustment Sub-Account Disposition (2014) - effective until April 30, 2015 Applicable only for Non-RPP Customers
A118: SEASONAL RESIDENTIAL | I118: Rate Rider for Global Adjustment Sub-Account Disposition (2014) - effective until December 30, 2015 Applicable only for Non-RPP Customers
A119: SEASONAL RESIDENTIAL - HIGH DENSITY [R3] | I119: Rate Rider for Global Adjustment Sub-Account Disposition (2014) - effective until December 31, 2014 Applicable only for Non-RPP Customers
A120: SEASONAL RESIDENTIAL - NORMAL DENSITY [R4] | I120: Rate Rider for Global Adjustment Sub-Account Disposition (2014) - effective until December 31, 2015 Applicable only for Non-RPP Customers
A121: SEASONAL RESIDENTIAL SERVICE CLASSIFICATION | I121: Rate Rider for Global Adjustment Sub-Account Disposition Applicable only for Non-RPP Customers - effective until April 30, 2015
A122: SENTINEL LIGHTING | I122: Rate Rider for Incremental Capital - Distribution Volumetric - effective until April 30, 2016
A123: SENTINEL LIGHTING SERVICE CLASSIFICATION | I123: Rate Rider for Incremental Capital - Service Charge - effective until April 30, 2016
A124: SMALL COMMERCIAL AND USL - PER CONNECTION | I124: Rate Rider for Incremental Capital (2012) - effective until April 30, 2015
A125: SMALL COMMERCIAL AND USL - PER METER | I125: Rate Rider for Lost Revenue Adjustment Mechanism Variance Account (LRAMVA) Recovery (2012 CDM Activities) - effective until April 30, 2015
A126: SPECIFIC SERVICE CHARGES | I126: Rate Rider for Recover of Residual Historical Smart meter Costs - effective until June 30, 2014
A127: SPECIFIC SERVICE CHARGES | I127: Rate Rider for Recovery of CGAAP/CWIP Differential - in effect until December 31, 2016
A128: STANDARD A GENERAL SERVICE AIR ACCESS | I128: Rate Rider for Recovery of Foregone Revenue - effective until April 30, 2015
A129: STANDARD A GENERAL SERVICE AIR ACCESS SERVICE CLASSIFICATION | I129: Rate Rider for Recovery of Forgone Revenue - effective until April 30, 2015
A130: STANDARD A GENERAL SERVICE ROAD/RAIL | I130: Rate Rider for Recovery of Forgone Revenue - effective until December 31, 2014
A131: STANDARD A GENERAL SERVICE ROAD/RAIL ACCESS SERVICE CLASSIFICATION | I131: Rate Rider for Recovery of Green Energy Act related costs - effective until December 31, 2014
A132: STANDARD A GRID CONNECTED | I132: Rate Rider for Recovery of Incremental Capital (2013) - in effect until the effective date of the next cost of service-based rate order
A133: STANDARD A GRID CONNECTED SERVICE CLASSIFICATION | I133: Rate Rider for Recovery of Incremental Capital (2013) - in effect until the effective date of the next cost of service-based rate order
A134: STANDARD A RESIDENTIAL AIR ACCESS | I134: Rate Rider for Recovery of Incremental Capital (2013) (per connection) - in effect until the effective date of the next cost of service-based rate order
A135: STANDARD A RESIDENTIAL AIR ACCESS SERVICE CLASSIFICATION | I135: Rate Rider for Recovery of Incremental Capital (2013) (per connection)- in effect until the effective date of the next cost of service-based rate order
A136: STANDARD A RESIDENTIAL ROAD/RAIL | I136: Rate Rider for Recovery of Incremental Capital Costs
A137: STANDARD A RESIDENTIAL ROAD/RAIL ACCESS SERVICE CLASSIFICATION | I137: Rate Rider for Recovery of Incremental Capital Costs - effective until April 30, 2015
A138: STANDBY - GENERAL SERVICE 1,000 - 5,000 KW | I138: Rate Rider for Recovery of Incremental Capital Module Costs (2014) - in effect until the effective date of the next cost of service-based rate order
A139: STANDBY - GENERAL SERVICE 50 - 1,000 KW | I139: Rate Rider for Recovery of Incremental Capital Module Costs (2014) - in effect until the effective date of the next cost of service-based rate order
A140: STANDBY - LARGE USE | I140: Rate Rider for Recovery of Lost Revenue Adjustment Mechanism ( LRAM)/Shared Savings Mechanism (SSM) (2012) - effective until August 31, 2014
A141: STANDBY DISTRIBUTION SERVICE | I141: Rate Rider for Recovery of Lost Revenue Adjustment Mechanism (2013) - effective until December 31, 2014
A142: STANDBY DISTRIBUTION SERVICE CLASSIFICATION | I142: Rate Rider for Recovery of Lost Revenue Adjustment Mechanism (LRAM) - effective until April 30, 2016
A143: STANDBY POWER | I143: Rate Rider for Recovery of Lost Revenue Adjustment Mechanism (LRAM) (pre-2011 CDM Activities) - effective until April 30, 2015
A144: STANDBY POWER - APPROVED ON AN INTERIM BASIS | I144: Rate Rider for Recovery of Lost Revenue Adjustment Mechanism (LRAM) (pre-2011 CDM Activities) (2013) - effective until April 30, 2015
A145: STANDBY POWER GENERAL SERVICE 1,500 TO 4,999 KW | I145: Rate Rider for Recovery of Lost Revenue Adjustment Mechanism (LRAM)/Shared Savings
A146: STANDBY POWER GENERAL SERVICE 50 TO 1,499 KW | I146: Rate Rider for Recovery of Lost Revenue Adjustment Mechanism (LRAM)/Shared Savings Mechanism (SSM) - effective until December 31, 2018 and applicable in the service area excluding the former service areas of Clinton Power and West Perth Power
A147: STANDBY POWER GENERAL SERVICE LARGE USE | I147: Rate Rider for Recovery of Lost Revenue Adjustment Mechanism (LRAM)/Shared Savings Mechanism (SSM) - effective until December 31, 2014 and applicable in the service area excluding the former service areas of Clinton Power and West Perth Power
A148: STANDBY POWER SERVICE | I148: Rate Rider for Recovery of Lost Revenue Adjustment Mechanism (LRAM)/Shared Savings Mechanism (SSM) - effective until December 31, 2014 and applicable only in the former service area of Clinton Power
A149: STANDBY POWER SERVICE CLASSIFICATION | I149: Rate Rider for Recovery of Lost Revenue Adjustment Mechanism (LRAM)/Shared Savings Mechanism (SSM) - effective until December 31, 2014 and applicable only in the former service area of West Perth Power
A150: STANDBY POWER SERVICE CLASSIFICATION | I150: Rate Rider for Recovery of Lost Revenue Adjustment Mechanism (LRAM)/Shared Savings Mechanism (SSM) - effective until December 31, 2014 and applicable in the service area excluding the former service area of Clinton Power
A151: STANDBY POWERSERVICE CLASSIFICATION | I151: Rate Rider for Recovery of Lost Revenue Adjustment Mechanism (LRAM)/Shared Savings Mechanism (SSM) - effective until March 31, 2016
A152: STREET LIGHTING | I152: Rate Rider for Recovery of Lost Revenue Adjustment Mechanism (LRAM)/Shared Savings Mechanism (SSM) (2012) - effective until August 31, 2014
A153: STREET LIGHTING SERVICE CLASSIFICATION | I153: Rate Rider for Recovery of Lost Revenue Adjustment Mechanism (LRAM)/Shared Savings Mechanism (SSM) Recovery - effective until April 30, 2015
A154: SUB TRANSMISSION [ST] | I154: Rate Rider for Recovery of Lost Revenue Adjustment Mechanism Variance Account (LRAMVA) (2014) - effective until April 30, 2015
A155: UNMETERED SCATTERED LOAD | I155: Rate Rider for Recovery of Residual Historical Smart Meter Costs - effective July 1, 2012 - April 30, 2016
A156: UNMETERED SCATTERED LOAD SERVICE CLASSIFICATION | I156: Rate Rider for Recovery of Smart Meter Incremental Revenue Requirement - effective until the date of the next cost of service-based rate order
A157: URBAN GENERAL SERVICE DEMAND BILLED (50 KW AND ABOVE) [UGD] | I157: Rate Rider for Recovery of Smart Meter Incremental Revenue Requirement - effective until the effective date of the next cost of service-based rate order, or October 31, 2017, whichever occurs earlier
A158: URBAN GENERAL SERVICE ENERGY BILLED (LESS THAN 50 KW) [UGE] | I158: Rate Rider for Recovery of Smart Meter Incremental Revenue Requirement - in effect until the effective date of the next cost of service-based rate order
A159: WESTPORT SEWAGE TREATMENT PLANT | I159: Rate Rider for Recovery of Smart Meter Incremental Revenue Requirement - Non-Interval Metered - in effect until the effective date of the next cost of service-based rate order
A160: YEAR-ROUND RESIDENTIAL - R2 | I160: Rate Rider for Recovery of Smart Meter Incremental Revenue Requirements - in effect until the effective date of the next cost of service application
I161: Rate Rider for Recovery of Smart Meter Stranded Assets - effective until April 30, 2016
I162: Rate Rider for Recovery of Storm Damage Costs - effective until August 31, 2017
I163: Rate Rider for Recovery of Stranded Assets - effective until April 30, 2016
I164: Rate Rider for Recovery of Stranded Meter Assets - effective July 1, 2012 - April 30, 2016
I165: Rate Rider for Recovery of Stranded Meter Assets – effective until April 30, 2015
I166: Rate Rider for Recovery of Stranded Meter Assets - effective until April 30, 2016
I167: Rate Rider for Recovery of Stranded Meter Assets - effective until April 30, 2017
I168: Rate Rider for Recovery of Stranded Meter Assets - effective until August 31, 2015
I169: Rate Rider for Recovery of Stranded Meter Assets - effective until August 31, 2017
I170: Rate Rider for Recovery of Stranded Meter Assets - effective until December 31, 2014
I171: Rate Rider for Recovery of Stranded Meter Assets - effective until December 31, 2015
I172: Rate Rider for Recovery of Stranded Meter Assets - effective until June 30, 2016
I173: Rate Rider for Recovery of Stranded Meter Assets - effective until March 31, 2016
I174: Rate Rider for Recovery of Stranded Meter Assets - effective until May 31, 2014
I175: Rate Rider for Reversal of Deferral/Variance Account Disposition (2011) - effective until April 30, 2015
I176: Rate Rider for Smart Meter Disposition - effective until April 30, 2016
I177: Rate Rider for Smart Meter Incremental Revenue Requirement - in effect until the effective date of the next cost of service-based rate order
I178: Rate Rider for Smart Metering Entity Charge - effective until October 31, 2018
I179: Rate Rider for Stranded Meter Cost Recovery - effective until April 30, 2017
I180: Rate Rider for Tax Change
I181: Rate Rider for Tax Change - effective until April 30, 2015
I182: Rate Rider for Tax Change (2014) - effective until April 30, 2015
I183: Retail Transmission Rate - Line and Transformation Connection Service Rate
I184: Retail Transmission Rate - Line and Transformation Connection Service Rate - (less than 1,000 kW)
I185: Retail Transmission Rate - Line and Transformation Connection Service Rate - Interval Metered
I186: Retail Transmission Rate - Line and Transformation Connection Service Rate - Interval Metered (1,000 to 4,999 kW)
I187: Retail Transmission Rate - Line and Transformation Connection Service Rate - Interval Metered (less than 1,000 kW)
I188: Retail Transmission Rate - Line and Transformation Connection Service Rate - Interval Metered < 1,000 kW
I189: Retail Transmission Rate - Line and Transformation Connection Service Rate FOR ALL SERVICE AREAS EXCEPT HENSALL
I190: Retail Transmission Rate - Line and Transformation Connection Service Rate - Interval Metered > 1,000 kW
I191: Retail Transmission Rate - Line Connection Service Rate
I192: Retail Transmission Rate - Network Service Rate
I193: Retail Transmission Rate - Network Service Rate - (less than 1,000 kW)
I194: Retail Transmission Rate - Network Service Rate - Interval Metered
I195: Retail Transmission Rate - Network Service Rate - Interval Metered (1,000 to 4,999 kW)
I196: Retail Transmission Rate - Network Service Rate - Interval Metered (less than 1,000 kW)
I197: Retail Transmission Rate - Network Service Rate - Interval Metered > 1,000 kW
I198: Retail Transmission Rate - Transformation Connection Service Rate
I199: Rider for Global Adjustment Sub-Account Disposition (2012) - effective until April 30, 2016 Applicable only for Non-RPP Customers
I200: Rural or Remote Electricity Rate Protection Charge (RRRP)
... 14 more rows

Sheet Sheet2 (hidden)
A1: Algoma Power Inc. | H1: Atikokan Hydro Inc. | N1: =VLOOKUP(H1,A:A,1,0) -> Atikokan Hydro Inc.
A2: Atikokan Hydro Inc. | H2: Bluewater Power Distribution Corporation | N2: =VLOOKUP(H2,A:A,1,0) -> Bluewater Power Distribution Corporation
A3: Bluewater Power Distribution Corporation | H3: Brant County Power Inc. | N3: Brant County Power Inc.
A4: Brant County Power Inc. | H4: Brantford Power Inc. | N4: Brantford Power Inc.
A5: Brantford Power Inc. | H5: Burlington Hydro Inc. | N5: Burlington Hydro Inc.
A6: Burlington Hydro Inc. | H6: Cambridge and North Dumfries Hydro Inc. | N6: Cambridge and North Dumfries Hydro Inc.
A7: Cambridge and North Dumfries Hydro Inc. | H7: Canadian Niagara Power Inc. | N7: Canadian Niagara Power Inc.
A8: Canadian Niagara Power Inc. | H8: Centre Wellington Hydro Ltd. | N8: Centre Wellington Hydro Ltd.
A9: Centre Wellington Hydro Ltd. | H9: Chapleau Public Utilities Corporation | N9: Chapleau Public Utilities Corporation
A10: Chapleau Public Utilities Corporation | H10: Collus PowerStream Corp. | N10: Collus PowerStream Corp.
A11: Collus PowerStream Corp. | H11: Cooperative Hydro Embrun Inc. | N11: Cooperative Hydro Embrun Inc.
A12: Cooperative Hydro Embrun Inc. | H12: E.L.K. Energy Inc. | N12: E.L.K. Energy Inc.
A13: E.L.K. Energy Inc. | H13: Enersource Hydro Mississauga Inc. | N13: Enersource Hydro Mississauga Inc.
A14: Enersource Hydro Mississauga Inc. | H14: Entegrus Powerlines Inc. | N14: Entegrus Powerlines Inc.
A15: Entegrus Powerlines Inc. | H15: EnWin Utilities Ltd. | N15: EnWin Utilities Ltd.
A16: EnWin Utilities Ltd. | H16: Erie Thames Powerlines Corporation | N16: Erie Thames Powerlines Corporation
A17: Erie Thames Powerlines Corporation | H17: Espanola Regional Hydro Distribution Corporation | N17: Espanola Regional Hydro Distribution Corporation
A18: Espanola Regional Hydro Distribution Corporation | H18: Essex Powerlines Corporation | N18: Essex Powerlines Corporation
A19: Essex Powerlines Corporation | H19: Festival Hydro Inc. | N19: Festival Hydro Inc.
A20: Festival Hydro Inc. | H20: Fort Frances Power Corporation | N20: Fort Frances Power Corporation
A21: Fort Frances Power Corporation | H21: Greater Sudbury Hydro Inc. | N21: Greater Sudbury Hydro Inc.
A22: Greater Sudbury Hydro Inc. | H22: Grimsby Power Incorporated | N22: Grimsby Power Incorporated
A23: Grimsby Power Incorporated | H23: Guelph Hydro Electric Systems Inc. | N23: Guelph Hydro Electric Systems Inc.
A24: Guelph Hydro Electric Systems Inc. | H24: Halton Hills Hydro Inc. | N24: Halton Hills Hydro Inc.
A25: Haldimand County Hydro Inc. | H25: Hydro 2000 Inc. | N25: Hydro 2000 Inc.
A26: Halton Hills Hydro Inc. | H26: Hydro Hawkesbury Inc. | N26: Hydro Hawkesbury Inc.
A27: Hearst Power Distribution Company Limited | H27: Hydro One Brampton Networks Inc. | N27: Hydro One Brampton Networks Inc.
A28: Horizon Utilities Corporation | H28: Hydro One Remote Communities Inc. | N28: Hydro One Remote Communities Inc.
A29: Hydro 2000 Inc. | H29: Hydro Ottawa Limited | N29: Hydro Ottawa Limited
A30: Hydro Hawkesbury Inc. | H30: Innpower Corporation | N30: Innpower Corporation
A31: Hydro One Brampton Networks Inc. | H31: Kenora Hydro Electric Corporation Ltd. | N31: Kenora Hydro Electric Corporation Ltd.
A32: Hydro One Networks Inc. | H32: Kingston Hydro Corporation | N32: Kingston Hydro Corporation
